Workbook

Sheet Team Performance (hidden)
A1: Team | B1: Team Members | C1: Product | D1: Sale Date | E1: Region | F1: Login Hours | G1: Total Talk Time | H1: Total Hold Time | I1: Sales | J1: Sales Per Hour | K1: Revenue | L1: Revenue Per Hour | M1: Calls | N1: Excellent | O1: Good | P1: Fair | Q1: Poor | R1: Total | S1: CSAT% (Customer Satisfaction)
A2: Team A | B2: Sydnee | C2: Product 1 | D2: 2014-06-01 | E2: Alabama | F2: 7 | G2: 6 | H2: 0.5 | I2: 22 | J2: 3.142857143 | K2: 748 | L2: 106.8571429 | M2: 358 | N2: 24 | O2: 40 | P2: 32 | Q2: 15 | R2: =SUM(M2:Q2) -> 469 | S2: =SUM(N2:O2)/R2 -> 0.1364605544
A3: Team A | B3: Amber | C3: Product 2 | D3: 2014-06-01 | E3: California | F3: 7.5 | G3: 6.5 | H3: 0.7 | I3: 19 | J3: 2.533333333 | K3: 646 | L3: 86.13333333 | M3: 323 | N3: 20 | O3: 35 | P3: 34 | Q3: 15 | R3: =SUM(M3:Q3) -> 427 | S3: =SUM(N3:O3)/R3 -> 0.1288056206
A4: Team A | B4: Constance | C4: Product 1 | D4: 2014-06-01 | E4: Colorado | F4: 8 | G4: 7 | H4: 0.3 | I4: 16 | J4: 2 | K4: 544 | L4: 68 | M4: 310 | N4: 29 | O4: 32 | P4: 30 | Q4: 11 | R4: 412 | S4: 0.1480582524
A5: Team A | B5: Nola | C5: Product 2 | D5: 2014-06-01 | E5: Connecticut | F5: 8.3 | G5: 7.3 | H5: 0.8 | I5: 21 | J5: 2.530120482 | K5: 714 | L5: 86.02409639 | M5: 327 | N5: 25 | O5: 36 | P5: 33 | Q5: 12 | R5: 433 | S5: 0.1408775982
A6: Team A | B6: Libby | C6: Product 1 | D6: 2014-06-01 | E6: Florida | F6: 7.3 | G6: 6.3 | H6: 0.2 | I6: 23 | J6: 3.150684932 | K6: 782 | L6: 107.1232877 | M6: 367 | N6: 27 | O6: 37 | P6: 36 | Q6: 12 | R6: 479 | S6: 0.133611691
A7: Team A | B7: Tashya | C7: Product 2 | D7: 2014-06-01 | E7: Hawaii | F7: 7.9 | G7: 6.9 | H7: 0.6 | I7: 24 | J7: 3.037974684 | K7: 816 | L7: 103.2911392 | M7: 379 | N7: 23 | O7: 37 | P7: 33 | Q7: 11 | R7: 483 | S7: 0.1242236025
A8: Team A | B8: Flavia | C8: Product 1 | D8: 2014-06-01 | E8: Alabama | F8: 7.6 | G8: 6.6 | H8: 0.5 | I8: 15 | J8: 1.973684211 | K8: 510 | L8: 67.10526316 | M8: 302 | N8: 24 | O8: 37 | P8: 33 | Q8: 12 | R8: 408 | S8: 0.1495098039
A9: Team A | B9: Guinevere | C9: Product 2 | D9: 2014-06-01 | E9: California | F9: 7 | G9: 6 | H9: 0.7 | I9: 19 | J9: 2.714285714 | K9: 646 | L9: 92.28571429 | M9: 380 | N9: 21 | O9: 32 | P9: 33 | Q9: 11 | R9: 477 | S9: 0.1111111111
A10: Team A | B10: Darryl | C10: Product 1 | D10: 2014-06-01 | E10: Colorado | F10: 7.5 | G10: 6.5 | H10: 0.3 | I10: 20 | J10: 2.666666667 | K10: 680 | L10: 90.66666667 | M10: 394 | N10: 30 | O10: 38 | P10: 35 | Q10: 13 | R10: 510 | S10: 0.1333333333
A11: Team A | B11: Farrah | C11: Product 2 | D11: 2014-06-01 | E11: Connecticut | F11: 8 | G11: 7 | H11: 0.8 | I11: 24 | J11: 3 | K11: 816 | L11: 102 | M11: 321 | N11: 27 | O11: 32 | P11: 40 | Q11: 14 | R11: 434 | S11: 0.1359447005
A12: Team B | B12: Rowan | C12: Product 1 | D12: 2014-06-01 | E12: Florida | F12: 8.3 | G12: 7.3 | H12: 0.2 | I12: 25 | J12: 3.012048193 | K12: 850 | L12: 102.4096386 | M12: 348 | N12: 20 | O12: 38 | P12: 30 | Q12: 10 | R12: 446 | S12: 0.130044843
A13: Team B | B13: Quyn | C13: Product 2 | D13: 2014-06-01 | E13: Hawaii | F13: 7.3 | G13: 6.3 | H13: 0.6 | I13: 21 | J13: 2.876712329 | K13: 714 | L13: 97.80821918 | M13: 381 | N13: 23 | O13: 34 | P13: 36 | Q13: 11 | R13: 485 | S13: 0.1175257732
A14: Team B | B14: Xantha | C14: Product 1 | D14: 2014-06-01 | E14: Alabama | F14: 7.9 | G14: 6.9 | H14: 0.5 | I14: 24 | J14: 3.037974684 | K14: 816 | L14: 103.2911392 | M14: 335 | N14: 28 | O14: 31 | P14: 33 | Q14: 15 | R14: 442 | S14: 0.1334841629
A15: Team B | B15: Winifred | C15: Product 2 | D15: 2014-06-01 | E15: California | F15: 7.6 | G15: 6.6 | H15: 0.7 | I15: 18 | J15: 2.368421053 | K15: 612 | L15: 80.52631579 | M15: 327 | N15: 23 | O15: 30 | P15: 33 | Q15: 11 | R15: 424 | S15: 0.125
A16: Team B | B16: Iona | C16: Product 1 | D16: 2014-06-01 | E16: Colorado | F16: 7 | G16: 6 | H16: 0.3 | I16: 23 | J16: 3.285714286 | K16: 782 | L16: 111.7142857 | M16: 369 | N16: 21 | O16: 40 | P16: 34 | Q16: 10 | R16: 474 | S16: 0.1286919831
A17: Team B | B17: Keelie | C17: Product 2 | D17: 2014-06-01 | E17: Connecticut | F17: 7.5 | G17: 6.5 | H17: 0.8 | I17: 24 | J17: 3.2 | K17: 816 | L17: 108.8 | M17: 365 | N17: 29 | O17: 34 | P17: 36 | Q17: 14 | R17: 478 | S17: 0.1317991632
A18: Team B | B18: Brynne | C18: Product 1 | D18: 2014-06-01 | E18: Florida | F18: 8 | G18: 7 | H18: 0.2 | I18: 19 | J18: 2.375 | K18: 646 | L18: 80.75 | M18: 370 | N18: 27 | O18: 38 | P18: 33 | Q18: 14 | R18: 482 | S18: 0.1348547718
A19: Team B | B19: Sierra | C19: Product 2 | D19: 2014-06-01 | E19: Hawaii | F19: 8.3 | G19: 7.3 | H19: 0.6 | I19: 15 | J19: 1.807228916 | K19: 510 | L19: 61.44578313 | M19: 302 | N19: 21 | O19: 34 | P19: 36 | Q19: 13 | R19: 406 | S19: 0.1354679803
A20: Team B | B20: Gay | C20: Product 1 | D20: 2014-06-01 | E20: Alabama | F20: 7.3 | G20: 6.3 | H20: 0.5 | I20: 18 | J20: 2.465753425 | K20: 612 | L20: 83.83561644 | M20: 316 | N20: 28 | O20: 33 | P20: 34 | Q20: 11 | R20: 422 | S20: 0.144549763
A21: Team B | B21: Inez | C21: Product 2 | D21: 2014-06-01 | E21: California | F21: 7.9 | G21: 6.9 | H21: 0.7 | I21: 25 | J21: 3.164556962 | K21: 850 | L21: 107.5949367 | M21: 330 | N21: 24 | O21: 32 | P21: 30 | Q21: 10 | R21: 426 | S21: 0.1314553991
A22: Team C | B22: Illana | C22: Product 1 | D22: 2014-06-01 | E22: Colorado | F22: 7.6 | G22: 6.6 | H22: 0.3 | I22: 15 | J22: 1.973684211 | K22: 510 | L22: 67.10526316 | M22: 356 | N22: 21 | O22: 35 | P22: 35 | Q22: 10 | R22: 457 | S22: 0.1225382932
A23: Team C | B23: Renee | C23: Product 2 | D23: 2014-06-01 | E23: Connecticut | F23: 7 | G23: 6 | H23: 0.8 | I23: 23 | J23: 3.285714286 | K23: 782 | L23: 111.7142857 | M23: 397 | N23: 23 | O23: 32 | P23: 33 | Q23: 13 | R23: 498 | S23: 0.1104417671
A24: Team C | B24: Olympia | C24: Product 1 | D24: 2014-06-01 | E24: Florida | F24: 7.5 | G24: 6.5 | H24: 0.2 | I24: 24 | J24: 3.2 | K24: 816 | L24: 108.8 | M24: 379 | N24: 20 | O24: 36 | P24: 31 | Q24: 14 | R24: 480 | S24: 0.1166666667
A25: Team C | B25: Camille | C25: Product 2 | D25: 2014-06-01 | E25: Hawaii | F25: 8 | G25: 7 | H25: 0.6 | I25: 21 | J25: 2.625 | K25: 714 | L25: 89.25 | M25: 348 | N25: 22 | O25: 30 | P25: 37 | Q25: 14 | R25: 451 | S25: 0.1152993348
A26: Team C | B26: Shaine | C26: Product 1 | D26: 2014-06-01 | E26: Alabama | F26: 8.3 | G26: 7.3 | H26: 0.5 | I26: 19 | J26: 2.289156627 | K26: 646 | L26: 77.8313253 | M26: 356 | N26: 28 | O26: 38 | P26: 40 | Q26: 14 | R26: 476 | S26: 0.1386554622
A27: Team C | B27: Maris | C27: Product 2 | D27: 2014-06-01 | E27: California | F27: 7.3 | G27: 6.3 | H27: 0.7 | I27: 19 | J27: 2.602739726 | K27: 646 | L27: 88.49315068 | M27: 354 | N27: 28 | O27: 38 | P27: 36 | Q27: 11 | R27: 467 | S27: 0.1413276231
A28: Team C | B28: Jana | C28: Product 1 | D28: 2014-06-01 | E28: Colorado | F28: 7.9 | G28: 6.9 | H28: 0.3 | I28: 22 | J28: 2.784810127 | K28: 748 | L28: 94.6835443 | M28: 341 | N28: 22 | O28: 30 | P28: 31 | Q28: 14 | R28: 438 | S28: 0.1187214612
A29: Team C | B29: Audra | C29: Product 2 | D29: 2014-06-01 | E29: Connecticut | F29: 7.6 | G29: 6.6 | H29: 0.8 | I29: 16 | J29: 2.105263158 | K29: 544 | L29: 71.57894737 | M29: 376 | N29: 28 | O29: 39 | P29: 33 | Q29: 12 | R29: 488 | S29: 0.137295082
A30: Team C | B30: Rosalyn | C30: Product 1 | D30: 2014-06-01 | E30: Florida | F30: 7 | G30: 6 | H30: 0.2 | I30: 16 | J30: 2.285714286 | K30: 544 | L30: 77.71428571 | M30: 353 | N30: 27 | O30: 37 | P30: 35 | Q30: 12 | R30: 464 | S30: 0.1379310345
A31: Team C | B31: April | C31: Product 2 | D31: 2014-06-01 | E31: Hawaii | F31: 7.5 | G31: 6.5 | H31: 0.6 | I31: 15 | J31: 2 | K31: 510 | L31: 68 | M31: 324 | N31: 25 | O31: 32 | P31: 31 | Q31: 14 | R31: 426 | S31: 0.1338028169
A32: Team D | B32: Dara | C32: Product 1 | D32: 2014-06-01 | E32: Alabama | F32: 8 | G32: 7 | H32: 0.5 | I32: 18 | J32: 2.25 | K32: 612 | L32: 76.5 | M32: 364 | N32: 21 | O32: 32 | P32: 37 | Q32: 13 | R32: 467 | S32: 0.113490364
A33: Team D | B33: Daria | C33: Product 2 | D33: 2014-06-01 | E33: California | F33: 8.3 | G33: 7.3 | H33: 0.7 | I33: 20 | J33: 2.409638554 | K33: 680 | L33: 81.92771084 | M33: 357 | N33: 24 | O33: 30 | P33: 39 | Q33: 11 | R33: 461 | S33: 0.1171366594
A34: Team D | B34: Ariel | C34: Product 1 | D34: 2014-06-01 | E34: Colorado | F34: 7.3 | G34: 6.3 | H34: 0.3 | I34: 15 | J34: 2.054794521 | K34: 510 | L34: 69.8630137 | M34: 301 | N34: 27 | O34: 39 | P34: 39 | Q34: 11 | R34: 417 | S34: 0.1582733813
A35: Team D | B35: Hermione | C35: Product 2 | D35: 2014-06-01 | E35: Connecticut | F35: 7.9 | G35: 6.9 | H35: 0.8 | I35: 16 | J35: 2.025316456 | K35: 544 | L35: 68.86075949 | M35: 398 | N35: 29 | O35: 31 | P35: 33 | Q35: 11 | R35: 502 | S35: 0.1195219124
A36: Team D | B36: Aileen | C36: Product 1 | D36: 2014-06-01 | E36: Florida | F36: 7.6 | G36: 6.6 | H36: 0.2 | I36: 19 | J36: 2.5 | K36: 646 | L36: 85 | M36: 324 | N36: 22 | O36: 36 | P36: 39 | Q36: 14 | R36: 435 | S36: 0.1333333333
A37: Team D | B37: Cheyenne | C37: Product 2 | D37: 2014-06-01 | E37: Hawaii | F37: 7 | G37: 6 | H37: 0.6 | I37: 19 | J37: 2.714285714 | K37: 646 | L37: 92.28571429 | M37: 307 | N37: 24 | O37: 33 | P37: 40 | Q37: 11 | R37: 415 | S37: 0.1373493976
A38: Team D | B38: Lois | C38: Product 1 | D38: 2014-06-01 | E38: Alabama | F38: 7.5 | G38: 6.5 | H38: 0.5 | I38: 16 | J38: 2.133333333 | K38: 544 | L38: 72.53333333 | M38: 327 | N38: 28 | O38: 33 | P38: 37 | Q38: 12 | R38: 437 | S38: 0.1395881007
A39: Team D | B39: Madeson | C39: Product 2 | D39: 2014-06-01 | E39: California | F39: 8 | G39: 7 | H39: 0.7 | I39: 16 | J39: 2 | K39: 544 | L39: 68 | M39: 394 | N39: 29 | O39: 37 | P39: 34 | Q39: 11 | R39: 505 | S39: 0.1306930693
A40: Team D | B40: Ariana | C40: Product 1 | D40: 2014-06-01 | E40: Colorado | F40: 8.3 | G40: 7.3 | H40: 0.3 | I40: 24 | J40: 2.891566265 | K40: 816 | L40: 98.31325301 | M40: 369 | N40: 21 | O40: 40 | P40: 34 | Q40: 15 | R40: 479 | S40: 0.127348643
A41: Team D | B41: Kendall | C41: Product 2 | D41: 2014-06-01 | E41: Connecticut | F41: 7.3 | G41: 6.3 | H41: 0.8 | I41: 24 | J41: 3.287671233 | K41: 816 | L41: 111.7808219 | M41: 338 | N41: 28 | O41: 35 | P41: 39 | Q41: 15 | R41: 455 | S41: 0.1384615385
A42: Team E | B42: Lacy | C42: Product 1 | D42: 2014-06-01 | E42: Florida | F42: 7.9 | G42: 6.9 | H42: 0.2 | I42: 22 | J42: 2.784810127 | K42: 748 | L42: 94.6835443 | M42: 377 | N42: 27 | O42: 30 | P42: 34 | Q42: 10 | R42: 478 | S42: 0.1192468619
A43: Team E | B43: Heather | C43: Product 2 | D43: 2014-06-01 | E43: Hawaii | F43: 7.6 | G43: 6.6 | H43: 0.6 | I43: 17 | J43: 2.236842105 | K43: 578 | L43: 76.05263158 | M43: 398 | N43: 28 | O43: 31 | P43: 32 | Q43: 10 | R43: 499 | S43: 0.1182364729
A44: Team E | B44: Nevada | C44: Product 1 | D44: 2014-06-01 | E44: Alabama | F44: 8.3 | G44: 7.3 | H44: 0.5 | I44: 23 | J44: 2.771084337 | K44: 782 | L44: 94.21686747 | M44: 320 | N44: 23 | O44: 30 | P44: 39 | Q44: 12 | R44: 424 | S44: 0.125
A45: Team E | B45: Mercedes | C45: Product 2 | D45: 2014-06-01 | E45: California | F45: 7.3 | G45: 6.3 | H45: 0.7 | I45: 25 | J45: 3.424657534 | K45: 850 | L45: 116.4383562 | M45: 338 | N45: 24 | O45: 34 | P45: 33 | Q45: 12 | R45: 441 | S45: 0.1315192744
A46: Team E | B46: Courtney | C46: Product 1 | D46: 2014-06-01 | E46: Colorado | F46: 7.9 | G46: 6.9 | H46: 0.3 | I46: 23 | J46: 2.911392405 | K46: 782 | L46: 98.98734177 | M46: 371 | N46: 29 | O46: 30 | P46: 38 | Q46: 12 | R46: 480 | S46: 0.1229166667
A47: Team E | B47: Amanda | C47: Product 2 | D47: 2014-06-01 | E47: Connecticut | F47: 7.6 | G47: 6.6 | H47: 0.8 | I47: 17 | J47: 2.236842105 | K47: 578 | L47: 76.05263158 | M47: 347 | N47: 20 | O47: 40 | P47: 35 | Q47: 15 | R47: 457 | S47: 0.1312910284
A48: Team E | B48: Madeline | C48: Product 1 | D48: 2014-06-01 | E48: Florida | F48: 7 | G48: 6 | H48: 0.2 | I48: 23 | J48: 3.285714286 | K48: 782 | L48: 111.7142857 | M48: 368 | N48: 30 | O48: 40 | P48: 38 | Q48: 15 | R48: 491 | S48: 0.1425661914
A49: Team E | B49: Zia | C49: Product 2 | D49: 2014-06-01 | E49: Hawaii | F49: 7.5 | G49: 6.5 | H49: 0.6 | I49: 25 | J49: 3.333333333 | K49: 850 | L49: 113.3333333 | M49: 353 | N49: 22 | O49: 31 | P49: 37 | Q49: 13 | R49: 456 | S49: 0.1162280702
A50: Team E | B50: Miriam | C50: Product 1 | D50: 2014-06-01 | E50: Alabama | F50: 8 | G50: 7 | H50: 0.5 | I50: 24 | J50: 3 | K50: 816 | L50: 102 | M50: 339 | N50: 30 | O50: 40 | P50: 30 | Q50: 11 | R50: 450 | S50: 0.1555555556
A51: Team E | B51: Quin | C51: Product 2 | D51: 2014-06-01 | E51: California | F51: 8.3 | G51: 7.3 | H51: 0.7 | I51: 16 | J51: 1.927710843 | K51: 544 | L51: 65.54216867 | M51: 395 | N51: 23 | O51: 35 | P51: 37 | Q51: 12 | R51: 502 | S51: 0.1155378486
A52: Team F | B52: Ivory | C52: Product 1 | D52: 2014-06-01 | E52: Colorado | F52: 7.3 | G52: 6.3 | H52: 0.3 | I52: 19 | J52: 2.602739726 | K52: 646 | L52: 88.49315068 | M52: 316 | N52: 30 | O52: 40 | P52: 36 | Q52: 15 | R52: 437 | S52: 0.1601830664
A53: Team F | B53: Stacy | C53: Product 2 | D53: 2014-06-01 | E53: Connecticut | F53: 7.9 | G53: 6.9 | H53: 0.8 | I53: 25 | J53: 3.164556962 | K53: 850 | L53: 107.5949367 | M53: 383 | N53: 30 | O53: 30 | P53: 36 | Q53: 10 | R53: 489 | S53: 0.1226993865
A54: Team F | B54: Dai | C54: Product 1 | D54: 2014-06-01 | E54: Florida | F54: 7.6 | G54: 6.6 | H54: 0.2 | I54: 16 | J54: 2.105263158 | K54: 544 | L54: 71.57894737 | M54: 336 | N54: 23 | O54: 38 | P54: 35 | Q54: 10 | R54: 442 | S54: 0.1380090498
A55: Team F | B55: Shelley | C55: Product 2 | D55: 2014-06-01 | E55: Hawaii | F55: 7 | G55: 6 | H55: 0.6 | I55: 20 | J55: 2.857142857 | K55: 680 | L55: 97.14285714 | M55: 333 | N55: 20 | O55: 31 | P55: 34 | Q55: 13 | R55: 431 | S55: 0.1183294664
A56: Team F | B56: Shelby | C56: Product 1 | D56: 2014-06-01 | E56: Alabama | F56: 7.5 | G56: 6.5 | H56: 0.5 | I56: 22 | J56: 2.933333333 | K56: 748 | L56: 99.73333333 | M56: 389 | N56: 20 | O56: 39 | P56: 39 | Q56: 13 | R56: 500 | S56: 0.118
A57: Team F | B57: Riley | C57: Product 2 | D57: 2014-06-01 | E57: California | F57: 8 | G57: 7 | H57: 0.7 | I57: 23 | J57: 2.875 | K57: 782 | L57: 97.75 | M57: 334 | N57: 30 | O57: 38 | P57: 30 | Q57: 11 | R57: 443 | S57: 0.1534988713
A58: Team F | B58: Cleo | C58: Product 1 | D58: 2014-06-01 | E58: Colorado | F58: 8.3 | G58: 7.3 | H58: 0.3 | I58: 20 | J58: 2.409638554 | K58: 680 | L58: 81.92771084 | M58: 307 | N58: 28 | O58: 33 | P58: 32 | Q58: 12 | R58: 412 | S58: 0.1480582524
A59: Team F | B59: Patricia | C59: Product 2 | D59: 2014-06-01 | E59: Connecticut | F59: 7.3 | G59: 6.3 | H59: 0.8 | I59: 19 | J59: 2.602739726 | K59: 646 | L59: 88.49315068 | M59: 378 | N59: 24 | O59: 35 | P59: 37 | Q59: 13 | R59: 487 | S59: 0.1211498973
A60: Team F | B60: Britanney | C60: Product 1 | D60: 2014-06-01 | E60: Florida | F60: 7.9 | G60: 6.9 | H60: 0.2 | I60: 15 | J60: 1.898734177 | K60: 510 | L60: 64.55696203 | M60: 357 | N60: 27 | O60: 30 | P60: 31 | Q60: 12 | R60: 457 | S60: 0.124726477
A61: Team F | B61: Tatum | C61: Product 2 | D61: 2014-06-01 | E61: Hawaii | F61: 7.6 | G61: 6.6 | H61: 0.6 | I61: 18 | J61: 2.368421053 | K61: 612 | L61: 80.52631579 | M61: 370 | N61: 22 | O61: 33 | P61: 32 | Q61: 15 | R61: 472 | S61: 0.1165254237
A62: Team G | B62: Katelyn | C62: Product 1 | D62: 2014-06-01 | E62: Alabama | F62: 7 | G62: 6 | H62: 0.5 | I62: 21 | J62: 3 | K62: 714 | L62: 102 | M62: 322 | N62: 24 | O62: 30 | P62: 32 | Q62: 14 | R62: 422 | S62: 0.1279620853
A63: Team G | B63: Pamela | C63: Product 2 | D63: 2014-06-01 | E63: California | F63: 7.5 | G63: 6.5 | H63: 0.7 | I63: 22 | J63: 2.933333333 | K63: 748 | L63: 99.73333333 | M63: 326 | N63: 29 | O63: 33 | P63: 38 | Q63: 13 | R63: 439 | S63: 0.1412300683
A64: Team G | B64: Rhoda | C64: Product 1 | D64: 2014-06-01 | E64: Colorado | F64: 8 | G64: 7 | H64: 0.3 | I64: 21 | J64: 2.625 | K64: 714 | L64: 89.25 | M64: 339 | N64: 25 | O64: 32 | P64: 31 | Q64: 14 | R64: 441 | S64: 0.1292517007
A65: Team G | B65: Deanna | C65: Product 2 | D65: 2014-06-01 | E65: Connecticut | F65: 8.3 | G65: 7.3 | H65: 0.8 | I65: 20 | J65: 2.409638554 | K65: 680 | L65: 81.92771084 | M65: 390 | N65: 21 | O65: 33 | P65: 35 | Q65: 13 | R65: 492 | S65: 0.1097560976
A66: Team G | B66: Mallory | C66: Product 1 | D66: 2014-06-01 | E66: Florida | F66: 7.3 | G66: 6.3 | H66: 0.2 | I66: 19 | J66: 2.602739726 | K66: 646 | L66: 88.49315068 | M66: 330 | N66: 30 | O66: 33 | P66: 40 | Q66: 13 | R66: 446 | S66: 0.1412556054
A67: Team G | B67: Medge | C67: Product 2 | D67: 2014-06-01 | E67: Hawaii | F67: 7.9 | G67: 6.9 | H67: 0.6 | I67: 15 | J67: 1.898734177 | K67: 510 | L67: 64.55696203 | M67: 392 | N67: 27 | O67: 30 | P67: 30 | Q67: 12 | R67: =SUM(M67:Q67) -> 491 | S67: =SUM(N67:O67)/R67 -> 0.116089613
A68: Team G | B68: Dana | C68: Product 1 | D68: 2014-06-01 | E68: Alabama | F68: 7.6 | G68: 6.6 | H68: 0.5 | I68: 22 | J68: 2.894736842 | K68: 748 | L68: 98.42105263 | M68: 396 | N68: 27 | O68: 30 | P68: 38 | Q68: 15 | R68: 506 | S68: 0.1126482213
A69: Team G | B69: Regina | C69: Product 2 | D69: 2014-06-01 | E69: California | F69: 7 | G69: 6 | H69: 0.7 | I69: 20 | J69: 2.857142857 | K69: 680 | L69: 97.14285714 | M69: 372 | N69: 21 | O69: 39 | P69: 35 | Q69: 13 | R69: 480 | S69: 0.125
A70: Team G | B70: Kirby | C70: Product 1 | D70: 2014-06-01 | E70: Colorado | F70: 7.5 | G70: 6.5 | H70: 0.3 | I70: 16 | J70: 2.133333333 | K70: 544 | L70: 72.53333333 | M70: 352 | N70: 23 | O70: 39 | P70: 32 | Q70: 14 | R70: 460 | S70: 0.1347826087
A71: Team G | B71: Rae | C71: Product 2 | D71: 2014-06-01 | E71: Connecticut | F71: 8 | G71: 7 | H71: 0.8 | I71: 25 | J71: 3.125 | K71: 850 | L71: 106.25 | M71: 373 | N71: 28 | O71: 31 | P71: 40 | Q71: 10 | R71: 482 | S71: 0.122406639
A72: Team H | B72: Frances | C72: Product 1 | D72: 2014-06-01 | E72: Florida | F72: 8.3 | G72: 7.3 | H72: 0.2 | I72: 16 | J72: 1.927710843 | K72: 544 | L72: 65.54216867 | M72: 394 | N72: 27 | O72: 37 | P72: 37 | Q72: 10 | R72: 505 | S72: 0.1267326733
A73: Team H | B73: Xerxes | C73: Product 2 | D73: 2014-06-01 | E73: Hawaii | F73: 7.3 | G73: 6.3 | H73: 0.6 | I73: 24 | J73: 3.287671233 | K73: 816 | L73: 111.7808219 | M73: 303 | N73: 29 | O73: 38 | P73: 32 | Q73: 13 | R73: 415 | S73: 0.1614457831
A74: Team H | B74: Carolyn | C74: Product 1 | D74: 2014-06-01 | E74: Alabama | F74: 7.9 | G74: 6.9 | H74: 0.5 | I74: 23 | J74: 2.911392405 | K74: 782 | L74: 98.98734177 | M74: 382 | N74: 23 | O74: 33 | P74: 33 | Q74: 11 | R74: 482 | S74: 0.1161825726
A75: Team H | B75: Zenia | C75: Product 2 | D75: 2014-06-01 | E75: California | F75: 7.6 | G75: 6.6 | H75: 0.7 | I75: 21 | J75: 2.763157895 | K75: 714 | L75: 93.94736842 | M75: 316 | N75: 28 | O75: 36 | P75: 35 | Q75: 11 | R75: 426 | S75: 0.1502347418
A76: Team H | B76: Phyllis | C76: Product 1 | D76: 2014-06-01 | E76: Colorado | F76: 7 | G76: 6 | H76: 0.3 | I76: 17 | J76: 2.428571429 | K76: 578 | L76: 82.57142857 | M76: 334 | N76: 29 | O76: 31 | P76: 30 | Q76: 11 | R76: 435 | S76: 0.1379310345
A77: Team H | B77: Ashely | C77: Product 2 | D77: 2014-06-01 | E77: Connecticut | F77: 7.5 | G77: 6.5 | H77: 0.8 | I77: 21 | J77: 2.8 | K77: 714 | L77: 95.2 | M77: 391 | N77: 27 | O77: 31 | P77: 35 | Q77: 13 | R77: 497 | S77: 0.1167002012
A78: Team H | B78: Nomlanga | C78: Product 1 | D78: 2014-06-01 | E78: Florida | F78: 8 | G78: 7 | H78: 0.2 | I78: 23 | J78: 2.875 | K78: 782 | L78: 97.75 | M78: 368 | N78: 26 | O78: 31 | P78: 38 | Q78: 11 | R78: 474 | S78: 0.1202531646
A79: Team H | B79: Kirestin | C79: Product 2 | D79: 2014-06-01 | E79: Hawaii | F79: 8.3 | G79: 7.3 | H79: 0.6 | I79: 16 | J79: 1.927710843 | K79: 544 | L79: 65.54216867 | M79: 376 | N79: 25 | O79: 36 | P79: 33 | Q79: 11 | R79: 481 | S79: 0.1268191268
A80: Team H | B80: Serena | C80: Product 1 | D80: 2014-06-01 | E80: Alabama | F80: 7.3 | G80: 6.3 | H80: 0.5 | I80: 15 | J80: 2.054794521 | K80: 510 | L80: 69.8630137 | M80: 359 | N80: 25 | O80: 37 | P80: 34 | Q80: 10 | R80: 465 | S80: 0.1333333333
A81: Team H | B81: Hilary | C81: Product 2 | D81: 2014-06-01 | E81: California | F81: 7.9 | G81: 6.9 | H81: 0.7 | I81: 19 | J81: 2.405063291 | K81: 646 | L81: 81.7721519 | M81: 302 | N81: 28 | O81: 32 | P81: 34 | Q81: 15 | R81: 411 | S81: 0.1459854015
A82: Team I | B82: Gretchen | C82: Product 1 | D82: 2014-06-01 | E82: Colorado | F82: 7.6 | G82: 6.6 | H82: 0.3 | I82: 17 | J82: 2.236842105 | K82: 578 | L82: 76.05263158 | M82: 323 | N82: 27 | O82: 38 | P82: 36 | Q82: 11 | R82: 435 | S82: 0.1494252874
A83: Team I | B83: Giselle | C83: Product 2 | D83: 2014-06-01 | E83: Connecticut | F83: 7 | G83: 6 | H83: 0.8 | I83: 16 | J83: 2.285714286 | K83: 544 | L83: 77.71428571 | M83: 400 | N83: 30 | O83: 32 | P83: 38 | Q83: 15 | R83: 515 | S83: 0.1203883495
A84: Team I | B84: Galena | C84: Product 1 | D84: 2014-06-01 | E84: Florida | F84: 7.5 | G84: 6.5 | H84: 0.2 | I84: 17 | J84: 2.266666667 | K84: 578 | L84: 77.06666667 | M84: 397 | N84: 29 | O84: 31 | P84: 32 | Q84: 10 | R84: 499 | S84: 0.120240481
A85: Team I | B85: Calista | C85: Product 2 | D85: 2014-06-01 | E85: Hawaii | F85: 8 | G85: 7 | H85: 0.6 | I85: 15 | J85: 1.875 | K85: 510 | L85: 63.75 | M85: 327 | N85: 27 | O85: 33 | P85: 37 | Q85: 13 | R85: 437 | S85: 0.1372997712
A86: Team I | B86: Juliet | C86: Product 1 | D86: 2014-06-01 | E86: Alabama | F86: 8.3 | G86: 7.3 | H86: 0.5 | I86: 24 | J86: 2.891566265 | K86: 816 | L86: 98.31325301 | M86: 327 | N86: 20 | O86: 34 | P86: 32 | Q86: 10 | R86: 423 | S86: 0.1276595745
A87: Team I | B87: Karyn | C87: Product 2 | D87: 2014-06-01 | E87: California | F87: 7.3 | G87: 6.3 | H87: 0.7 | I87: 19 | J87: 2.602739726 | K87: 646 | L87: 88.49315068 | M87: 317 | N87: 25 | O87: 32 | P87: 38 | Q87: 13 | R87: 425 | S87: 0.1341176471
A88: Team I | B88: Noelani | C88: Product 1 | D88: 2014-06-01 | E88: Colorado | F88: 7.9 | G88: 6.9 | H88: 0.3 | I88: 16 | J88: 2.025316456 | K88: 544 | L88: 68.86075949 | M88: 365 | N88: 30 | O88: 35 | P88: 33 | Q88: 14 | R88: 477 | S88: 0.1362683438
A89: Team I | B89: Portia | C89: Product 2 | D89: 2014-06-01 | E89: Connecticut | F89: 7.6 | G89: 6.6 | H89: 0.8 | I89: 16 | J89: 2.105263158 | K89: 544 | L89: 71.57894737 | M89: 396 | N89: 25 | O89: 39 | P89: 37 | Q89: 11 | R89: 508 | S89: 0.125984252
A90: Team I | B90: Melodie | C90: Product 1 | D90: 2014-06-01 | E90: Florida | F90: 7 | G90: 6 | H90: 0.2 | I90: 23 | J90: 3.285714286 | K90: 782 | L90: 111.7142857 | M90: 319 | N90: 27 | O90: 38 | P90: 40 | Q90: 13 | R90: 437 | S90: 0.1487414188
A91: Team I | B91: Yolanda | C91: Product 2 | D91: 2014-06-01 | E91: Hawaii | F91: 7.5 | G91: 6.5 | H91: 0.6 | I91: 21 | J91: 2.8 | K91: 714 | L91: 95.2 | M91: 329 | N91: 24 | O91: 32 | P91: 33 | Q91: 14 | R91: 432 | S91: 0.1296296296
A92: Team I | B92: Serina | C92: Product 1 | D92: 2014-06-01 | E92: Alabama | F92: 8 | G92: 7 | H92: 0.5 | I92: 25 | J92: 3.125 | K92: 850 | L92: 106.25 | M92: 333 | N92: 29 | O92: 34 | P92: 35 | Q92: 12 | R92: 443 | S92: 0.1422121896
A93: Team J | B93: Jena | C93: Product 2 | D93: 2014-06-01 | E93: California | F93: 8.3 | G93: 7.3 | H93: 0.7 | I93: 22 | J93: 2.65060241 | K93: 748 | L93: 90.12048193 | M93: 386 | N93: 20 | O93: 39 | P93: 38 | Q93: 12 | R93: 495 | S93: 0.1191919192
A94: Team J | B94: Fleur | C94: Product 1 | D94: 2014-06-01 | E94: Colorado | F94: 7.3 | G94: 6.3 | H94: 0.3 | I94: 24 | J94: 3.287671233 | K94: 816 | L94: 111.7808219 | M94: 329 | N94: 26 | O94: 36 | P94: 39 | Q94: 10 | R94: 440 | S94: 0.1409090909
A95: Team J | B95: Illiana | C95: Product 2 | D95: 2014-06-01 | E95: Connecticut | F95: 7.9 | G95: 6.9 | H95: 0.8 | I95: 22 | J95: 2.784810127 | K95: 748 | L95: 94.6835443 | M95: 332 | N95: 22 | O95: 39 | P95: 32 | Q95: 11 | R95: 436 | S95: 0.1399082569
A96: Team J | B96: Jeremy | C96: Product 1 | D96: 2014-06-01 | E96: Florida | F96: 7.6 | G96: 6.6 | H96: 0.2 | I96: 15 | J96: 1.973684211 | K96: 510 | L96: 67.10526316 | M96: 384 | N96: 21 | O96: 37 | P96: 39 | Q96: 11 | R96: 492 | S96: 0.1178861789
A97: Team J | B97: Oscar | C97: Product 2 | D97: 2014-06-01 | E97: Hawaii | F97: 7 | G97: 6 | H97: 0.6 | I97: 17 | J97: 2.428571429 | K97: 578 | L97: 82.57142857 | M97: 327 | N97: 21 | O97: 38 | P97: 36 | Q97: 12 | R97: 434 | S97: 0.1359447005
A98: Team J | B98: Luke | C98: Product 1 | D98: 2014-06-01 | E98: Alabama | F98: 7.5 | G98: 6.5 | H98: 0.5 | I98: 20 | J98: 2.666666667 | K98: 680 | L98: 90.66666667 | M98: 396 | N98: 24 | O98: 39 | P98: 31 | Q98: 10 | R98: 500 | S98: 0.126
A99: Team J | B99: Addison | C99: Product 2 | D99: 2014-06-01 | E99: California | F99: 8 | G99: 7 | H99: 0.7 | I99: 18 | J99: 2.25 | K99: 612 | L99: 76.5 | M99: 350 | N99: 29 | O99: 30 | P99: 32 | Q99: 12 | R99: 453 | S99: 0.1302428256
A100: Team J | B100: Alec | C100: Product 1 | D100: 2014-06-01 | E100: Colorado | F100: 8.3 | G100: 7.3 | H100: 0.3 | I100: 21 | J100: 2.530120482 | K100: 714 | L100: 86.02409639 | M100: 300 | N100: 23 | O100: 39 | P100: 34 | Q100: 14 | R100: 410 | S100: 0.1512195122
A101: Team J | B101: Rafael | C101: Product 2 | D101: 2014-06-01 | E101: Connecticut | F101: 7.3 | G101: 6.3 | H101: 0.8 | I101: 15 | J101: 2.054794521 | K101: 510 | L101: 69.8630137 | M101: 316 | N101: 29 | O101: 35 | P101: 33 | Q101: 10 | R101: 423 | S101: 0.1513002364
A102: Team J | B102: Hoyt | C102: Product 1 | D102: 2014-06-01 | E102: Florida | F102: 7.6 | G102: 6.6 | H102: 0.2 | I102: 15 | J102: 1.973684211 | K102: 510 | L102: 67.10526316 | M102: 384 | N102: 21 | O102: 37 | P102: 39 | Q102: 11 | R102: 492 | S102: 0.1178861789
A103: Team J | B103: Abel | C103: Product 2 | D103: 2014-06-01 | E103: Hawaii | F103: 7 | G103: 6 | H103: 0.6 | I103: 17 | J103: 2.428571429 | K103: 578 | L103: 82.57142857 | M103: 327 | N103: 21 | O103: 38 | P103: 36 | Q103: 12 | R103: 434 | S103: 0.1359447005

Sheet Dashboard
A1: Cobrahouse Computers, Inc. 2011/2012 Sales Dashboard
A2: Total Sales | B2: by Customer Type
A3: =MID(B2,4,25) -> Customer Type | B3: Total Sales
A4: Full-time Employee | B4: 237110
A5: Maintstream Youth | B5: 236950
A6: NPO/NGO | B6: 235282
A7: Military | B7: 235131
A8: Post Graduate Student | B8: 234674
A9: Full-time Parent | B9: 229290
A10: Self-Employed | B10: 225617
A11: Corporation | B11: 225552
A12: Government | B12: 225304
A13: College Student | B13: 224129
A14: Retired | B14: 220798
A15: Business Owner | B15: 218346
A17: Quarterly Sales by Product | C17: All Regions
J24: USA Regions

Sheet Sales Dashboard
E1: Sales | AC1: Additional Columns
A2: Region | B2: Product | C2: Customer Type0 | D2: Sales Person - Name | E2: 2011-01-01 | F2: 2011-02-01 | G2: 2011-03-01 | H2: 2011-04-01 | I2: 2011-05-01 | J2: 2011-06-01 | K2: 2011-07-01 | L2: 2011-08-01 | M2: 2011-09-01 | N2: 2011-10-01 | O2: 2011-11-01 | P2: 2011-12-01 | Q2: 2012-01-01 | R2: 2012-02-01 | S2: 2012-03-01 | T2: 2012-04-01 | U2: 2012-05-01 | V2: 2012-06-01 | W2: 2012-07-01 | X2: 2012-08-01 | Y2: 2012-09-01 | Z2: 2012-10-01 | AA2: 2012-11-01 | AB2: 2012-12-01 | AC2: Total | AD2: Product Name | AE2: Customer Type | AF2: Salesperson | AG2: Q1 2011 | AH2: Q2 2011 | AI2: Q3 2011 | AJ2: Q4 2011 | AK2: Q1 2012 | AL2: Q2 2012 | AM2: Q3 2012 | AN2: Q4 2012
A3: Region 1 | B3: Product 1 | C3: Customer 1 | D3: Person 1 | E3: 717 | F3: 641 | G3: 654 | H3: 752 | I3: 595 | J3: 769 | K3: 793 | L3: 710 | M3: 564 | N3: 677 | O3: 619 | P3: 723 | Q3: 639 | R3: 757 | S3: 746 | T3: 758 | U3: 562 | V3: 563 | W3: 782 | X3: 559 | Y3: 640 | Z3: 669 | AA3: 774 | AB3: 692 | AC3: =SUM(E3:AB3) -> 16355 | AD3: =VLOOKUP(B3,Lkup!$A$2:$B$100,2,FALSE) -> Touchscreen Laptop | AE3: =VLOOKUP(C3,Lkup!$A$2:$B$100,2,FALSE) -> College Student | AF3: =VLOOKUP(D3,Lkup!$A$2:$B$100,2,FALSE) -> Bo Kornegay | AG3: =SUM(E3:G3) -> 2012 | AH3: =SUM(H3:J3) -> 2116 | AI3: =SUM(K3:M3) -> 2067 | AJ3: =SUM(N3:P3) -> 2019 | AK3: =SUM(Q3:S3) -> 2142 | AL3: =SUM(T3:V3) -> 1883 | AM3: =SUM(W3:Y3) -> 1981 | AN3: =SUM(Z3:AB3) -> 2135
A4: Region 1 | B4: Product 1 | C4: Customer 2 | D4: Person 2 | E4: 1400 | F4: 1220 | G4: 1114 | H4: 899 | I4: 1351 | J4: 835 | K4: 873 | L4: 909 | M4: 888 | N4: 1278 | O4: 1350 | P4: 1348 | Q4: 931 | R4: 1298 | S4: 1164 | T4: 800 | U4: 903 | V4: 958 | W4: 836 | X4: 909 | Y4: 853 | Z4: 918 | AA4: 1223 | AB4: 886 | AC4: =SUM(E4:AB4) -> 25144 | AD4: =VLOOKUP(B4,Lkup!$A$2:$B$100,2,FALSE) -> Touchscreen Laptop | AE4: =VLOOKUP(C4,Lkup!$A$2:$B$100,2,FALSE) -> Post Graduate Student | AF4: =VLOOKUP(D4,Lkup!$A$2:$B$100,2,FALSE) -> Britta Blakley | AG4: =SUM(E4:G4) -> 3734 | AH4: =SUM(H4:J4) -> 3085 | AI4: =SUM(K4:M4) -> 2670 | AJ4: =SUM(N4:P4) -> 3976 | AK4: =SUM(Q4:S4) -> 3393 | AL4: =SUM(T4:V4) -> 2661 | AM4: =SUM(W4:Y4) -> 2598 | AN4: =SUM(Z4:AB4) -> 3027
A5: Region 1 | B5: Product 1 | C5: Customer 3 | D5: Person 3 | E5: 696 | F5: 643 | G5: 644 | H5: 596 | I5: 645 | J5: 649 | K5: 612 | L5: 675 | M5: 794 | N5: 591 | O5: 709 | P5: 561 | Q5: 733 | R5: 771 | S5: 792 | T5: 577 | U5: 586 | V5: 727 | W5: 678 | X5: 753 | Y5: 652 | Z5: 689 | AA5: 767 | AB5: 643 | AC5: 16183 | AD5: =VLOOKUP(B5,Lkup!$A$2:$B$100,2,FALSE) -> Touchscreen Laptop | AE5: =VLOOKUP(C5,Lkup!$A$2:$B$100,2,FALSE) -> Full-time Parent | AF5: =VLOOKUP(D5,Lkup!$A$2:$B$100,2,FALSE) -> Brock Stalder | AG5: 1983 | AH5: 1890 | AI5: 2081 | AJ5: 1861 | AK5: 2296 | AL5: 1890 | AM5: 2083 | AN5: 2099
A6: Region 1 | B6: Product 1 | C6: Customer 4 | D6: Person 4 | E6: 732 | F6: 628 | G6: 628 | H6: 667 | I6: 819 | J6: 640 | K6: 850 | L6: 755 | M6: 612 | N6: 644 | O6: 622 | P6: 881 | Q6: 854 | R6: 766 | S6: 713 | T6: 784 | U6: 667 | V6: 711 | W6: 733 | X6: 677 | Y6: 637 | Z6: 815 | AA6: 756 | AB6: 693 | AC6: 17284 | AD6: =VLOOKUP(B6,Lkup!$A$2:$B$100,2,FALSE) -> Touchscreen Laptop | AE6: =VLOOKUP(C6,Lkup!$A$2:$B$100,2,FALSE) -> Self-Employed | AF6: =VLOOKUP(D6,Lkup!$A$2:$B$100,2,FALSE) -> Catherine Shoaff | AG6: 1988 | AH6: 2126 | AI6: 2217 | AJ6: 2147 | AK6: 2333 | AL6: 2162 | AM6: 2047 | AN6: 2264
A7: Region 1 | B7: Product 1 | C7: Customer 5 | D7: Person 5 | E7: 607 | F7: 602 | G7: 636 | H7: 869 | I7: 847 | J7: 806 | K7: 895 | L7: 835 | M7: 843 | N7: 799 | O7: 834 | P7: 785 | Q7: 744 | R7: 858 | S7: 799 | T7: 677 | U7: 867 | V7: 605 | W7: 828 | X7: 620 | Y7: 655 | Z7: 704 | AA7: 784 | AB7: 635 | AC7: 18134 | AD7: =VLOOKUP(B7,Lkup!$A$2:$B$100,2,FALSE) -> Touchscreen Laptop | AE7: =VLOOKUP(C7,Lkup!$A$2:$B$100,2,FALSE) -> Full-time Employee | AF7: =VLOOKUP(D7,Lkup!$A$2:$B$100,2,FALSE) -> Fermin Quin | AG7: 1845 | AH7: 2522 | AI7: 2573 | AJ7: 2418 | AK7: 2401 | AL7: 2149 | AM7: 2103 | AN7: 2123
A8: Region 1 | B8: Product 1 | C8: Customer 6 | D8: Person 6 | E8: 800 | F8: 607 | G8: 737 | H8: 621 | I8: 660 | J8: 733 | K8: 743 | L8: 666 | M8: 630 | N8: 644 | O8: 617 | P8: 695 | Q8: 653 | R8: 648 | S8: 788 | T8: 731 | U8: 710 | V8: 745 | W8: 788 | X8: 756 | Y8: 627 | Z8: 669 | AA8: 731 | AB8: 650 | AC8: 16649 | AD8: =VLOOKUP(B8,Lkup!$A$2:$B$100,2,FALSE) -> Touchscreen Laptop | AE8: =VLOOKUP(C8,Lkup!$A$2:$B$100,2,FALSE) -> Business Owner | AF8: =VLOOKUP(D8,Lkup!$A$2:$B$100,2,FALSE) -> Glenda Harbaugh | AG8: 2144 | AH8: 2014 | AI8: 2039 | AJ8: 1956 | AK8: 2089 | AL8: 2186 | AM8: 2171 | AN8: 2050
A9: Region 1 | B9: Product 1 | C9: Customer 7 | D9: Person 7 | E9: 1064 | F9: 863 | G9: 1316 | H9: 1141 | I9: 933 | J9: 872 | K9: 1185 | L9: 1358 | M9: 1173 | N9: 1343 | O9: 1164 | P9: 1275 | Q9: 1364 | R9: 828 | S9: 1299 | T9: 863 | U9: 910 | V9: 1146 | W9: 915 | X9: 941 | Y9: 1093 | Z9: 1224 | AA9: 938 | AB9: 946 | AC9: 26154 | AD9: =VLOOKUP(B9,Lkup!$A$2:$B$100,2,FALSE) -> Touchscreen Laptop | AE9: =VLOOKUP(C9,Lkup!$A$2:$B$100,2,FALSE) -> Maintstream Youth | AF9: =VLOOKUP(D9,Lkup!$A$2:$B$100,2,FALSE) -> Jarrett Rimmer | AG9: 3243 | AH9: 2946 | AI9: 3716 | AJ9: 3782 | AK9: 3491 | AL9: 2919 | AM9: 2949 | AN9: 3108
A10: Region 1 | B10: Product 1 | C10: Customer 8 | D10: Person 8 | E10: 667 | F10: 609 | G10: 780 | H10: 559 | I10: 673 | J10: 727 | K10: 730 | L10: 550 | M10: 787 | N10: 609 | O10: 762 | P10: 604 | Q10: 555 | R10: 747 | S10: 640 | T10: 649 | U10: 565 | V10: 725 | W10: 602 | X10: 594 | Y10: 799 | Z10: 721 | AA10: 786 | AB10: 589 | AC10: 16029 | AD10: =VLOOKUP(B10,Lkup!$A$2:$B$100,2,FALSE) -> Touchscreen Laptop | AE10: =VLOOKUP(C10,Lkup!$A$2:$B$100,2,FALSE) -> Retired | AF10: =VLOOKUP(D10,Lkup!$A$2:$B$100,2,FALSE) -> Li Bruni | AG10: 2056 | AH10: 1959 | AI10: 2067 | AJ10: 1975 | AK10: 1942 | AL10: 1939 | AM10: 1995 | AN10: 2096
A11: Region 1 | B11: Product 1 | C11: Customer 9 | D11: Person 9 | E11: 890 | F11: 751 | G11: 645 | H11: 807 | I11: 845 | J11: 820 | K11: 832 | L11: 771 | M11: 724 | N11: 696 | O11: 657 | P11: 899 | Q11: 693 | R11: 705 | S11: 749 | T11: 758 | U11: 774 | V11: 652 | W11: 801 | X11: 815 | Y11: 649 | Z11: 638 | AA11: 615 | AB11: 896 | AC11: 18082 | AD11: =VLOOKUP(B11,Lkup!$A$2:$B$100,2,FALSE) -> Touchscreen Laptop | AE11: =VLOOKUP(C11,Lkup!$A$2:$B$100,2,FALSE) -> Government | AF11: =VLOOKUP(D11,Lkup!$A$2:$B$100,2,FALSE) -> Linwood Camargo | AG11: 2286 | AH11: 2472 | AI11: 2327 | AJ11: 2252 | AK11: 2147 | AL11: 2184 | AM11: 2265 | AN11: 2149
A12: Region 1 | B12: Product 1 | C12: Customer 10 | D12: Person 10 | E12: 711 | F12: 624 | G12: 804 | H12: 885 | I12: 873 | J12: 628 | K12: 666 | L12: 648 | M12: 879 | N12: 779 | O12: 782 | P12: 605 | Q12: 830 | R12: 775 | S12: 895 | T12: 707 | U12: 826 | V12: 719 | W12: 845 | X12: 615 | Y12: 839 | Z12: 779 | AA12: 822 | AB12: 866 | AC12: 18402 | AD12: =VLOOKUP(B12,lookup,2,FALSE) -> Touchscreen Laptop | AE12: =VLOOKUP(C12,lookup,2,FALSE) -> Military | AF12: =VLOOKUP(D12,lookup,2,FALSE) -> Norene McNeece | AG12: 2139 | AH12: 2386 | AI12: 2193 | AJ12: 2166 | AK12: 2500 | AL12: 2252 | AM12: 2299 | AN12: 2467
A13: Region 1 | B13: Product 1 | C13: Customer 11 | D13: Person 11 | E13: 651 | F13: 788 | G13: 748 | H13: 703 | I13: 701 | J13: 692 | K13: 771 | L13: 738 | M13: 646 | N13: 608 | O13: 786 | P13: 737 | Q13: 603 | R13: 604 | S13: 632 | T13: 680 | U13: 729 | V13: 756 | W13: 795 | X13: 772 | Y13: 663 | Z13: 768 | AA13: 735 | AB13: 683 | AC13: 16989 | AD13: Touchscreen Laptop | AE13: Corporation | AF13: Rick Boehm | AG13: 2187 | AH13: 2096 | AI13: 2155 | AJ13: 2131 | AK13: 1839 | AL13: 2165 | AM13: 2230 | AN13: 2186
A14: Region 1 | B14: Product 1 | C14: Customer 12 | D14: Person 12 | E14: 1075 | F14: 1154 | G14: 866 | H14: 1055 | I14: 990 | J14: 1364 | K14: 934 | L14: 1193 | M14: 1161 | N14: 1323 | O14: 1060 | P14: 1058 | Q14: 1117 | R14: 944 | S14: 1004 | T14: 1172 | U14: 1074 | V14: 1283 | W14: 840 | X14: 1050 | Y14: 1031 | Z14: 852 | AA14: 1192 | AB14: 1113 | AC14: 25905 | AD14: Touchscreen Laptop | AE14: NPO/NGO | AF14: Sueann Olivero | AG14: 3095 | AH14: 3409 | AI14: 3288 | AJ14: 3441 | AK14: 3065 | AL14: 3529 | AM14: 2921 | AN14: 3157
A15: Region 1 | B15: Product 2 | C15: Customer 1 | D15: Person 1 | E15: 580 | F15: 682 | G15: 641 | H15: 761 | I15: 759 | J15: 787 | K15: 595 | L15: 654 | M15: 763 | N15: 591 | O15: 639 | P15: 722 | Q15: 745 | R15: 685 | S15: 678 | T15: 641 | U15: 600 | V15: 690 | W15: 766 | X15: 783 | Y15: 662 | Z15: 592 | AA15: 636 | AB15: 711 | AC15: 16363 | AD15: Hybrid Laptop | AE15: College Student | AF15: Bo Kornegay | AG15: 1903 | AH15: 2307 | AI15: 2012 | AJ15: 1952 | AK15: 2108 | AL15: 1931 | AM15: 2211 | AN15: 1939
A16: Region 1 | B16: Product 2 | C16: Customer 2 | D16: Person 2 | E16: 756 | F16: 790 | G16: 609 | H16: 886 | I16: 656 | J16: 620 | K16: 668 | L16: 786 | M16: 755 | N16: 738 | O16: 742 | P16: 655 | Q16: 793 | R16: 647 | S16: 653 | T16: 856 | U16: 687 | V16: 744 | W16: 874 | X16: 795 | Y16: 881 | Z16: 806 | AA16: 772 | AB16: 883 | AC16: 18052 | AD16: Hybrid Laptop | AE16: Post Graduate Student | AF16: Britta Blakley | AG16: 2155 | AH16: 2162 | AI16: 2209 | AJ16: 2135 | AK16: 2093 | AL16: 2287 | AM16: 2550 | AN16: 2461
A17: Region 1 | B17: Product 2 | C17: Customer 3 | D17: Person 3 | E17: 779 | F17: 659 | G17: 813 | H17: 800 | I17: 859 | J17: 844 | K17: 714 | L17: 764 | M17: 881 | N17: 693 | O17: 739 | P17: 753 | Q17: 860 | R17: 872 | S17: 833 | T17: 833 | U17: 835 | V17: 870 | W17: 863 | X17: 896 | Y17: 775 | Z17: 867 | AA17: 617 | AB17: 702 | AC17: 19121 | AD17: Hybrid Laptop | AE17: Full-time Parent | AF17: Brock Stalder | AG17: 2251 | AH17: 2503 | AI17: 2359 | AJ17: 2185 | AK17: 2565 | AL17: 2538 | AM17: 2534 | AN17: 2186
A18: Region 1 | B18: Product 2 | C18: Customer 4 | D18: Person 4 | E18: 658 | F18: 681 | G18: 756 | H18: 717 | I18: 621 | J18: 766 | K18: 780 | L18: 712 | M18: 765 | N18: 620 | O18: 651 | P18: 619 | Q18: 682 | R18: 696 | S18: 749 | T18: 757 | U18: 735 | V18: 654 | W18: 729 | X18: 755 | Y18: 677 | Z18: 610 | AA18: 700 | AB18: 624 | AC18: 16714 | AD18: Hybrid Laptop | AE18: Self-Employed | AF18: Catherine Shoaff | AG18: 2095 | AH18: 2104 | AI18: 2257 | AJ18: 1890 | AK18: 2127 | AL18: 2146 | AM18: 2161 | AN18: 1934
A19: Region 1 | B19: Product 2 | C19: Customer 5 | D19: Person 5 | E19: 1230 | F19: 817 | G19: 1030 | H19: 1078 | I19: 1093 | J19: 1172 | K19: 1323 | L19: 1053 | M19: 1121 | N19: 1301 | O19: 1103 | P19: 1190 | Q19: 1248 | R19: 1007 | S19: 1003 | T19: 908 | U19: 830 | V19: 1107 | W19: 800 | X19: 1117 | Y19: 1189 | Z19: 1352 | AA19: 1084 | AB19: 1012 | AC19: 26168 | AD19: Hybrid Laptop | AE19: Full-time Employee | AF19: Fermin Quin | AG19: 3077 | AH19: 3343 | AI19: 3497 | AJ19: 3594 | AK19: 3258 | AL19: 2845 | AM19: 3106 | AN19: 3448
A20: Region 1 | B20: Product 2 | C20: Customer 6 | D20: Person 6 | E20: 727 | F20: 586 | G20: 583 | H20: 673 | I20: 706 | J20: 610 | K20: 645 | L20: 556 | M20: 560 | N20: 646 | O20: 658 | P20: 592 | Q20: 630 | R20: 576 | S20: 657 | T20: 574 | U20: 586 | V20: 600 | W20: 625 | X20: 568 | Y20: 597 | Z20: 698 | AA20: 588 | AB20: 596 | AC20: 14837 | AD20: Hybrid Laptop | AE20: Business Owner | AF20: Glenda Harbaugh | AG20: 1896 | AH20: 1989 | AI20: 1761 | AJ20: 1896 | AK20: 1863 | AL20: 1760 | AM20: 1790 | AN20: 1882
A21: Region 1 | B21: Product 2 | C21: Customer 7 | D21: Person 7 | E21: 642 | F21: 778 | G21: 843 | H21: 881 | I21: 726 | J21: 850 | K21: 827 | L21: 759 | M21: 721 | N21: 618 | O21: 757 | P21: 899 | Q21: 632 | R21: 853 | S21: 824 | T21: 833 | U21: 880 | V21: 787 | W21: 760 | X21: 726 | Y21: 637 | Z21: 669 | AA21: 844 | AB21: 875 | AC21: 18621 | AD21: Hybrid Laptop | AE21: Maintstream Youth | AF21: Jarrett Rimmer | AG21: 2263 | AH21: 2457 | AI21: 2307 | AJ21: 2274 | AK21: 2309 | AL21: 2500 | AM21: 2123 | AN21: 2388
A22: Region 1 | B22: Product 2 | C22: Customer 8 | D22: Person 8 | E22: 888 | F22: 697 | G22: 861 | H22: 701 | I22: 748 | J22: 779 | K22: 850 | L22: 744 | M22: 720 | N22: 613 | O22: 651 | P22: 870 | Q22: 651 | R22: 871 | S22: 870 | T22: 725 | U22: 691 | V22: 848 | W22: 689 | X22: 847 | Y22: 615 | Z22: 706 | AA22: 755 | AB22: 754 | AC22: 18144 | AD22: Hybrid Laptop | AE22: Retired | AF22: Li Bruni | AG22: 2446 | AH22: 2228 | AI22: 2314 | AJ22: 2134 | AK22: 2392 | AL22: 2264 | AM22: 2151 | AN22: 2215
A23: Region 1 | B23: Product 2 | C23: Customer 9 | D23: Person 9 | E23: 605 | F23: 749 | G23: 605 | H23: 729 | I23: 600 | J23: 795 | K23: 695 | L23: 680 | M23: 606 | N23: 782 | O23: 765 | P23: 774 | Q23: 767 | R23: 705 | S23: 740 | T23: 627 | U23: 696 | V23: 615 | W23: 693 | X23: 626 | Y23: 625 | Z23: 712 | AA23: 710 | AB23: 728 | AC23: 16629 | AD23: Hybrid Laptop | AE23: Government | AF23: Linwood Camargo | AG23: 1959 | AH23: 2124 | AI23: 1981 | AJ23: 2321 | AK23: 2212 | AL23: 1938 | AM23: 1944 | AN23: 2150
A24: Region 1 | B24: Product 2 | C24: Customer 10 | D24: Person 10 | E24: 1073 | F24: 1161 | G24: 905 | H24: 1017 | I24: 895 | J24: 1224 | K24: 1130 | L24: 1314 | M24: 1213 | N24: 1254 | O24: 942 | P24: 903 | Q24: 870 | R24: 1151 | S24: 807 | T24: 878 | U24: 1325 | V24: 804 | W24: 905 | X24: 1057 | Y24: 1193 | Z24: 1375 | AA24: 923 | AB24: 1093 | AC24: 25412 | AD24: Hybrid Laptop | AE24: Military | AF24: Norene McNeece | AG24: 3139 | AH24: 3136 | AI24: 3657 | AJ24: 3099 | AK24: 2828 | AL24: 3007 | AM24: 3155 | AN24: 3391
A25: Region 1 | B25: Product 2 | C25: Customer 11 | D25: Person 11 | E25: 689 | F25: 688 | G25: 737 | H25: 759 | I25: 581 | J25: 608 | K25: 576 | L25: 704 | M25: 789 | N25: 617 | O25: 743 | P25: 684 | Q25: 617 | R25: 554 | S25: 638 | T25: 611 | U25: 614 | V25: 697 | W25: 721 | X25: 691 | Y25: 771 | Z25: 570 | AA25: 704 | AB25: 764 | AC25: 16127 | AD25: Hybrid Laptop | AE25: Corporation | AF25: Rick Boehm | AG25: 2114 | AH25: 1948 | AI25: 2069 | AJ25: 2044 | AK25: 1809 | AL25: 1922 | AM25: 2183 | AN25: 2038
A26: Region 1 | B26: Product 2 | C26: Customer 12 | D26: Person 12 | E26: 715 | F26: 636 | G26: 679 | H26: 832 | I26: 780 | J26: 711 | K26: 879 | L26: 660 | M26: 880 | N26: 737 | O26: 602 | P26: 735 | Q26: 684 | R26: 721 | S26: 838 | T26: 806 | U26: 855 | V26: 872 | W26: 605 | X26: 675 | Y26: 802 | Z26: 662 | AA26: 600 | AB26: 721 | AC26: 17687 | AD26: Hybrid Laptop | AE26: NPO/NGO | AF26: Sueann Olivero | AG26: 2030 | AH26: 2323 | AI26: 2419 | AJ26: 2074 | AK26: 2243 | AL26: 2533 | AM26: 2082 | AN26: 1983
A27: Region 1 | B27: Product 3 | C27: Customer 1 | D27: Person 1 | E27: 637 | F27: 646 | G27: 671 | H27: 714 | I27: 744 | J27: 786 | K27: 784 | L27: 697 | M27: 636 | N27: 654 | O27: 760 | P27: 722 | Q27: 889 | R27: 631 | S27: 744 | T27: 834 | U27: 670 | V27: 853 | W27: 830 | X27: 827 | Y27: 650 | Z27: 696 | AA27: 631 | AB27: 851 | AC27: 17557 | AD27: Powerhouse Laptop | AE27: College Student | AF27: Bo Kornegay | AG27: 1954 | AH27: 2244 | AI27: 2117 | AJ27: 2136 | AK27: 2264 | AL27: 2357 | AM27: 2307 | AN27: 2178
A28: Region 1 | B28: Product 3 | C28: Customer 2 | D28: Person 2 | E28: 692 | F28: 716 | G28: 645 | H28: 726 | I28: 681 | J28: 601 | K28: 733 | L28: 627 | M28: 783 | N28: 614 | O28: 602 | P28: 705 | Q28: 756 | R28: 746 | S28: 623 | T28: 682 | U28: 780 | V28: 672 | W28: 679 | X28: 624 | Y28: 751 | Z28: 727 | AA28: 779 | AB28: 761 | AC28: 16705 | AD28: Powerhouse Laptop | AE28: Post Graduate Student | AF28: Britta Blakley | AG28: 2053 | AH28: 2008 | AI28: 2143 | AJ28: 1921 | AK28: 2125 | AL28: 2134 | AM28: 2054 | AN28: 2267
A29: Region 1 | B29: Product 3 | C29: Customer 3 | D29: Person 3 | E29: 1284 | F29: 1302 | G29: 1316 | H29: 1210 | I29: 823 | J29: 1206 | K29: 1253 | L29: 1043 | M29: 1223 | N29: 1400 | O29: 1094 | P29: 881 | Q29: 1006 | R29: 1045 | S29: 1173 | T29: 1102 | U29: 1065 | V29: 1363 | W29: 1132 | X29: 1212 | Y29: 1196 | Z29: 1189 | AA29: 962 | AB29: 1359 | AC29: 27839 | AD29: Powerhouse Laptop | AE29: Full-time Parent | AF29: Brock Stalder | AG29: 3902 | AH29: 3239 | AI29: 3519 | AJ29: 3375 | AK29: 3224 | AL29: 3530 | AM29: 3540 | AN29: 3510
A30: Region 1 | B30: Product 3 | C30: Customer 4 | D30: Person 4 | E30: 660 | F30: 750 | G30: 649 | H30: 652 | I30: 738 | J30: 694 | K30: 756 | L30: 551 | M30: 768 | N30: 647 | O30: 725 | P30: 780 | Q30: 608 | R30: 673 | S30: 752 | T30: 698 | U30: 642 | V30: 671 | W30: 575 | X30: 633 | Y30: 704 | Z30: 652 | AA30: 717 | AB30: 775 | AC30: 16470 | AD30: Powerhouse Laptop | AE30: Self-Employed | AF30: Catherine Shoaff | AG30: 2059 | AH30: 2084 | AI30: 2075 | AJ30: 2152 | AK30: 2033 | AL30: 2011 | AM30: 1912 | AN30: 2144
A31: Region 1 | B31: Product 3 | C31: Customer 5 | D31: Person 5 | E31: 880 | F31: 775 | G31: 830 | H31: 713 | I31: 825 | J31: 722 | K31: 779 | L31: 768 | M31: 715 | N31: 708 | O31: 664 | P31: 609 | Q31: 822 | R31: 630 | S31: 652 | T31: 732 | U31: 733 | V31: 849 | W31: 880 | X31: 848 | Y31: 850 | Z31: 788 | AA31: 768 | AB31: 612 | AC31: 18152 | AD31: Powerhouse Laptop | AE31: Full-time Employee | AF31: Fermin Quin | AG31: 2485 | AH31: 2260 | AI31: 2262 | AJ31: 1981 | AK31: 2104 | AL31: 2314 | AM31: 2578 | AN31: 2168
A32: Region 1 | B32: Product 3 | C32: Customer 6 | D32: Person 6 | E32: 804 | F32: 646 | G32: 608 | H32: 674 | I32: 698 | J32: 850 | K32: 617 | L32: 751 | M32: 655 | N32: 656 | O32: 673 | P32: 877 | Q32: 608 | R32: 794 | S32: 631 | T32: 743 | U32: 843 | V32: 800 | W32: 705 | X32: 860 | Y32: 686 | Z32: 896 | AA32: 663 | AB32: 779 | AC32: 17517 | AD32: Powerhouse Laptop | AE32: Business Owner | AF32: Glenda Harbaugh | AG32: 2058 | AH32: 2222 | AI32: 2023 | AJ32: 2206 | AK32: 2033 | AL32: 2386 | AM32: 2251 | AN32: 2338
A33: Region 1 | B33: Product 3 | C33: Customer 7 | D33: Person 7 | E33: 712 | F33: 663 | G33: 689 | H33: 778 | I33: 603 | J33: 785 | K33: 600 | L33: 776 | M33: 714 | N33: 785 | O33: 681 | P33: 762 | Q33: 634 | R33: 720 | S33: 780 | T33: 789 | U33: 644 | V33: 606 | W33: 683 | X33: 708 | Y33: 718 | Z33: 773 | AA33: 600 | AB33: 777 | AC33: 16980 | AD33: Powerhouse Laptop | AE33: Maintstream Youth | AF33: Jarrett Rimmer | AG33: 2064 | AH33: 2166 | AI33: 2090 | AJ33: 2228 | AK33: 2134 | AL33: 2039 | AM33: 2109 | AN33: 2150
A34: Region 1 | B34: Product 3 | C34: Customer 8 | D34: Person 8 | E34: 826 | F34: 1022 | G34: 1238 | H34: 993 | I34: 1219 | J34: 1107 | K34: 965 | L34: 867 | M34: 1205 | N34: 872 | O34: 892 | P34: 944 | Q34: 1281 | R34: 993 | S34: 1254 | T34: 1366 | U34: 834 | V34: 883 | W34: 898 | X34: 1255 | Y34: 1114 | Z34: 1137 | AA34: 900 | AB34: 1291 | AC34: 25356 | AD34: Powerhouse Laptop | AE34: Retired | AF34: Li Bruni | AG34: 3086 | AH34: 3319 | AI34: 3037 | AJ34: 2708 | AK34: 3528 | AL34: 3083 | AM34: 3267 | AN34: 3328
A35: Region 1 | B35: Product 3 | C35: Customer 9 | D35: Person 9 | E35: 786 | F35: 614 | G35: 706 | H35: 763 | I35: 695 | J35: 648 | K35: 728 | L35: 578 | M35: 680 | N35: 573 | O35: 701 | P35: 645 | Q35: 795 | R35: 763 | S35: 674 | T35: 628 | U35: 559 | V35: 702 | W35: 685 | X35: 663 | Y35: 550 | Z35: 708 | AA35: 680 | AB35: 776 | AC35: 16300 | AD35: Powerhouse Laptop | AE35: Government | AF35: Linwood Camargo | AG35: 2106 | AH35: 2106 | AI35: 1986 | AJ35: 1919 | AK35: 2232 | AL35: 1889 | AM35: 1898 | AN35: 2164
A36: Region 1 | B36: Product 3 | C36: Customer 10 | D36: Person 10 | E36: 800 | F36: 674 | G36: 757 | H36: 825 | I36: 779 | J36: 751 | K36: 693 | L36: 608 | M36: 675 | N36: 705 | O36: 892 | P36: 653 | Q36: 608 | R36: 619 | S36: 814 | T36: 823 | U36: 759 | V36: 740 | W36: 873 | X36: 731 | Y36: 796 | Z36: 866 | AA36: 773 | AB36: 878 | AC36: 18092 | AD36: Powerhouse Laptop | AE36: Military | AF36: Norene McNeece | AG36: 2231 | AH36: 2355 | AI36: 1976 | AJ36: 2250 | AK36: 2041 | AL36: 2322 | AM36: 2400 | AN36: 2517
A37: Region 1 | B37: Product 3 | C37: Customer 11 | D37: Person 11 | E37: 754 | F37: 664 | G37: 667 | H37: 787 | I37: 894 | J37: 740 | K37: 803 | L37: 883 | M37: 755 | N37: 708 | O37: 612 | P37: 730 | Q37: 832 | R37: 674 | S37: 771 | T37: 704 | U37: 867 | V37: 791 | W37: 747 | X37: 695 | Y37: 704 | Z37: 671 | AA37: 874 | AB37: 829 | AC37: 18156 | AD37: Powerhouse Laptop | AE37: Corporation | AF37: Rick Boehm | AG37: 2085 | AH37: 2421 | AI37: 2441 | AJ37: 2050 | AK37: 2277 | AL37: 2362 | AM37: 2146 | AN37: 2374
A38: Region 1 | B38: Product 3 | C38: Customer 12 | D38: Person 12 | E38: 782 | F38: 660 | G38: 631 | H38: 685 | I38: 646 | J38: 605 | K38: 701 | L38: 709 | M38: 699 | N38: 725 | O38: 725 | P38: 753 | Q38: 665 | R38: 645 | S38: 698 | T38: 682 | U38: 779 | V38: 757 | W38: 773 | X38: 778 | Y38: 726 | Z38: 652 | AA38: 776 | AB38: 724 | AC38: 16976 | AD38: Powerhouse Laptop | AE38: NPO/NGO | AF38: Sueann Olivero | AG38: 2073 | AH38: 1936 | AI38: 2109 | AJ38: 2203 | AK38: 2008 | AL38: 2218 | AM38: 2277 | AN38: 2152
A39: Region 2 | B39: Product 4 | C39: Customer 1 | D39: Person 1 | E39: 1194 | F39: 1397 | G39: 1397 | H39: 1064 | I39: 1211 | J39: 1183 | K39: 827 | L39: 1088 | M39: 1394 | N39: 1076 | O39: 1106 | P39: 1372 | Q39: 1107 | R39: 871 | S39: 910 | T39: 1305 | U39: 1054 | V39: 1122 | W39: 1314 | X39: 1360 | Y39: 801 | Z39: 1275 | AA39: 1316 | AB39: 918 | AC39: 27662 | AD39: Thin Laptop | AE39: College Student | AF39: Bo Kornegay | AG39: 3988 | AH39: 3458 | AI39: 3309 | AJ39: 3554 | AK39: 2888 | AL39: 3481 | AM39: 3475 | AN39: 3509
A40: Region 2 | B40: Product 4 | C40: Customer 2 | D40: Person 2 | E40: 733 | F40: 607 | G40: 647 | H40: 786 | I40: 719 | J40: 775 | K40: 567 | L40: 620 | M40: 577 | N40: 671 | O40: 689 | P40: 762 | Q40: 609 | R40: 780 | S40: 753 | T40: 590 | U40: 696 | V40: 695 | W40: 581 | X40: 739 | Y40: 564 | Z40: 598 | AA40: 634 | AB40: 689 | AC40: 16081 | AD40: Thin Laptop | AE40: Post Graduate Student | AF40: Britta Blakley | AG40: 1987 | AH40: 2280 | AI40: 1764 | AJ40: 2122 | AK40: 2142 | AL40: 1981 | AM40: 1884 | AN40: 1921
A41: Region 2 | B41: Product 4 | C41: Customer 3 | D41: Person 3 | E41: 666 | F41: 815 | G41: 820 | H41: 862 | I41: 847 | J41: 752 | K41: 657 | L41: 620 | M41: 869 | N41: 848 | O41: 848 | P41: 886 | Q41: 831 | R41: 712 | S41: 632 | T41: 883 | U41: 786 | V41: 821 | W41: 631 | X41: 615 | Y41: 712 | Z41: 870 | AA41: 785 | AB41: 794 | AC41: 18562 | AD41: Thin Laptop | AE41: Full-time Parent | AF41: Brock Stalder | AG41: 2301 | AH41: 2461 | AI41: 2146 | AJ41: 2582 | AK41: 2175 | AL41: 2490 | AM41: 1958 | AN41: 2449
A42: Region 2 | B42: Product 4 | C42: Customer 4 | D42: Person 4 | E42: 746 | F42: 702 | G42: 886 | H42: 608 | I42: 748 | J42: 652 | K42: 755 | L42: 807 | M42: 607 | N42: 810 | O42: 778 | P42: 684 | Q42: 756 | R42: 759 | S42: 673 | T42: 638 | U42: 795 | V42: 785 | W42: 601 | X42: 755 | Y42: 699 | Z42: 715 | AA42: 618 | AB42: 829 | AC42: 17406 | AD42: Thin Laptop | AE42: Self-Employed | AF42: Catherine Shoaff | AG42: 2334 | AH42: 2008 | AI42: 2169 | AJ42: 2272 | AK42: 2188 | AL42: 2218 | AM42: 2055 | AN42: 2162
A43: Region 2 | B43: Product 4 | C43: Customer 5 | D43: Person 5 | E43: 753 | F43: 690 | G43: 646 | H43: 653 | I43: 795 | J43: 736 | K43: 667 | L43: 668 | M43: 733 | N43: 674 | O43: 620 | P43: 778 | Q43: 757 | R43: 738 | S43: 661 | T43: 721 | U43: 639 | V43: 601 | W43: 732 | X43: 621 | Y43: 668 | Z43: 764 | AA43: 742 | AB43: 761 | AC43: 16818 | AD43: Thin Laptop | AE43: Full-time Employee | AF43: Fermin Quin | AG43: 2089 | AH43: 2184 | AI43: 2068 | AJ43: 2072 | AK43: 2156 | AL43: 1961 | AM43: 2021 | AN43: 2267
A44: Region 2 | B44: Product 4 | C44: Customer 6 | D44: Person 6 | E44: 1271 | F44: 1188 | G44: 1090 | H44: 856 | I44: 840 | J44: 1217 | K44: 933 | L44: 1296 | M44: 976 | N44: 971 | O44: 869 | P44: 896 | Q44: 1323 | R44: 1247 | S44: 1081 | T44: 985 | U44: 1091 | V44: 951 | W44: 1175 | X44: 1299 | Y44: 1254 | Z44: 857 | AA44: 1360 | AB44: 1386 | AC44: 26412 | AD44: =VLOOKUP(B44,lookup,2,FALSE) -> Thin Laptop | AE44: =VLOOKUP(C44,lookup,2,FALSE) -> Business Owner | AF44: =VLOOKUP(D44,lookup,2,FALSE) -> Glenda Harbaugh | AG44: 3549 | AH44: 2913 | AI44: 3205 | AJ44: 2736 | AK44: 3651 | AL44: 3027 | AM44: 3728 | AN44: 3603
A45: Region 2 | B45: Product 4 | C45: Customer 7 | D45: Person 7 | E45: 797 | F45: 641 | G45: 785 | H45: 621 | I45: 709 | J45: 657 | K45: 570 | L45: 565 | M45: 560 | N45: 759 | O45: 573 | P45: 741 | Q45: 728 | R45: 717 | S45: 689 | T45: 634 | U45: 756 | V45: 563 | W45: 626 | X45: 748 | Y45: 792 | Z45: 673 | AA45: 679 | AB45: 787 | AC45: 16370 | AD45: Thin Laptop | AE45: Maintstream Youth | AF45: Jarrett Rimmer | AG45: 2223 | AH45: 1987 | AI45: 1695 | AJ45: 2073 | AK45: 2134 | AL45: 1953 | AM45: 2166 | AN45: 2139
A46: Region 2 | B46: Product 4 | C46: Customer 8 | D46: Person 8 | E46: 686 | F46: 637 | G46: 731 | H46: 863 | I46: 821 | J46: 678 | K46: 833 | L46: 840 | M46: 748 | N46: 838 | O46: 618 | P46: 822 | Q46: 625 | R46: 820 | S46: 865 | T46: 616 | U46: 606 | V46: 793 | W46: 626 | X46: 726 | Y46: 664 | Z46: 603 | AA46: 794 | AB46: 657 | AC46: 17510 | AD46: Thin Laptop | AE46: Retired | AF46: Li Bruni | AG46: 2054 | AH46: 2362 | AI46: 2421 | AJ46: 2278 | AK46: 2310 | AL46: 2015 | AM46: 2016 | AN46: 2054
A47: Region 2 | B47: Product 4 | C47: Customer 9 | D47: Person 9 | E47: 618 | F47: 782 | G47: 753 | H47: 691 | I47: 642 | J47: 833 | K47: 633 | L47: 829 | M47: 656 | N47: 758 | O47: 626 | P47: 874 | Q47: 778 | R47: 884 | S47: 739 | T47: 833 | U47: 665 | V47: 766 | W47: 614 | X47: 619 | Y47: 843 | Z47: 614 | AA47: 600 | AB47: 875 | AC47: 17525 | AD47: Thin Laptop | AE47: Government | AF47: Linwood Camargo | AG47: 2153 | AH47: 2166 | AI47: 2118 | AJ47: 2258 | AK47: 2401 | AL47: 2264 | AM47: 2076 | AN47: 2089
A48: Region 2 | B48: Product 4 | C48: Customer 10 | D48: Person 10 | E48: 737 | F48: 604 | G48: 749 | H48: 669 | I48: 740 | J48: 724 | K48: 600 | L48: 671 | M48: 603 | N48: 624 | O48: 700 | P48: 693 | Q48: 631 | R48: 701 | S48: 693 | T48: 792 | U48: 672 | V48: 691 | W48: 698 | X48: 683 | Y48: 643 | Z48: 668 | AA48: 719 | AB48: 702 | AC48: 16407 | AD48: Thin Laptop | AE48: Military | AF48: Norene McNeece | AG48: 2090 | AH48: 2133 | AI48: 1874 | AJ48: 2017 | AK48: 2025 | AL48: 2155 | AM48: 2024 | AN48: 2089
A49: Region 2 | B49: Product 4 | C49: Customer 11 | D49: Person 11 | E49: 849 | F49: 989 | G49: 1062 | H49: 1241 | I49: 1193 | J49: 847 | K49: 1212 | L49: 1000 | M49: 1378 | N49: 1198 | O49: 1319 | P49: 898 | Q49: 1203 | R49: 800 | S49: 1341 | T49: 861 | U49: 1383 | V49: 1198 | W49: 1186 | X49: 921 | Y49: 1358 | Z49: 1352 | AA49: 1376 | AB49: 1387 | AC49: 27552 | AD49: Thin Laptop | AE49: Corporation | AF49: Rick Boehm | AG49: 2900 | AH49: 3281 | AI49: 3590 | AJ49: 3415 | AK49: 3344 | AL49: 3442 | AM49: 3465 | AN49: 4115
A50: Region 2 | B50: Product 4 | C50: Customer 12 | D50: Person 12 | E50: 655 | F50: 552 | G50: 783 | H50: 759 | I50: 655 | J50: 754 | K50: 796 | L50: 634 | M50: 600 | N50: 652 | O50: 585 | P50: 707 | Q50: 767 | R50: 601 | S50: 684 | T50: 755 | U50: 713 | V50: 756 | W50: 729 | X50: 610 | Y50: 699 | Z50: 755 | AA50: 685 | AB50: 752 | AC50: 16638 | AD50: Thin Laptop | AE50: NPO/NGO | AF50: Sueann Olivero | AG50: 1990 | AH50: 2168 | AI50: 2030 | AJ50: 1944 | AK50: 2052 | AL50: 2224 | AM50: 2038 | AN50: 2192
A51: Region 2 | B51: Product 5 | C51: Customer 1 | D51: Person 1 | E51: 828 | F51: 752 | G51: 854 | H51: 899 | I51: 822 | J51: 701 | K51: 826 | L51: 833 | M51: 724 | N51: 612 | O51: 872 | P51: 768 | Q51: 797 | R51: 699 | S51: 645 | T51: 835 | U51: 765 | V51: 610 | W51: 685 | X51: 608 | Y51: 674 | Z51: 613 | AA51: 847 | AB51: 821 | AC51: 18090 | AD51: Economy Laptop | AE51: College Student | AF51: Bo Kornegay | AG51: 2434 | AH51: 2422 | AI51: 2383 | AJ51: 2252 | AK51: 2141 | AL51: 2210 | AM51: 1967 | AN51: 2281
A52: Region 2 | B52: Product 5 | C52: Customer 2 | D52: Person 2 | E52: 701 | F52: 880 | G52: 768 | H52: 803 | I52: 629 | J52: 688 | K52: 764 | L52: 814 | M52: 832 | N52: 883 | O52: 721 | P52: 879 | Q52: 674 | R52: 727 | S52: 633 | T52: 733 | U52: 746 | V52: 682 | W52: 839 | X52: 610 | Y52: 753 | Z52: 847 | AA52: 641 | AB52: 745 | AC52: 17992 | AD52: Economy Laptop | AE52: Post Graduate Student | AF52: Britta Blakley | AG52: 2349 | AH52: 2120 | AI52: 2410 | AJ52: 2483 | AK52: 2034 | AL52: 2161 | AM52: 2202 | AN52: 2233
A53: Region 2 | B53: Product 5 | C53: Customer 3 | D53: Person 3 | E53: 636 | F53: 608 | G53: 662 | H53: 734 | I53: 766 | J53: 627 | K53: 673 | L53: 761 | M53: 785 | N53: 685 | O53: 769 | P53: 705 | Q53: 678 | R53: 644 | S53: 726 | T53: 793 | U53: 786 | V53: 693 | W53: 713 | X53: 701 | Y53: 650 | Z53: 637 | AA53: 770 | AB53: 608 | AC53: 16810 | AD53: Economy Laptop | AE53: Full-time Parent | AF53: Brock Stalder | AG53: 1906 | AH53: 2127 | AI53: 2219 | AJ53: 2159 | AK53: 2048 | AL53: 2272 | AM53: 2064 | AN53: 2015
A54: Region 2 | B54: Product 5 | C54: Customer 4 | D54: Person 4 | E54: 854 | F54: 1079 | G54: 1313 | H54: 1214 | I54: 1393 | J54: 1176 | K54: 1272 | L54: 1288 | M54: 829 | N54: 1277 | O54: 1165 | P54: 856 | Q54: 953 | R54: 1070 | S54: 1297 | T54: 1261 | U54: 1037 | V54: 1179 | W54: 1147 | X54: 838 | Y54: 1038 | Z54: 895 | AA54: 804 | AB54: 1025 | AC54: 26260 | AD54: Economy Laptop | AE54: Self-Employed | AF54: Catherine Shoaff | AG54: 3246 | AH54: 3783 | AI54: 3389 | AJ54: 3298 | AK54: 3320 | AL54: 3477 | AM54: 3023 | AN54: 2724
A55: Region 2 | B55: Product 5 | C55: Customer 5 | D55: Person 5 | E55: 678 | F55: 599 | G55: 569 | H55: 766 | I55: 664 | J55: 650 | K55: 763 | L55: 662 | M55: 733 | N55: 718 | O55: 726 | P55: 585 | Q55: 568 | R55: 612 | S55: 603 | T55: 716 | U55: 623 | V55: 782 | W55: 725 | X55: 753 | Y55: 774 | Z55: 672 | AA55: 570 | AB55: 732 | AC55: 16243 | AD55: Economy Laptop | AE55: Full-time Employee | AF55: Fermin Quin | AG55: 1846 | AH55: 2080 | AI55: 2158 | AJ55: 2029 | AK55: 1783 | AL55: 2121 | AM55: 2252 | AN55: 1974
A56: Region 2 | B56: Product 5 | C56: Customer 6 | D56: Person 6 | E56: 848 | F56: 755 | G56: 642 | H56: 600 | I56: 749 | J56: 742 | K56: 667 | L56: 642 | M56: 601 | N56: 831 | O56: 792 | P56: 743 | Q56: 605 | R56: 834 | S56: 884 | T56: 795 | U56: 728 | V56: 791 | W56: 641 | X56: 832 | Y56: 696 | Z56: 684 | AA56: 810 | AB56: 692 | AC56: 17604 | AD56: Economy Laptop | AE56: Business Owner | AF56: Glenda Harbaugh | AG56: 2245 | AH56: 2091 | AI56: 1910 | AJ56: 2366 | AK56: 2323 | AL56: 2314 | AM56: 2169 | AN56: 2186
A57: Region 2 | B57: Product 5 | C57: Customer 7 | D57: Person 7 | E57: 739 | F57: 850 | G57: 712 | H57: 733 | I57: 873 | J57: 638 | K57: 850 | L57: 900 | M57: 725 | N57: 735 | O57: 824 | P57: 735 | Q57: 811 | R57: 870 | S57: 793 | T57: 712 | U57: 771 | V57: 881 | W57: 894 | X57: 651 | Y57: 684 | Z57: 674 | AA57: 763 | AB57: 878 | AC57: 18696 | AD57: Economy Laptop | AE57: Maintstream Youth | AF57: Jarrett Rimmer | AG57: 2301 | AH57: 2244 | AI57: 2475 | AJ57: 2294 | AK57: 2474 | AL57: 2364 | AM57: 2229 | AN57: 2315
A58: Region 2 | B58: Product 5 | C58: Customer 8 | D58: Person 8 | E58: 799 | F58: 763 | G58: 771 | H58: 671 | I58: 763 | J58: 675 | K58: 735 | L58: 798 | M58: 744 | N58: 627 | O58: 730 | P58: 677 | Q58: 783 | R58: 661 | S58: 769 | T58: 630 | U58: 778 | V58: 642 | W58: 662 | X58: 799 | Y58: 690 | Z58: 727 | AA58: 794 | AB58: 664 | AC58: 17352 | AD58: Economy Laptop | AE58: Retired | AF58: Li Bruni | AG58: 2333 | AH58: 2109 | AI58: 2277 | AJ58: 2034 | AK58: 2213 | AL58: 2050 | AM58: 2151 | AN58: 2185
A59: Region 2 | B59: Product 5 | C59: Customer 9 | D59: Person 9 | E59: 1253 | F59: 1047 | G59: 1370 | H59: 1061 | I59: 974 | J59: 853 | K59: 927 | L59: 1030 | M59: 1163 | N59: 890 | O59: 1057 | P59: 1025 | Q59: 1084 | R59: 895 | S59: 951 | T59: 1186 | U59: 1084 | V59: 931 | W59: 1064 | X59: 997 | Y59: 1070 | Z59: 1265 | AA59: 1294 | AB59: 1277 | AC59: 25748 | AD59: Economy Laptop | AE59: Government | AF59: Linwood Camargo | AG59: 3670 | AH59: 2888 | AI59: 3120 | AJ59: 2972 | AK59: 2930 | AL59: 3201 | AM59: 3131 | AN59: 3836
A60: Region 2 | B60: Product 5 | C60: Customer 10 | D60: Person 10 | E60: 798 | F60: 727 | G60: 572 | H60: 608 | I60: 602 | J60: 800 | K60: 688 | L60: 617 | M60: 800 | N60: 658 | O60: 675 | P60: 618 | Q60: 717 | R60: 635 | S60: 566 | T60: 618 | U60: 697 | V60: 761 | W60: 552 | X60: 760 | Y60: 609 | Z60: 686 | AA60: 733 | AB60: 698 | AC60: 16195 | AD60: Economy Laptop | AE60: Military | AF60: Norene McNeece | AG60: 2097 | AH60: 2010 | AI60: 2105 | AJ60: 1951 | AK60: 1918 | AL60: 2076 | AM60: 1921 | AN60: 2117
A61: Region 2 | B61: Product 5 | C61: Customer 11 | D61: Person 11 | E61: 794 | F61: 698 | G61: 694 | H61: 834 | I61: 760 | J61: 817 | K61: 807 | L61: 706 | M61: 801 | N61: 775 | O61: 760 | P61: 610 | Q61: 781 | R61: 635 | S61: 816 | T61: 757 | U61: 841 | V61: 660 | W61: 819 | X61: 794 | Y61: 899 | Z61: 657 | AA61: 827 | AB61: 665 | AC61: 18207 | AD61: Economy Laptop | AE61: Corporation | AF61: Rick Boehm | AG61: 2186 | AH61: 2411 | AI61: 2314 | AJ61: 2145 | AK61: 2232 | AL61: 2258 | AM61: 2512 | AN61: 2149
A62: Region 2 | B62: Product 5 | C62: Customer 12 | D62: Person 12 | E62: 854 | F62: 631 | G62: 878 | H62: 807 | I62: 833 | J62: 886 | K62: 708 | L62: 875 | M62: 879 | N62: 681 | O62: 673 | P62: 737 | Q62: 875 | R62: 898 | S62: 877 | T62: 743 | U62: 860 | V62: 801 | W62: 713 | X62: 618 | Y62: 673 | Z62: 879 | AA62: 670 | AB62: 643 | AC62: 18692 | AD62: Economy Laptop | AE62: NPO/NGO | AF62: Sueann Olivero | AG62: 2363 | AH62: 2526 | AI62: 2462 | AJ62: 2091 | AK62: 2650 | AL62: 2404 | AM62: 2004 | AN62: 2192
A63: Region 2 | B63: Product 6 | C63: Customer 1 | D63: Person 1 | E63: 778 | F63: 663 | G63: 675 | H63: 714 | I63: 785 | J63: 625 | K63: 604 | L63: 642 | M63: 731 | N63: 646 | O63: 715 | P63: 798 | Q63: 734 | R63: 664 | S63: 784 | T63: 656 | U63: 783 | V63: 732 | W63: 607 | X63: 667 | Y63: 707 | Z63: 629 | AA63: 626 | AB63: 743 | AC63: 16708 | AD63: Series 8000 Tablet | AE63: College Student | AF63: Bo Kornegay | AG63: 2116 | AH63: 2124 | AI63: 1977 | AJ63: 2159 | AK63: 2182 | AL63: 2171 | AM63: 1981 | AN63: 1998
A64: Region 2 | B64: Product 6 | C64: Customer 2 | D64: Person 2 | E64: 1017 | F64: 884 | G64: 1098 | H64: 1292 | I64: 927 | J64: 889 | K64: 974 | L64: 919 | M64: 1393 | N64: 1027 | O64: 999 | P64: 1230 | Q64: 1245 | R64: 1284 | S64: 1061 | T64: 1192 | U64: 1387 | V64: 1256 | W64: 1076 | X64: 1188 | Y64: 821 | Z64: 1063 | AA64: 1088 | AB64: 937 | AC64: 26247 | AD64: Series 8000 Tablet | AE64: Post Graduate Student | AF64: Britta Blakley | AG64: 2999 | AH64: 3108 | AI64: 3286 | AJ64: 3256 | AK64: 3590 | AL64: 3835 | AM64: 3085 | AN64: 3088
A65: Region 2 | B65: Product 6 | C65: Customer 3 | D65: Person 3 | E65: 708 | F65: 715 | G65: 723 | H65: 711 | I65: 774 | J65: 653 | K65: 557 | L65: 779 | M65: 586 | N65: 744 | O65: 590 | P65: 793 | Q65: 656 | R65: 585 | S65: 601 | T65: 788 | U65: 618 | V65: 611 | W65: 793 | X65: 679 | Y65: 689 | Z65: 640 | AA65: 645 | AB65: 596 | AC65: 16234 | AD65: Series 8000 Tablet | AE65: Full-time Parent | AF65: Brock Stalder | AG65: 2146 | AH65: 2138 | AI65: 1922 | AJ65: 2127 | AK65: 1842 | AL65: 2017 | AM65: 2161 | AN65: 1881
A66: Region 2 | B66: Product 6 | C66: Customer 4 | D66: Person 4 | E66: 654 | F66: 738 | G66: 647 | H66: 799 | I66: 620 | J66: 897 | K66: 625 | L66: 839 | M66: 653 | N66: 651 | O66: 871 | P66: 788 | Q66: 642 | R66: 809 | S66: 795 | T66: 825 | U66: 894 | V66: 615 | W66: 622 | X66: 646 | Y66: 766 | Z66: 753 | AA66: 674 | AB66: 722 | AC66: 17545 | AD66: Series 8000 Tablet | AE66: Self-Employed | AF66: Catherine Shoaff | AG66: 2039 | AH66: 2316 | AI66: 2117 | AJ66: 2310 | AK66: 2246 | AL66: 2334 | AM66: 2034 | AN66: 2149
A67: Region 2 | B67: Product 6 | C67: Customer 5 | D67: Person 5 | E67: 617 | F67: 798 | G67: 891 | H67: 674 | I67: 605 | J67: 844 | K67: 804 | L67: 857 | M67: 836 | N67: 648 | O67: 640 | P67: 776 | Q67: 711 | R67: 849 | S67: 759 | T67: 758 | U67: 744 | V67: 775 | W67: 799 | X67: 649 | Y67: 830 | Z67: 707 | AA67: 858 | AB67: 855 | AC67: 18284 | AD67: Series 8000 Tablet | AE67: Full-time Employee | AF67: Fermin Quin | AG67: 2306 | AH67: 2123 | AI67: 2497 | AJ67: 2064 | AK67: 2319 | AL67: 2277 | AM67: 2278 | AN67: 2420
A68: Region 2 | B68: Product 6 | C68: Customer 6 | D68: Person 6 | E68: 707 | F68: 603 | G68: 687 | H68: 671 | I68: 628 | J68: 764 | K68: 799 | L68: 623 | M68: 740 | N68: 640 | O68: 609 | P68: 702 | Q68: 624 | R68: 633 | S68: 687 | T68: 716 | U68: 711 | V68: 611 | W68: 760 | X68: 752 | Y68: 655 | Z68: 614 | AA68: 762 | AB68: 770 | AC68: =SUM(E68:AB68) -> 16468 | AD68: Series 8000 Tablet | AE68: Business Owner | AF68: Glenda Harbaugh | AG68: =SUM(E68:G68) -> 1997 | AH68: =SUM(H68:J68) -> 2063 | AI68: =SUM(K68:M68) -> 2162 | AJ68: =SUM(N68:P68) -> 1951 | AK68: =SUM(Q68:S68) -> 1944 | AL68: =SUM(T68:V68) -> 2038 | AM68: =SUM(W68:Y68) -> 2167 | AN68: =SUM(Z68:AB68) -> 2146
A69: Region 2 | B69: Product 6 | C69: Customer 7 | D69: Person 7 | E69: 845 | F69: 900 | G69: 1044 | H69: 982 | I69: 1390 | J69: 810 | K69: 973 | L69: 802 | M69: 1320 | N69: 1185 | O69: 1175 | P69: 907 | Q69: 1218 | R69: 1089 | S69: 942 | T69: 1276 | U69: 1388 | V69: 1171 | W69: 1277 | X69: 897 | Y69: 1130 | Z69: 812 | AA69: 1280 | AB69: 1307 | AC69: 26120 | AD69: Series 8000 Tablet | AE69: Maintstream Youth | AF69: Jarrett Rimmer | AG69: 2789 | AH69: 3182 | AI69: 3095 | AJ69: 3267 | AK69: 3249 | AL69: 3835 | AM69: 3304 | AN69: 3399
A70: Region 2 | B70: Product 6 | C70: Customer 8 | D70: Person 8 | E70: 647 | F70: 558 | G70: 571 | H70: 578 | I70: 794 | J70: 759 | K70: 652 | L70: 704 | M70: 616 | N70: 574 | O70: 787 | P70: 581 | Q70: 551 | R70: 794 | S70: 605 | T70: 566 | U70: 646 | V70: 760 | W70: 573 | X70: 640 | Y70: 592 | Z70: 695 | AA70: 554 | AB70: 639 | AC70: 15436 | AD70: Series 8000 Tablet | AE70: Retired | AF70: Li Bruni | AG70: 1776 | AH70: 2131 | AI70: 1972 | AJ70: 1942 | AK70: 1950 | AL70: 1972 | AM70: 1805 | AN70: 1888
A71: Region 2 | B71: Product 6 | C71: Customer 9 | D71: Person 9 | E71: 622 | F71: 743 | G71: 803 | H71: 851 | I71: 749 | J71: 810 | K71: 797 | L71: 700 | M71: 718 | N71: 784 | O71: 606 | P71: 601 | Q71: 787 | R71: 645 | S71: 665 | T71: 624 | U71: 731 | V71: 683 | W71: 713 | X71: 626 | Y71: 728 | Z71: 854 | AA71: 740 | AB71: 635 | AC71: 17215 | AD71: Series 8000 Tablet | AE71: Government | AF71: Linwood Camargo | AG71: 2168 | AH71: 2410 | AI71: 2215 | AJ71: 1991 | AK71: 2097 | AL71: 2038 | AM71: 2067 | AN71: 2229
A72: Region 2 | B72: Product 6 | C72: Customer 10 | D72: Person 10 | E72: 601 | F72: 608 | G72: 782 | H72: 844 | I72: 688 | J72: 666 | K72: 777 | L72: 699 | M72: 751 | N72: 762 | O72: 706 | P72: 878 | Q72: 736 | R72: 744 | S72: 822 | T72: 881 | U72: 694 | V72: 761 | W72: 757 | X72: 744 | Y72: 806 | Z72: 782 | AA72: 820 | AB72: 728 | AC72: 18037 | AD72: Series 8000 Tablet | AE72: Military | AF72: Norene McNeece | AG72: 1991 | AH72: 2198 | AI72: 2227 | AJ72: 2346 | AK72: 2302 | AL72: 2336 | AM72: 2307 | AN72: 2330
A73: Region 2 | B73: Product 6 | C73: Customer 11 | D73: Person 11 | E73: 674 | F73: 674 | G73: 748 | H73: 650 | I73: 762 | J73: 665 | K73: 638 | L73: 710 | M73: 664 | N73: 753 | O73: 624 | P73: 791 | Q73: 604 | R73: 776 | S73: 715 | T73: 647 | U73: 625 | V73: 681 | W73: 610 | X73: 607 | Y73: 705 | Z73: 638 | AA73: 647 | AB73: 685 | AC73: 16293 | AD73: Series 8000 Tablet | AE73: Corporation | AF73: Rick Boehm | AG73: 2096 | AH73: 2077 | AI73: 2012 | AJ73: 2168 | AK73: 2095 | AL73: 1953 | AM73: 1922 | AN73: 1970
A74: Region 2 | B74: Product 6 | C74: Customer 12 | D74: Person 12 | E74: 805 | F74: 808 | G74: 1291 | H74: 1234 | I74: 1361 | J74: 1241 | K74: 1095 | L74: 1151 | M74: 848 | N74: 1105 | O74: 1332 | P74: 1264 | Q74: 1280 | R74: 1307 | S74: 874 | T74: 1278 | U74: 1137 | V74: 928 | W74: 1352 | X74: 1056 | Y74: 1113 | Z74: 1132 | AA74: 920 | AB74: 1014 | AC74: 26926 | AD74: Series 8000 Tablet | AE74: NPO/NGO | AF74: Sueann Olivero | AG74: 2904 | AH74: 3836 | AI74: 3094 | AJ74: 3701 | AK74: 3461 | AL74: 3343 | AM74: 3521 | AN74: 3066
A75: Region 3 | B75: Product 7 | C75: Customer 1 | D75: Person 1 | E75: 589 | F75: 749 | G75: 694 | H75: 739 | I75: 752 | J75: 723 | K75: 667 | L75: 723 | M75: 557 | N75: 671 | O75: 754 | P75: 702 | Q75: 591 | R75: 571 | S75: 722 | T75: 678 | U75: 715 | V75: 780 | W75: 637 | X75: 597 | Y75: 579 | Z75: 572 | AA75: 568 | AB75: 723 | AC75: 16053 | AD75: Series 5000 Tablet | AE75: College Student | AF75: Bo Kornegay | AG75: 2032 | AH75: 2214 | AI75: 1947 | AJ75: 2127 | AK75: 1884 | AL75: 2173 | AM75: 1813 | AN75: 1863
A76: Region 3 | B76: Product 7 | C76: Customer 2 | D76: Person 2 | E76: 766 | F76: 779 | G76: 632 | H76: 885 | I76: 607 | J76: 737 | K76: 611 | L76: 817 | M76: 738 | N76: 795 | O76: 670 | P76: 646 | Q76: 875 | R76: 746 | S76: 675 | T76: 842 | U76: 865 | V76: 841 | W76: 697 | X76: 633 | Y76: 682 | Z76: 844 | AA76: 863 | AB76: 897 | AC76: 18143 | AD76: =VLOOKUP(B76,lookup,2,FALSE) -> Series 5000 Tablet | AE76: =VLOOKUP(C76,lookup,2,FALSE) -> Post Graduate Student | AF76: =VLOOKUP(D76,lookup,2,FALSE) -> Britta Blakley | AG76: 2177 | AH76: 2229 | AI76: 2166 | AJ76: 2111 | AK76: 2296 | AL76: 2548 | AM76: 2012 | AN76: 2604
A77: Region 3 | B77: Product 7 | C77: Customer 3 | D77: Person 3 | E77: 887 | F77: 876 | G77: 616 | H77: 862 | I77: 876 | J77: 623 | K77: 750 | L77: 745 | M77: 784 | N77: 804 | O77: 849 | P77: 623 | Q77: 889 | R77: 652 | S77: 784 | T77: 874 | U77: 767 | V77: 884 | W77: 694 | X77: 647 | Y77: 832 | Z77: 745 | AA77: 644 | AB77: 610 | AC77: 18317 | AD77: Series 5000 Tablet | AE77: Full-time Parent | AF77: Brock Stalder | AG77: 2379 | AH77: 2361 | AI77: 2279 | AJ77: 2276 | AK77: 2325 | AL77: 2525 | AM77: 2173 | AN77: 1999
A78: Region 3 | B78: Product 7 | C78: Customer 4 | D78: Person 4 | E78: 635 | F78: 741 | G78: 692 | H78: 646 | I78: 626 | J78: 605 | K78: 672 | L78: 693 | M78: 667 | N78: 718 | O78: 709 | P78: 716 | Q78: 738 | R78: 649 | S78: 770 | T78: 760 | U78: 656 | V78: 618 | W78: 660 | X78: 789 | Y78: 784 | Z78: 617 | AA78: 797 | AB78: 632 | AC78: 16590 | AD78: Series 5000 Tablet | AE78: Self-Employed | AF78: Catherine Shoaff | AG78: 2068 | AH78: 1877 | AI78: 2032 | AJ78: 2143 | AK78: 2157 | AL78: 2034 | AM78: 2233 | AN78: 2046
A79: Region 3 | B79: Product 7 | C79: Customer 5 | D79: Person 5 | E79: 916 | F79: 1331 | G79: 814 | H79: 1060 | I79: 1097 | J79: 949 | K79: 1173 | L79: 830 | M79: 1153 | N79: 1345 | O79: 1085 | P79: 1106 | Q79: 1055 | R79: 1399 | S79: 1100 | T79: 1195 | U79: 1122 | V79: 1340 | W79: 905 | X79: 1369 | Y79: 1312 | Z79: 981 | AA79: 1229 | AB79: 1398 | AC79: 27264 | AD79: Series 5000 Tablet | AE79: Full-time Employee | AF79: Fermin Quin | AG79: 3061 | AH79: 3106 | AI79: 3156 | AJ79: 3536 | AK79: 3554 | AL79: 3657 | AM79: 3586 | AN79: 3608
A80: Region 3 | B80: Product 7 | C80: Customer 6 | D80: Person 6 | E80: 694 | F80: 705 | G80: 666 | H80: 661 | I80: 710 | J80: 657 | K80: 649 | L80: 655 | M80: 643 | N80: 570 | O80: 670 | P80: 697 | Q80: 664 | R80: 620 | S80: 563 | T80: 572 | U80: 580 | V80: 628 | W80: 789 | X80: 699 | Y80: 778 | Z80: 697 | AA80: 563 | AB80: 599 | AC80: 15729 | AD80: Series 5000 Tablet | AE80: Business Owner | AF80: Glenda Harbaugh | AG80: 2065 | AH80: 2028 | AI80: 1947 | AJ80: 1937 | AK80: 1847 | AL80: 1780 | AM80: 2266 | AN80: 1859
A81: Region 3 | B81: Product 7 | C81: Customer 7 | D81: Person 7 | E81: 805 | F81: 859 | G81: 755 | H81: 871 | I81: 889 | J81: 758 | K81: 652 | L81: 800 | M81: 804 | N81: 890 | O81: 828 | P81: 741 | Q81: 831 | R81: 688 | S81: 821 | T81: 617 | U81: 687 | V81: 604 | W81: 896 | X81: 831 | Y81: 832 | Z81: 802 | AA81: 774 | AB81: 861 | AC81: 18896 | AD81: Series 5000 Tablet | AE81: Maintstream Youth | AF81: Jarrett Rimmer | AG81: 2419 | AH81: 2518 | AI81: 2256 | AJ81: 2459 | AK81: 2340 | AL81: 1908 | AM81: 2559 | AN81: 2437
A82: Region 3 | B82: Product 7 | C82: Customer 8 | D82: Person 8 | E82: 670 | F82: 622 | G82: 810 | H82: 726 | I82: 827 | J82: 780 | K82: 622 | L82: 897 | M82: 603 | N82: 639 | O82: 786 | P82: 868 | Q82: 884 | R82: 667 | S82: 839 | T82: 725 | U82: 685 | V82: 663 | W82: 616 | X82: 847 | Y82: 885 | Z82: 762 | AA82: 806 | AB82: 686 | AC82: 17915 | AD82: Series 5000 Tablet | AE82: Retired | AF82: Li Bruni | AG82: 2102 | AH82: 2333 | AI82: 2122 | AJ82: 2293 | AK82: 2390 | AL82: 2073 | AM82: 2348 | AN82: 2254
A83: Region 3 | B83: Product 7 | C83: Customer 9 | D83: Person 9 | E83: 680 | F83: 799 | G83: 641 | H83: 796 | I83: 641 | J83: 657 | K83: 715 | L83: 759 | M83: 753 | N83: 612 | O83: 775 | P83: 764 | Q83: 685 | R83: 769 | S83: 754 | T83: 674 | U83: 759 | V83: 671 | W83: 643 | X83: 676 | Y83: 624 | Z83: 684 | AA83: 641 | AB83: 664 | AC83: 16836 | AD83: Series 5000 Tablet | AE83: Government | AF83: Linwood Camargo | AG83: 2120 | AH83: 2094 | AI83: 2227 | AJ83: 2151 | AK83: 2208 | AL83: 2104 | AM83: 1943 | AN83: 1989
A84: Region 3 | B84: Product 7 | C84: Customer 10 | D84: Person 10 | E84: 875 | F84: 944 | G84: 866 | H84: 1224 | I84: 1184 | J84: 1149 | K84: 1386 | L84: 1120 | M84: 1375 | N84: 1185 | O84: 1188 | P84: 1003 | Q84: 1322 | R84: 1175 | S84: 1140 | T84: 1002 | U84: 892 | V84: 1149 | W84: 1204 | X84: 1216 | Y84: 1312 | Z84: 957 | AA84: 1104 | AB84: 1188 | AC84: 27160 | AD84: Series 5000 Tablet | AE84: Military | AF84: Norene McNeece | AG84: 2685 | AH84: 3557 | AI84: 3881 | AJ84: 3376 | AK84: 3637 | AL84: 3043 | AM84: 3732 | AN84: 3249
A85: Region 3 | B85: Product 7 | C85: Customer 11 | D85: Person 11 | E85: 749 | F85: 609 | G85: 788 | H85: 755 | I85: 763 | J85: 645 | K85: 606 | L85: 651 | M85: 660 | N85: 630 | O85: 775 | P85: 795 | Q85: 664 | R85: 714 | S85: 667 | T85: 642 | U85: 654 | V85: 676 | W85: 552 | X85: 595 | Y85: 644 | Z85: 785 | AA85: 633 | AB85: 800 | AC85: 16452 | AD85: Series 5000 Tablet | AE85: Corporation | AF85: Rick Boehm | AG85: 2146 | AH85: 2163 | AI85: 1917 | AJ85: 2200 | AK85: 2045 | AL85: 1972 | AM85: 1791 | AN85: 2218
A86: Region 3 | B86: Product 7 | C86: Customer 12 | D86: Person 12 | E86: 756 | F86: 603 | G86: 666 | H86: 739 | I86: 774 | J86: 706 | K86: 878 | L86: 658 | M86: 780 | N86: 664 | O86: 700 | P86: 656 | Q86: 684 | R86: 894 | S86: 685 | T86: 713 | U86: 626 | V86: 691 | W86: 776 | X86: 801 | Y86: 728 | Z86: 600 | AA86: 603 | AB86: 689 | AC86: 17070 | AD86: Series 5000 Tablet | AE86: NPO/NGO | AF86: Sueann Olivero | AG86: 2025 | AH86: 2219 | AI86: 2316 | AJ86: 2020 | AK86: 2263 | AL86: 2030 | AM86: 2305 | AN86: 1892
A87: Region 3 | B87: Product 8 | C87: Customer 1 | D87: Person 1 | E87: 657 | F87: 775 | G87: 756 | H87: 642 | I87: 840 | J87: 734 | K87: 703 | L87: 711 | M87: 617 | N87: 683 | O87: 760 | P87: 706 | Q87: 748 | R87: 687 | S87: 639 | T87: 764 | U87: 802 | V87: 748 | W87: 775 | X87: 624 | Y87: 815 | Z87: 647 | AA87: 692 | AB87: 687 | AC87: 17212 | AD87: Hybrid Laptop LED | AE87: College Student | AF87: Bo Kornegay | AG87: 2188 | AH87: 2216 | AI87: 2031 | AJ87: 2149 | AK87: 2074 | AL87: 2314 | AM87: 2214 | AN87: 2026
A88: Region 3 | B88: Product 8 | C88: Customer 2 | D88: Person 2 | E88: 631 | F88: 643 | G88: 767 | H88: 774 | I88: 742 | J88: 711 | K88: 673 | L88: 742 | M88: 717 | N88: 779 | O88: 647 | P88: 657 | Q88: 607 | R88: 762 | S88: 797 | T88: 670 | U88: 661 | V88: 789 | W88: 615 | X88: 748 | Y88: 630 | Z88: 764 | AA88: 782 | AB88: 623 | AC88: 16931 | AD88: Hybrid Laptop LED | AE88: Post Graduate Student | AF88: Britta Blakley | AG88: 2041 | AH88: 2227 | AI88: 2132 | AJ88: 2083 | AK88: 2166 | AL88: 2120 | AM88: 1993 | AN88: 2169
A89: Region 3 | B89: Product 8 | C89: Customer 3 | D89: Person 3 | E89: 1156 | F89: 1230 | G89: 858 | H89: 1239 | I89: 1009 | J89: 1191 | K89: 1043 | L89: 1051 | M89: 971 | N89: 874 | O89: 1135 | P89: 1246 | Q89: 1049 | R89: 1143 | S89: 1369 | T89: 1317 | U89: 835 | V89: 990 | W89: 1002 | X89: 992 | Y89: 900 | Z89: 1154 | AA89: 1120 | AB89: 1361 | AC89: 26235 | AD89: Hybrid Laptop LED | AE89: Full-time Parent | AF89: Brock Stalder | AG89: 3244 | AH89: 3439 | AI89: 3065 | AJ89: 3255 | AK89: 3561 | AL89: 3142 | AM89: 2894 | AN89: 3635
A90: Region 3 | B90: Product 8 | C90: Customer 4 | D90: Person 4 | E90: 681 | F90: 610 | G90: 753 | H90: 709 | I90: 689 | J90: 723 | K90: 566 | L90: 673 | M90: 796 | N90: 720 | O90: 728 | P90: 765 | Q90: 789 | R90: 765 | S90: 723 | T90: 746 | U90: 767 | V90: 673 | W90: 662 | X90: 577 | Y90: 571 | Z90: 787 | AA90: 712 | AB90: 800 | AC90: 16985 | AD90: Hybrid Laptop LED | AE90: Self-Employed | AF90: Catherine Shoaff | AG90: 2044 | AH90: 2121 | AI90: 2035 | AJ90: 2213 | AK90: 2277 | AL90: 2186 | AM90: 1810 | AN90: 2299
A91: Region 3 | B91: Product 8 | C91: Customer 5 | D91: Person 5 | E91: 693 | F91: 684 | G91: 887 | H91: 827 | I91: 836 | J91: 885 | K91: 743 | L91: 767 | M91: 868 | N91: 655 | O91: 900 | P91: 643 | Q91: 777 | R91: 714 | S91: 714 | T91: 671 | U91: 666 | V91: 798 | W91: 731 | X91: 655 | Y91: 731 | Z91: 827 | AA91: 751 | AB91: 653 | AC91: 18076 | AD91: Hybrid Laptop LED | AE91: Full-time Employee | AF91: Fermin Quin | AG91: 2264 | AH91: 2548 | AI91: 2378 | AJ91: 2198 | AK91: 2205 | AL91: 2135 | AM91: 2117 | AN91: 2231
A92: Region 3 | B92: Product 8 | C92: Customer 6 | D92: Person 6 | E92: 693 | F92: 659 | G92: 792 | H92: 899 | I92: 758 | J92: 748 | K92: 733 | L92: 674 | M92: 689 | N92: 859 | O92: 642 | P92: 682 | Q92: 875 | R92: 754 | S92: 857 | T92: 897 | U92: 839 | V92: 818 | W92: 617 | X92: 815 | Y92: 756 | Z92: 794 | AA92: 682 | AB92: 899 | AC92: 18431 | AD92: Hybrid Laptop LED | AE92: Business Owner | AF92: Glenda Harbaugh | AG92: 2144 | AH92: 2405 | AI92: 2096 | AJ92: 2183 | AK92: 2486 | AL92: 2554 | AM92: 2188 | AN92: 2375
A93: Region 3 | B93: Product 8 | C93: Customer 7 | D93: Person 7 | E93: 673 | F93: 744 | G93: 669 | H93: 660 | I93: 650 | J93: 635 | K93: 724 | L93: 644 | M93: 667 | N93: 687 | O93: 707 | P93: 617 | Q93: 655 | R93: 655 | S93: 646 | T93: 612 | U93: 722 | V93: 619 | W93: 736 | X93: 636 | Y93: 617 | Z93: 638 | AA93: 718 | AB93: 761 | AC93: 16092 | AD93: Hybrid Laptop LED | AE93: Maintstream Youth | AF93: Jarrett Rimmer | AG93: 2086 | AH93: 1945 | AI93: 2035 | AJ93: 2011 | AK93: 1956 | AL93: 1953 | AM93: 1989 | AN93: 2117
A94: Region 3 | B94: Product 8 | C94: Customer 8 | D94: Person 8 | E94: 1189 | F94: 924 | G94: 875 | H94: 1162 | I94: 822 | J94: 924 | K94: 1207 | L94: 1108 | M94: 875 | N94: 1363 | O94: 825 | P94: 1342 | Q94: 1238 | R94: 887 | S94: 1185 | T94: 859 | U94: 1375 | V94: 922 | W94: 1309 | X94: 1076 | Y94: 941 | Z94: 1100 | AA94: 939 | AB94: 881 | AC94: 25328 | AD94: Hybrid Laptop LED | AE94: Retired | AF94: Li Bruni | AG94: 2988 | AH94: 2908 | AI94: 3190 | AJ94: 3530 | AK94: 3310 | AL94: 3156 | AM94: 3326 | AN94: 2920
A95: Region 3 | B95: Product 8 | C95: Customer 9 | D95: Person 9 | E95: 776 | F95: 768 | G95: 581 | H95: 702 | I95: 713 | J95: 763 | K95: 568 | L95: 614 | M95: 675 | N95: 661 | O95: 704 | P95: 604 | Q95: 791 | R95: 648 | S95: 650 | T95: 732 | U95: 749 | V95: 590 | W95: 759 | X95: 777 | Y95: 647 | Z95: 589 | AA95: 668 | AB95: 559 | AC95: 16288 | AD95: Hybrid Laptop LED | AE95: Government | AF95: Linwood Camargo | AG95: 2125 | AH95: 2178 | AI95: 1857 | AJ95: 1969 | AK95: 2089 | AL95: 2071 | AM95: 2183 | AN95: 1816
A96: Region 3 | B96: Product 8 | C96: Customer 10 | D96: Person 10 | E96: 680 | F96: 862 | G96: 810 | H96: 794 | I96: 818 | J96: 752 | K96: 663 | L96: 769 | M96: 855 | N96: 894 | O96: 697 | P96: 853 | Q96: 881 | R96: 899 | S96: 716 | T96: 875 | U96: 651 | V96: 606 | W96: 686 | X96: 641 | Y96: 862 | Z96: 734 | AA96: 642 | AB96: 797 | AC96: 18437 | AD96: Hybrid Laptop LED | AE96: Military | AF96: Norene McNeece | AG96: 2352 | AH96: 2364 | AI96: 2287 | AJ96: 2444 | AK96: 2496 | AL96: 2132 | AM96: 2189 | AN96: 2173
A97: Region 3 | B97: Product 8 | C97: Customer 11 | D97: Person 11 | E97: 632 | F97: 606 | G97: 731 | H97: 692 | I97: 724 | J97: 848 | K97: 661 | L97: 858 | M97: 772 | N97: 655 | O97: 661 | P97: 715 | Q97: 724 | R97: 762 | S97: 685 | T97: 608 | U97: 864 | V97: 857 | W97: 900 | X97: 628 | Y97: 858 | Z97: 678 | AA97: 711 | AB97: 604 | AC97: 17434 | AD97: Hybrid Laptop LED | AE97: Corporation | AF97: Rick Boehm | AG97: 1969 | AH97: 2264 | AI97: 2291 | AJ97: 2031 | AK97: 2171 | AL97: 2329 | AM97: 2386 | AN97: 1993
A98: Region 3 | B98: Product 8 | C98: Customer 12 | D98: Person 12 | E98: 666 | F98: 725 | G98: 764 | H98: 796 | I98: 726 | J98: 627 | K98: 707 | L98: 682 | M98: 614 | N98: 731 | O98: 663 | P98: 689 | Q98: 702 | R98: 708 | S98: 668 | T98: 644 | U98: 702 | V98: 713 | W98: 631 | X98: 738 | Y98: 682 | Z98: 771 | AA98: 725 | AB98: 630 | AC98: 16704 | AD98: Hybrid Laptop LED | AE98: NPO/NGO | AF98: Sueann Olivero | AG98: 2155 | AH98: 2149 | AI98: 2003 | AJ98: 2083 | AK98: 2078 | AL98: 2059 | AM98: 2051 | AN98: 2126
A99: Region 3 | B99: Product 9 | C99: Customer 1 | D99: Person 1 | E99: 1098 | F99: 802 | G99: 1077 | H99: 1150 | I99: 839 | J99: 1364 | K99: 1057 | L99: 960 | M99: 1385 | N99: 1004 | O99: 1356 | P99: 1222 | Q99: 833 | R99: 1379 | S99: 1184 | T99: 980 | U99: 1137 | V99: 1310 | W99: 889 | X99: 1275 | Y99: 1275 | Z99: 983 | AA99: 1190 | AB99: 1277 | AC99: 27026 | AD99: Elite Laptop | AE99: College Student | AF99: Bo Kornegay | AG99: 2977 | AH99: 3353 | AI99: 3402 | AJ99: 3582 | AK99: 3396 | AL99: 3427 | AM99: 3439 | AN99: 3450
A100: Region 3 | B100: Product 9 | C100: Customer 2 | D100: Person 2 | E100: 740 | F100: 556 | G100: 672 | H100: 650 | I100: 606 | J100: 558 | K100: 769 | L100: 662 | M100: 613 | N100: 554 | O100: 718 | P100: 579 | Q100: 612 | R100: 682 | S100: 780 | T100: 559 | U100: 796 | V100: 578 | W100: 630 | X100: 709 | Y100: 695 | Z100: 654 | AA100: 698 | AB100: 636 | AC100: 15706 | AD100: Elite Laptop | AE100: Post Graduate Student | AF100: Britta Blakley | AG100: 1968 | AH100: 1814 | AI100: 2044 | AJ100: 1851 | AK100: 2074 | AL100: 1933 | AM100: 2034 | AN100: 1988
A101: Region 3 | B101: Product 9 | C101: Customer 3 | D101: Person 3 | E101: 772 | F101: 896 | G101: 827 | H101: 868 | I101: 883 | J101: 807 | K101: 673 | L101: 693 | M101: 635 | N101: 710 | O101: 836 | P101: 796 | Q101: 837 | R101: 898 | S101: 808 | T101: 760 | U101: 635 | V101: 881 | W101: 668 | X101: 877 | Y101: 736 | Z101: 646 | AA101: 743 | AB101: 836 | AC101: 18721 | AD101: Elite Laptop | AE101: Full-time Parent | AF101: Brock Stalder | AG101: 2495 | AH101: 2558 | AI101: 2001 | AJ101: 2342 | AK101: 2543 | AL101: 2276 | AM101: 2281 | AN101: 2225
A102: Region 3 | B102: Product 9 | C102: Customer 4 | D102: Person 4 | E102: 829 | F102: 814 | G102: 879 | H102: 898 | I102: 755 | J102: 793 | K102: 667 | L102: 835 | M102: 896 | N102: 830 | O102: 789 | P102: 714 | Q102: 848 | R102: 727 | S102: 887 | T102: 833 | U102: 724 | V102: 736 | W102: 798 | X102: 618 | Y102: 716 | Z102: 880 | AA102: 624 | AB102: 865 | AC102: 18955 | AD102: Elite Laptop | AE102: Self-Employed | AF102: Catherine Shoaff | AG102: 2522 | AH102: 2446 | AI102: 2398 | AJ102: 2333 | AK102: 2462 | AL102: 2293 | AM102: 2132 | AN102: 2369
A103: Region 3 | B103: Product 9 | C103: Customer 5 | D103: Person 5 | E103: 755 | F103: 635 | G103: 727 | H103: 621 | I103: 643 | J103: 706 | K103: 669 | L103: 726 | M103: 744 | N103: 767 | O103: 713 | P103: 647 | Q103: 659 | R103: 774 | S103: 602 | T103: 697 | U103: 758 | V103: 622 | W103: 623 | X103: 730 | Y103: 781 | Z103: 677 | AA103: 633 | AB103: 771 | AC103: 16680 | AD103: Elite Laptop | AE103: Full-time Employee | AF103: Fermin Quin | AG103: 2117 | AH103: 1970 | AI103: 2139 | AJ103: 2127 | AK103: 2035 | AL103: 2077 | AM103: 2134 | AN103: 2081
A104: Region 3 | B104: Product 9 | C104: Customer 6 | D104: Person 6 | E104: 991 | F104: 879 | G104: 810 | H104: 1277 | I104: 1074 | J104: 1010 | K104: 1287 | L104: 883 | M104: 1260 | N104: 887 | O104: 1327 | P104: 1018 | Q104: 1021 | R104: 807 | S104: 1240 | T104: 832 | U104: 1214 | V104: 993 | W104: 1334 | X104: 1084 | Y104: 901 | Z104: 881 | AA104: 819 | AB104: 1396 | AC104: 25225 | AD104: Elite Laptop | AE104: Business Owner | AF104: Glenda Harbaugh | AG104: 2680 | AH104: 3361 | AI104: 3430 | AJ104: 3232 | AK104: 3068 | AL104: 3039 | AM104: 3319 | AN104: 3096
A105: Region 3 | B105: Product 9 | C105: Customer 7 | D105: Person 7 | E105: 648 | F105: 681 | G105: 677 | H105: 602 | I105: 769 | J105: 715 | K105: 571 | L105: 588 | M105: 669 | N105: 695 | O105: 605 | P105: 766 | Q105: 623 | R105: 774 | S105: 759 | T105: 677 | U105: 670 | V105: 585 | W105: 680 | X105: 741 | Y105: 551 | Z105: 765 | AA105: 609 | AB105: 760 | AC105: 16180 | AD105: Elite Laptop | AE105: Maintstream Youth | AF105: Jarrett Rimmer | AG105: 2006 | AH105: 2086 | AI105: 1828 | AJ105: 2066 | AK105: 2156 | AL105: 1932 | AM105: 1972 | AN105: 2134
A106: Region 3 | B106: Product 9 | C106: Customer 8 | D106: Person 8 | E106: 856 | F106: 662 | G106: 742 | H106: 799 | I106: 636 | J106: 865 | K106: 621 | L106: 653 | M106: 731 | N106: 756 | O106: 708 | P106: 614 | Q106: 728 | R106: 807 | S106: 633 | T106: 841 | U106: 767 | V106: 637 | W106: 696 | X106: 633 | Y106: 706 | Z106: 687 | AA106: 754 | AB106: 736 | AC106: 17268 | AD106: Elite Laptop | AE106: Retired | AF106: Li Bruni | AG106: 2260 | AH106: 2300 | AI106: 2005 | AJ106: 2078 | AK106: 2168 | AL106: 2245 | AM106: 2035 | AN106: 2177
A107: Region 3 | B107: Product 9 | C107: Customer 9 | D107: Person 9 | E107: 750 | F107: 735 | G107: 716 | H107: 883 | I107: 635 | J107: 798 | K107: 779 | L107: 612 | M107: 695 | N107: 659 | O107: 640 | P107: 630 | Q107: 641 | R107: 761 | S107: 624 | T107: 605 | U107: 651 | V107: 883 | W107: 870 | X107: 890 | Y107: 803 | Z107: 888 | AA107: 773 | AB107: 838 | AC107: 17759 | AD107: Elite Laptop | AE107: Government | AF107: Linwood Camargo | AG107: 2201 | AH107: 2316 | AI107: 2086 | AJ107: 1929 | AK107: 2026 | AL107: 2139 | AM107: 2563 | AN107: 2499
A108: Region 3 | B108: Product 9 | C108: Customer 10 | D108: Person 10 | E108: 615 | F108: 786 | G108: 686 | H108: 603 | I108: 725 | J108: 667 | K108: 658 | L108: 646 | M108: 643 | N108: 636 | O108: 681 | P108: 649 | Q108: 774 | R108: 638 | S108: 786 | T108: 641 | U108: 766 | V108: 778 | W108: 646 | X108: 649 | Y108: 646 | Z108: 717 | AA108: 632 | AB108: 788 | AC108: 16456 | AD108: =VLOOKUP(B108,lookup,2,FALSE) -> Elite Laptop | AE108: =VLOOKUP(C108,lookup,2,FALSE) -> Military | AF108: =VLOOKUP(D108,lookup,2,FALSE) -> Norene McNeece | AG108: 2087 | AH108: 1995 | AI108: 1947 | AJ108: 1966 | AK108: 2198 | AL108: 2185 | AM108: 1941 | AN108: 2137
A109: Region 3 | B109: Product 9 | C109: Customer 11 | D109: Person 11 | E109: 907 | F109: 935 | G109: 1026 | H109: 1002 | I109: 1248 | J109: 1339 | K109: 1183 | L109: 1337 | M109: 1189 | N109: 1393 | O109: 1337 | P109: 1064 | Q109: 904 | R109: 1076 | S109: 834 | T109: 1142 | U109: 1169 | V109: 1115 | W109: 1354 | X109: 1316 | Y109: 1268 | Z109: 1283 | AA109: 1393 | AB109: 958 | AC109: 27772 | AD109: Elite Laptop | AE109: Corporation | AF109: Rick Boehm | AG109: 2868 | AH109: 3589 | AI109: 3709 | AJ109: 3794 | AK109: 2814 | AL109: 3426 | AM109: 3938 | AN109: 3634
A110: Region 3 | B110: Product 9 | C110: Customer 12 | D110: Person 12 | E110: 751 | F110: 560 | G110: 567 | H110: 605 | I110: 587 | J110: 550 | K110: 753 | L110: 737 | M110: 783 | N110: 637 | O110: 644 | P110: 687 | Q110: 709 | R110: 748 | S110: 768 | T110: 557 | U110: 609 | V110: 671 | W110: 736 | X110: 609 | Y110: 658 | Z110: 768 | AA110: 560 | AB110: 700 | AC110: 15954 | AD110: Elite Laptop | AE110: NPO/NGO | AF110: Sueann Olivero | AG110: 1878 | AH110: 1742 | AI110: 2273 | AJ110: 1968 | AK110: 2225 | AL110: 1837 | AM110: 2003 | AN110: 2028
A111: Region 4 | B111: Product 10 | C111: Customer 1 | D111: Person 1 | E111: 697 | F111: 725 | G111: 800 | H111: 658 | I111: 819 | J111: 761 | K111: 661 | L111: 700 | M111: 819 | N111: 796 | O111: 894 | P111: 705 | Q111: 893 | R111: 672 | S111: 663 | T111: 854 | U111: 847 | V111: 624 | W111: 823 | X111: 736 | Y111: 725 | Z111: 824 | AA111: 659 | AB111: 877 | AC111: 18232 | AD111: All-in-one Desktop | AE111: College Student | AF111: Bo Kornegay | AG111: 2222 | AH111: 2238 | AI111: 2180 | AJ111: 2395 | AK111: 2228 | AL111: 2325 | AM111: 2284 | AN111: 2360
A112: Region 4 | B112: Product 10 | C112: Customer 2 | D112: Person 2 | E112: 733 | F112: 808 | G112: 765 | H112: 898 | I112: 611 | J112: 816 | K112: 848 | L112: 615 | M112: 628 | N112: 717 | O112: 891 | P112: 762 | Q112: 884 | R112: 654 | S112: 800 | T112: 875 | U112: 690 | V112: 751 | W112: 693 | X112: 874 | Y112: 860 | Z112: 769 | AA112: 702 | AB112: 767 | AC112: 18411 | AD112: All-in-one Desktop | AE112: Post Graduate Student | AF112: Britta Blakley | AG112: 2306 | AH112: 2325 | AI112: 2091 | AJ112: 2370 | AK112: 2338 | AL112: 2316 | AM112: 2427 | AN112: 2238
A113: Region 4 | B113: Product 10 | C113: Customer 3 | D113: Person 3 | E113: 645 | F113: 799 | G113: 669 | H113: 749 | I113: 688 | J113: 800 | K113: 669 | L113: 686 | M113: 624 | N113: 666 | O113: 636 | P113: 729 | Q113: 675 | R113: 789 | S113: 754 | T113: 722 | U113: 621 | V113: 799 | W113: 625 | X113: 651 | Y113: 771 | Z113: 711 | AA113: 721 | AB113: 651 | AC113: 16850 | AD113: All-in-one Desktop | AE113: Full-time Parent | AF113: Brock Stalder | AG113: 2113 | AH113: 2237 | AI113: 1979 | AJ113: 2031 | AK113: 2218 | AL113: 2142 | AM113: 2047 | AN113: 2083
A114: Region 4 | B114: Product 10 | C114: Customer 4 | D114: Person 4 | E114: 844 | F114: 1170 | G114: 1292 | H114: 1009 | I114: 1103 | J114: 919 | K114: 1377 | L114: 1352 | M114: 1277 | N114: 899 | O114: 1131 | P114: 827 | Q114: 1375 | R114: 882 | S114: 812 | T114: 1274 | U114: 1172 | V114: 1170 | W114: 879 | X114: 1274 | Y114: 1208 | Z114: 943 | AA114: 1187 | AB114: 1253 | AC114: 26629 | AD114: All-in-one Desktop | AE114: Self-Employed | AF114: Catherine Shoaff | AG114: 3306 | AH114: 3031 | AI114: 4006 | AJ114: 2857 | AK114: 3069 | AL114: 3616 | AM114: 3361 | AN114: 3383
A115: Region 4 | B115: Product 10 | C115: Customer 5 | D115: Person 5 | E115: 675 | F115: 649 | G115: 717 | H115: 641 | I115: 610 | J115: 715 | K115: 661 | L115: 764 | M115: 703 | N115: 614 | O115: 561 | P115: 694 | Q115: 738 | R115: 703 | S115: 728 | T115: 565 | U115: 737 | V115: 706 | W115: 699 | X115: 788 | Y115: 736 | Z115: 791 | AA115: 762 | AB115: 696 | AC115: 16653 | AD115: All-in-one Desktop | AE115: Full-time Employee | AF115: Fermin Quin | AG115: 2041 | AH115: 1966 | AI115: 2128 | AJ115: 1869 | AK115: 2169 | AL115: 2008 | AM115: 2223 | AN115: 2249
A116: Region 4 | B116: Product 10 | C116: Customer 6 | D116: Person 6 | E116: 661 | F116: 804 | G116: 658 | H116: 603 | I116: 631 | J116: 639 | K116: 635 | L116: 662 | M116: 627 | N116: 679 | O116: 709 | P116: 844 | Q116: 766 | R116: 819 | S116: 832 | T116: 603 | U116: 645 | V116: 657 | W116: 688 | X116: 750 | Y116: 758 | Z116: 650 | AA116: 899 | AB116: 793 | AC116: 17012 | AD116: All-in-one Desktop | AE116: Business Owner | AF116: Glenda Harbaugh | AG116: 2123 | AH116: 1873 | AI116: 1924 | AJ116: 2232 | AK116: 2417 | AL116: 1905 | AM116: 2196 | AN116: 2342
A117: Region 4 | B117: Product 10 | C117: Customer 7 | D117: Person 7 | E117: 618 | F117: 672 | G117: 876 | H117: 900 | I117: 799 | J117: 742 | K117: 624 | L117: 898 | M117: 623 | N117: 883 | O117: 679 | P117: 617 | Q117: 766 | R117: 684 | S117: 768 | T117: 669 | U117: 749 | V117: 874 | W117: 805 | X117: 747 | Y117: 789 | Z117: 781 | AA117: 768 | AB117: 778 | AC117: 18109 | AD117: All-in-one Desktop | AE117: Maintstream Youth | AF117: Jarrett Rimmer | AG117: 2166 | AH117: 2441 | AI117: 2145 | AJ117: 2179 | AK117: 2218 | AL117: 2292 | AM117: 2341 | AN117: 2327
A118: Region 4 | B118: Product 10 | C118: Customer 8 | D118: Person 8 | E118: 619 | F118: 686 | G118: 692 | H118: 771 | I118: 672 | J118: 675 | K118: 769 | L118: 640 | M118: 721 | N118: 641 | O118: 678 | P118: 698 | Q118: 781 | R118: 648 | S118: 665 | T118: 748 | U118: 743 | V118: 653 | W118: 770 | X118: 640 | Y118: 730 | Z118: 789 | AA118: 768 | AB118: 617 | AC118: 16814 | AD118: All-in-one Desktop | AE118: Retired | AF118: Li Bruni | AG118: 1997 | AH118: 2118 | AI118: 2130 | AJ118: 2017 | AK118: 2094 | AL118: 2144 | AM118: 2140 | AN118: 2174
A119: Region 4 | B119: Product 10 | C119: Customer 9 | D119: Person 9 | E119: 1363 | F119: 1185 | G119: 1078 | H119: 1197 | I119: 897 | J119: 1218 | K119: 1070 | L119: 1145 | M119: 1290 | N119: 1299 | O119: 1154 | P119: 1375 | Q119: 1034 | R119: 1215 | S119: 999 | T119: 1392 | U119: 1248 | V119: 1284 | W119: 1084 | X119: 1036 | Y119: 1248 | Z119: 986 | AA119: 1399 | AB119: 1161 | AC119: 28357 | AD119: All-in-one Desktop | AE119: Government | AF119: Linwood Camargo | AG119: 3626 | AH119: 3312 | AI119: 3505 | AJ119: 3828 | AK119: 3248 | AL119: 3924 | AM119: 3368 | AN119: 3546
A120: Region 4 | B120: Product 10 | C120: Customer 10 | D120: Person 10 | E120: 638 | F120: 736 | G120: 607 | H120: 652 | I120: 694 | J120: 607 | K120: 670 | L120: 652 | M120: 774 | N120: 552 | O120: 755 | P120: 622 | Q120: 665 | R120: 559 | S120: 583 | T120: 736 | U120: 599 | V120: 714 | W120: 756 | X120: 566 | Y120: 693 | Z120: 621 | AA120: 575 | AB120: 797 | AC120: 15823 | AD120: All-in-one Desktop | AE120: Military | AF120: Norene McNeece | AG120: 1981 | AH120: 1953 | AI120: 2096 | AJ120: 1929 | AK120: 1807 | AL120: 2049 | AM120: 2015 | AN120: 1993
A121: Region 4 | B121: Product 10 | C121: Customer 11 | D121: Person 11 | E121: 616 | F121: 778 | G121: 650 | H121: 655 | I121: 737 | J121: 786 | K121: 745 | L121: 865 | M121: 604 | N121: 886 | O121: 639 | P121: 611 | Q121: 770 | R121: 684 | S121: 714 | T121: 603 | U121: 724 | V121: 705 | W121: 751 | X121: 874 | Y121: 891 | Z121: 604 | AA121: 890 | AB121: 742 | AC121: 17524 | AD121: All-in-one Desktop | AE121: Corporation | AF121: Rick Boehm | AG121: 2044 | AH121: 2178 | AI121: 2214 | AJ121: 2136 | AK121: 2168 | AL121: 2032 | AM121: 2516 | AN121: 2236
A122: Region 4 | B122: Product 10 | C122: Customer 12 | D122: Person 12 | E122: 899 | F122: 712 | G122: 668 | H122: 683 | I122: 851 | J122: 697 | K122: 692 | L122: 796 | M122: 735 | N122: 741 | O122: 651 | P122: 851 | Q122: 810 | R122: 659 | S122: 861 | T122: 742 | U122: 680 | V122: 664 | W122: 706 | X122: 716 | Y122: 602 | Z122: 634 | AA122: 852 | AB122: 853 | AC122: 17755 | AD122: All-in-one Desktop | AE122: NPO/NGO | AF122: Sueann Olivero | AG122: 2279 | AH122: 2231 | AI122: 2223 | AJ122: 2243 | AK122: 2330 | AL122: 2086 | AM122: 2024 | AN122: 2339
A123: Region 4 | B123: Product 11 | C123: Customer 1 | D123: Person 1 | E123: 671 | F123: 721 | G123: 658 | H123: 729 | I123: 627 | J123: 632 | K123: 693 | L123: 650 | M123: 778 | N123: 649 | O123: 602 | P123: 666 | Q123: 787 | R123: 760 | S123: 761 | T123: 755 | U123: 717 | V123: 602 | W123: 746 | X123: 701 | Y123: 754 | Z123: 640 | AA123: 638 | AB123: 693 | AC123: 16630 | AD123: Gamer's Desktop | AE123: College Student | AF123: Bo Kornegay | AG123: 2050 | AH123: 1988 | AI123: 2121 | AJ123: 1917 | AK123: 2308 | AL123: 2074 | AM123: 2201 | AN123: 1971
A124: Region 4 | B124: Product 11 | C124: Customer 2 | D124: Person 2 | E124: 1232 | F124: 1311 | G124: 1225 | H124: 1087 | I124: 1128 | J124: 1320 | K124: 943 | L124: 1289 | M124: 1186 | N124: 1328 | O124: 928 | P124: 1345 | Q124: 1167 | R124: 812 | S124: 801 | T124: 1374 | U124: 949 | V124: 980 | W124: 1108 | X124: 1058 | Y124: 1175 | Z124: 1201 | AA124: 1034 | AB124: 1376 | AC124: 27357 | AD124: Gamer's Desktop | AE124: Post Graduate Student | AF124: Britta Blakley | AG124: 3768 | AH124: 3535 | AI124: 3418 | AJ124: 3601 | AK124: 2780 | AL124: 3303 | AM124: 3341 | AN124: 3611
A125: Region 4 | B125: Product 11 | C125: Customer 3 | D125: Person 3 | E125: 788 | F125: 586 | G125: 639 | H125: 789 | I125: 778 | J125: 632 | K125: 774 | L125: 681 | M125: 614 | N125: 635 | O125: 561 | P125: 581 | Q125: 659 | R125: 737 | S125: 745 | T125: 564 | U125: 749 | V125: 764 | W125: 793 | X125: 684 | Y125: 789 | Z125: 718 | AA125: 551 | AB125: 742 | AC125: 16553 | AD125: Gamer's Desktop | AE125: Full-time Parent | AF125: Brock Stalder | AG125: 2013 | AH125: 2199 | AI125: 2069 | AJ125: 1777 | AK125: 2141 | AL125: 2077 | AM125: 2266 | AN125: 2011
A126: Region 4 | B126: Product 11 | C126: Customer 4 | D126: Person 4 | E126: 617 | F126: 783 | G126: 802 | H126: 757 | I126: 888 | J126: 738 | K126: 840 | L126: 691 | M126: 653 | N126: 809 | O126: 611 | P126: 671 | Q126: 616 | R126: 798 | S126: 768 | T126: 657 | U126: 758 | V126: 776 | W126: 896 | X126: 680 | Y126: 702 | Z126: 842 | AA126: 897 | AB126: 606 | AC126: 17856 | AD126: Gamer's Desktop | AE126: Self-Employed | AF126: Catherine Shoaff | AG126: 2202 | AH126: 2383 | AI126: 2184 | AJ126: 2091 | AK126: 2182 | AL126: 2191 | AM126: 2278 | AN126: 2345
A127: Region 4 | B127: Product 11 | C127: Customer 5 | D127: Person 5 | E127: 630 | F127: 769 | G127: 882 | H127: 600 | I127: 764 | J127: 646 | K127: 900 | L127: 797 | M127: 708 | N127: 857 | O127: 789 | P127: 862 | Q127: 772 | R127: 665 | S127: 633 | T127: 779 | U127: 796 | V127: 615 | W127: 723 | X127: 649 | Y127: 888 | Z127: 692 | AA127: 631 | AB127: 635 | AC127: 17682 | AD127: Gamer's Desktop | AE127: Full-time Employee | AF127: Fermin Quin | AG127: 2281 | AH127: 2010 | AI127: 2405 | AJ127: 2508 | AK127: 2070 | AL127: 2190 | AM127: 2260 | AN127: 1958
A128: Region 4 | B128: Product 11 | C128: Customer 6 | D128: Person 6 | E128: 631 | F128: 796 | G128: 639 | H128: 606 | I128: 759 | J128: 781 | K128: 744 | L128: 692 | M128: 682 | N128: 620 | O128: 746 | P128: 696 | Q128: 636 | R128: 695 | S128: 614 | T128: 783 | U128: 630 | V128: 629 | W128: 703 | X128: 795 | Y128: 714 | Z128: 769 | AA128: 795 | AB128: 632 | AC128: 16787 | AD128: Gamer's Desktop | AE128: Business Owner | AF128: Glenda Harbaugh | AG128: 2066 | AH128: 2146 | AI128: 2118 | AJ128: 2062 | AK128: 1945 | AL128: 2042 | AM128: 2212 | AN128: 2196
A129: Region 4 | B129: Product 11 | C129: Customer 7 | D129: Person 7 | E129: 1079 | F129: 1033 | G129: 931 | H129: 1336 | I129: 1208 | J129: 1345 | K129: 903 | L129: 1330 | M129: 976 | N129: 1104 | O129: 968 | P129: 901 | Q129: 1237 | R129: 1252 | S129: 1390 | T129: 885 | U129: 1228 | V129: 998 | W129: 888 | X129: 995 | Y129: 1189 | Z129: 1328 | AA129: 1131 | AB129: 1260 | AC129: 26895 | AD129: Gamer's Desktop | AE129: Maintstream Youth | AF129: Jarrett Rimmer | AG129: 3043 | AH129: 3889 | AI129: 3209 | AJ129: 2973 | AK129: 3879 | AL129: 3111 | AM129: 3072 | AN129: 3719
A130: Region 4 | B130: Product 11 | C130: Customer 8 | D130: Person 8 | E130: 782 | F130: 638 | G130: 762 | H130: 710 | I130: 749 | J130: 643 | K130: 622 | L130: 660 | M130: 586 | N130: 568 | O130: 777 | P130: 688 | Q130: 638 | R130: 712 | S130: 583 | T130: 578 | U130: 575 | V130: 726 | W130: 603 | X130: 575 | Y130: 634 | Z130: 579 | AA130: 696 | AB130: 746 | AC130: 15830 | AD130: Gamer's Desktop | AE130: Retired | AF130: Li Bruni | AG130: 2182 | AH130: 2102 | AI130: 1868 | AJ130: 2033 | AK130: 1933 | AL130: 1879 | AM130: 1812 | AN130: 2021
A131: Region 4 | B131: Product 11 | C131: Customer 9 | D131: Person 9 | E131: 627 | F131: 839 | G131: 729 | H131: 701 | I131: 691 | J131: 646 | K131: 804 | L131: 663 | M131: 861 | N131: 793 | O131: 706 | P131: 820 | Q131: 845 | R131: 884 | S131: 736 | T131: 853 | U131: 621 | V131: 887 | W131: 759 | X131: 709 | Y131: 817 | Z131: 702 | AA131: 637 | AB131: 684 | AC131: 18014 | AD131: Gamer's Desktop | AE131: Government | AF131: Linwood Camargo | AG131: 2195 | AH131: 2038 | AI131: 2328 | AJ131: 2319 | AK131: 2465 | AL131: 2361 | AM131: 2285 | AN131: 2023
A132: Region 4 | B132: Product 11 | C132: Customer 10 | D132: Person 10 | E132: 625 | F132: 706 | G132: 782 | H132: 896 | I132: 670 | J132: 631 | K132: 847 | L132: 898 | M132: 628 | N132: 854 | O132: 617 | P132: 900 | Q132: 890 | R132: 704 | S132: 814 | T132: 720 | U132: 900 | V132: 814 | W132: 811 | X132: 797 | Y132: 837 | Z132: 858 | AA132: 728 | AB132: 706 | AC132: =SUM(E132:AB132) -> 18633 | AD132: Gamer's Desktop | AE132: Military | AF132: Norene McNeece | AG132: =SUM(E132:G132) -> 2113 | AH132: =SUM(H132:J132) -> 2197 | AI132: =SUM(K132:M132) -> 2373 | AJ132: =SUM(N132:P132) -> 2371 | AK132: =SUM(Q132:S132) -> 2408 | AL132: =SUM(T132:V132) -> 2434 | AM132: =SUM(W132:Y132) -> 2445 | AN132: =SUM(Z132:AB132) -> 2292
A133: Region 4 | B133: Product 11 | C133: Customer 11 | D133: Person 11 | E133: 681 | F133: 793 | G133: 757 | H133: 666 | I133: 737 | J133: 654 | K133: 638 | L133: 610 | M133: 647 | N133: 770 | O133: 770 | P133: 797 | Q133: 669 | R133: 601 | S133: 745 | T133: 630 | U133: 663 | V133: 768 | W133: 767 | X133: 719 | Y133: 748 | Z133: 726 | AA133: 770 | AB133: 675 | AC133: 17001 | AD133: Gamer's Desktop | AE133: Corporation | AF133: Rick Boehm | AG133: 2231 | AH133: 2057 | AI133: 1895 | AJ133: 2337 | AK133: 2015 | AL133: 2061 | AM133: 2234 | AN133: 2171
A134: Region 4 | B134: Product 11 | C134: Customer 12 | D134: Person 12 | E134: 950 | F134: 1060 | G134: 1276 | H134: 1073 | I134: 1238 | J134: 802 | K134: 1207 | L134: 1115 | M134: 1043 | N134: 1170 | O134: 1236 | P134: 1318 | Q134: 1204 | R134: 1212 | S134: 1350 | T134: 1276 | U134: 939 | V134: 1081 | W134: 1006 | X134: 981 | Y134: 847 | Z134: 1120 | AA134: 1332 | AB134: 1029 | AC134: 26865 | AD134: Gamer's Desktop | AE134: NPO/NGO | AF134: Sueann Olivero | AG134: 3286 | AH134: 3113 | AI134: 3365 | AJ134: 3724 | AK134: 3766 | AL134: 3296 | AM134: 2834 | AN134: 3481
A135: Region 4 | B135: Product 12 | C135: Customer 1 | D135: Person 1 | E135: 620 | F135: 562 | G135: 647 | H135: 598 | I135: 643 | J135: 598 | K135: 695 | L135: 636 | M135: 781 | N135: 566 | O135: 734 | P135: 727 | Q135: 800 | R135: 780 | S135: 739 | T135: 685 | U135: 555 | V135: 644 | W135: 769 | X135: 759 | Y135: 688 | Z135: 657 | AA135: 651 | AB135: 707 | AC135: 16241 | AD135: Elite Desktop | AE135: College Student | AF135: Bo Kornegay | AG135: 1829 | AH135: 1839 | AI135: 2112 | AJ135: 2027 | AK135: 2319 | AL135: 1884 | AM135: 2216 | AN135: 2015
A136: Region 4 | B136: Product 12 | C136: Customer 2 | D136: Person 2 | E136: 856 | F136: 724 | G136: 765 | H136: 883 | I136: 892 | J136: 761 | K136: 857 | L136: 796 | M136: 613 | N136: 723 | O136: 716 | P136: 842 | Q136: 802 | R136: 616 | S136: 839 | T136: 661 | U136: 834 | V136: 698 | W136: 625 | X136: 655 | Y136: 624 | Z136: 659 | AA136: 775 | AB136: 689 | AC136: 17905 | AD136: Elite Desktop | AE136: Post Graduate Student | AF136: Britta Blakley | AG136: 2345 | AH136: 2536 | AI136: 2266 | AJ136: 2281 | AK136: 2257 | AL136: 2193 | AM136: 1904 | AN136: 2123
A137: Region 4 | B137: Product 12 | C137: Customer 3 | D137: Person 3 | E137: 662 | F137: 794 | G137: 893 | H137: 667 | I137: 605 | J137: 812 | K137: 604 | L137: 880 | M137: 898 | N137: 788 | O137: 886 | P137: 755 | Q137: 609 | R137: 848 | S137: 602 | T137: 857 | U137: 686 | V137: 673 | W137: 655 | X137: 750 | Y137: 752 | Z137: 794 | AA137: 734 | AB137: 661 | AC137: 17865 | AD137: Elite Desktop | AE137: Full-time Parent | AF137: Brock Stalder | AG137: 2349 | AH137: 2084 | AI137: 2382 | AJ137: 2429 | AK137: 2059 | AL137: 2216 | AM137: 2157 | AN137: 2189
A138: Region 4 | B138: Product 12 | C138: Customer 4 | D138: Person 4 | E138: 719 | F138: 787 | G138: 609 | H138: 634 | I138: 700 | J138: 725 | K138: 759 | L138: 640 | M138: 745 | N138: 615 | O138: 773 | P138: 638 | Q138: 709 | R138: 764 | S138: 644 | T138: 761 | U138: 614 | V138: 752 | W138: 761 | X138: 720 | Y138: 781 | Z138: 692 | AA138: 705 | AB138: 676 | AC138: 16923 | AD138: Elite Desktop | AE138: Self-Employed | AF138: Catherine Shoaff | AG138: 2115 | AH138: 2059 | AI138: 2144 | AJ138: 2026 | AK138: 2117 | AL138: 2127 | AM138: 2262 | AN138: 2073
A139: Region 4 | B139: Product 12 | C139: Customer 5 | D139: Person 5 | E139: 1239 | F139: 1385 | G139: 823 | H139: 1069 | I139: 1336 | J139: 857 | K139: 869 | L139: 901 | M139: 812 | N139: 1352 | O139: 1084 | P139: 1081 | Q139: 1323 | R139: 1261 | S139: 1334 | T139: 1372 | U139: 949 | V139: 1165 | W139: 962 | X139: 1211 | Y139: 1304 | Z139: 956 | AA139: 1214 | AB139: 1097 | AC139: 26956 | AD139: Elite Desktop | AE139: Full-time Employee | AF139: Fermin Quin | AG139: 3447 | AH139: 3262 | AI139: 2582 | AJ139: 3517 | AK139: 3918 | AL139: 3486 | AM139: 3477 | AN139: 3267
A140: Region 4 | B140: Product 12 | C140: Customer 6 | D140: Person 6 | E140: 665 | F140: 781 | G140: 580 | H140: 798 | I140: 618 | J140: 685 | K140: 571 | L140: 672 | M140: 730 | N140: 588 | O140: 610 | P140: 568 | Q140: 712 | R140: 746 | S140: 602 | T140: 599 | U140: 661 | V140: 587 | W140: 586 | X140: 693 | Y140: 622 | Z140: 681 | AA140: 614 | AB140: 706 | AC140: 15675 | AD140: =VLOOKUP(B140,lookup,2,FALSE) -> Elite Desktop | AE140: =VLOOKUP(C140,lookup,2,FALSE) -> Business Owner | AF140: =VLOOKUP(D140,lookup,2,FALSE) -> Glenda Harbaugh | AG140: 2026 | AH140: 2101 | AI140: 1973 | AJ140: 1766 | AK140: 2060 | AL140: 1847 | AM140: 1901 | AN140: 2001
A141: Region 4 | B141: Product 12 | C141: Customer 7 | D141: Person 7 | E141: 688 | F141: 716 | G141: 797 | H141: 618 | I141: 628 | J141: 745 | K141: 731 | L141: 773 | M141: 724 | N141: 741 | O141: 656 | P141: 611 | Q141: 750 | R141: 755 | S141: 890 | T141: 776 | U141: 726 | V141: 849 | W141: 627 | X141: 679 | Y141: 781 | Z141: 875 | AA141: 803 | AB141: 898 | AC141: 17837 | AD141: Elite Desktop | AE141: Maintstream Youth | AF141: Jarrett Rimmer | AG141: 2201 | AH141: 1991 | AI141: 2228 | AJ141: 2008 | AK141: 2395 | AL141: 2351 | AM141: 2087 | AN141: 2576
A142: Region 4 | B142: Product 12 | C142: Customer 8 | D142: Person 8 | E142: 833 | F142: 736 | G142: 643 | H142: 887 | I142: 725 | J142: 702 | K142: 653 | L142: 682 | M142: 753 | N142: 712 | O142: 800 | P142: 668 | Q142: 856 | R142: 666 | S142: 692 | T142: 770 | U142: 672 | V142: 896 | W142: 674 | X142: 817 | Y142: 898 | Z142: 769 | AA142: 674 | AB142: 638 | AC142: 17816 | AD142: Elite Desktop | AE142: Retired | AF142: Li Bruni | AG142: 2212 | AH142: 2314 | AI142: 2088 | AJ142: 2180 | AK142: 2214 | AL142: 2338 | AM142: 2389 | AN142: 2081
A143: Region 4 | B143: Product 12 | C143: Customer 9 | D143: Person 9 | E143: 749 | F143: 683 | G143: 739 | H143: 714 | I143: 742 | J143: 767 | K143: 676 | L143: 670 | M143: 629 | N143: 683 | O143: 625 | P143: 616 | Q143: 646 | R143: 625 | S143: 717 | T143: 604 | U143: 758 | V143: 604 | W143: 715 | X143: 647 | Y143: 753 | Z143: 704 | AA143: 764 | AB143: 721 | AC143: 16551 | AD143: Elite Desktop | AE143: Government | AF143: Linwood Camargo | AG143: 2171 | AH143: 2223 | AI143: 1975 | AJ143: 1924 | AK143: 1988 | AL143: 1966 | AM143: 2115 | AN143: 2189
A144: Region 4 | B144: Product 12 | C144: Customer 10 | D144: Person 10 | E144: 819 | F144: 870 | G144: 817 | H144: 1178 | I144: 917 | J144: 941 | K144: 1017 | L144: 1118 | M144: 1316 | N144: 1035 | O144: 1045 | P144: 1026 | Q144: 1348 | R144: 1302 | S144: 1119 | T144: 1181 | U144: 1210 | V144: 1157 | W144: 902 | X144: 1311 | Y144: 1097 | Z144: 1199 | AA144: 1034 | AB144: 1118 | AC144: 26077 | AD144: Elite Desktop | AE144: Military | AF144: Norene McNeece | AG144: 2506 | AH144: 3036 | AI144: 3451 | AJ144: 3106 | AK144: 3769 | AL144: 3548 | AM144: 3310 | AN144: 3351
A145: Region 4 | B145: Product 12 | C145: Customer 11 | D145: Person 11 | E145: 653 | F145: 727 | G145: 768 | H145: 756 | I145: 595 | J145: 577 | K145: 796 | L145: 740 | M145: 551 | N145: 776 | O145: 601 | P145: 651 | Q145: 637 | R145: 561 | S145: 608 | T145: 658 | U145: 621 | V145: 787 | W145: 702 | X145: 582 | Y145: 611 | Z145: 698 | AA145: 694 | AB145: 695 | AC145: 16045 | AD145: Elite Desktop | AE145: Corporation | AF145: Rick Boehm | AG145: 2148 | AH145: 1928 | AI145: 2087 | AJ145: 2028 | AK145: 1806 | AL145: 2066 | AM145: 1895 | AN145: 2087
A146: Region 4 | B146: Product 12 | C146: Customer 12 | D146: Person 12 | E146: 727 | F146: 696 | G146: 821 | H146: 629 | I146: 715 | J146: 847 | K146: 760 | L146: 759 | M146: 879 | N146: 697 | O146: 690 | P146: 844 | Q146: 668 | R146: 624 | S146: 657 | T146: 834 | U146: 795 | V146: 730 | W146: 896 | X146: 790 | Y146: 648 | Z146: 782 | AA146: 777 | AB146: 845 | AC146: 18110 | AD146: Elite Desktop | AE146: NPO/NGO | AF146: Sueann Olivero | AG146: 2244 | AH146: 2191 | AI146: 2398 | AJ146: 2231 | AK146: 1949 | AL146: 2359 | AM146: 2334 | AN146: 2404

Sheet Sum Over Time
A1: Region: | B1: =Dashboard!C17 -> All Regions
A2: Product | B2: Q1 2011 | C2: Q2 2011 | D2: Q3 2011 | E2: Q4 2011 | F2: Q1 2012 | G2: Q2 2012 | H2: Q3 2012 | I2: Q4 2012
A3: All-in-one Desktop | B3: =SUM(IF(products=$A3,IF($B$1="All Regions",qtr1_2011,IF(region=$B$1,qtr1_2011)))) -> 28204 | C3: =SUM(IF(products=$A3,IF($B$1="All Regions",qtr2_2011,IF(region=$B$1,qtr2_2011)))) -> 27903 | D3: =SUM(IF(products=$A3,IF($B$1="All Regions",qtr3_2011,IF(region=$B$1,qtr3_2011)))) -> 28621 | E3: =SUM(IF(products=$A3,IF($B$1="All Regions",qtr4_2011,IF(region=$B$1,qtr4_2011)))) -> 28086 | F3: =SUM(IF(products=$A3,IF($B$1="All Regions",qtr1_2012,IF(region=$B$1,qtr1_2012)))) -> 28304 | G3: =SUM(IF(products=$A3,IF($B$1="All Regions",qtr2_2012,IF(region=$B$1,qtr2_2012)))) -> 28839 | H3: =SUM(IF(products=$A3,IF($B$1="All Regions",qtr3_2012,IF(region=$B$1,qtr3_2012)))) -> 28942 | I3: =SUM(IF(products=$A3,IF($B$1="All Regions",qtr4_2012,IF(region=$B$1,qtr4_2012)))) -> 29270
A4: Economy Laptop | B4: =SUM(IF(products=$A4,IF($B$1="All Regions",qtr1_2011,IF(region=$B$1,qtr1_2011)))) -> 28976 | C4: =SUM(IF(products=$A4,IF($B$1="All Regions",qtr2_2011,IF(region=$B$1,qtr2_2011)))) -> 28811 | D4: =SUM(IF(products=$A4,IF($B$1="All Regions",qtr3_2011,IF(region=$B$1,qtr3_2011)))) -> 29222 | E4: =SUM(IF(products=$A4,IF($B$1="All Regions",qtr4_2011,IF(region=$B$1,qtr4_2011)))) -> 28074 | F4: =SUM(IF(products=$A4,IF($B$1="All Regions",qtr1_2012,IF(region=$B$1,qtr1_2012)))) -> 28066 | G4: =SUM(IF(products=$A4,IF($B$1="All Regions",qtr2_2012,IF(region=$B$1,qtr2_2012)))) -> 28908 | H4: =SUM(IF(products=$A4,IF($B$1="All Regions",qtr3_2012,IF(region=$B$1,qtr3_2012)))) -> 27625 | I4: =SUM(IF(products=$A4,IF($B$1="All Regions",qtr4_2012,IF(region=$B$1,qtr4_2012)))) -> 28207
A5: Elite Desktop | B5: =SUM(IF(products=$A5,IF($B$1="All Regions",qtr1_2011,IF(region=$B$1,qtr1_2011)))) -> 27593 | C5: =SUM(IF(products=$A5,IF($B$1="All Regions",qtr2_2011,IF(region=$B$1,qtr2_2011)))) -> 27564 | D5: =SUM(IF(products=$A5,IF($B$1="All Regions",qtr3_2011,IF(region=$B$1,qtr3_2011)))) -> 27686 | E5: =SUM(IF(products=$A5,IF($B$1="All Regions",qtr4_2011,IF(region=$B$1,qtr4_2011)))) -> 27523 | F5: =SUM(IF(products=$A5,IF($B$1="All Regions",qtr1_2012,IF(region=$B$1,qtr1_2012)))) -> 28851 | G5: =SUM(IF(products=$A5,IF($B$1="All Regions",qtr2_2012,IF(region=$B$1,qtr2_2012)))) -> 28381 | H5: =SUM(IF(products=$A5,IF($B$1="All Regions",qtr3_2012,IF(region=$B$1,qtr3_2012)))) -> 28047 | I5: =SUM(IF(products=$A5,IF($B$1="All Regions",qtr4_2012,IF(region=$B$1,qtr4_2012)))) -> 28356
A6: Elite Laptop | B6: =SUM(IF(products=$A6,IF($B$1="All Regions",qtr1_2011,IF(region=$B$1,qtr1_2011)))) -> 28059 | C6: =SUM(IF(products=$A6,IF($B$1="All Regions",qtr2_2011,IF(region=$B$1,qtr2_2011)))) -> 29530 | D6: =SUM(IF(products=$A6,IF($B$1="All Regions",qtr3_2011,IF(region=$B$1,qtr3_2011)))) -> 29262 | E6: =SUM(IF(products=$A6,IF($B$1="All Regions",qtr4_2011,IF(region=$B$1,qtr4_2011)))) -> 29268 | F6: =SUM(IF(products=$A6,IF($B$1="All Regions",qtr1_2012,IF(region=$B$1,qtr1_2012)))) -> 29165 | G6: =SUM(IF(products=$A6,IF($B$1="All Regions",qtr2_2012,IF(region=$B$1,qtr2_2012)))) -> 28809 | H6: =SUM(IF(products=$A6,IF($B$1="All Regions",qtr3_2012,IF(region=$B$1,qtr3_2012)))) -> 29791 | I6: =SUM(IF(products=$A6,IF($B$1="All Regions",qtr4_2012,IF(region=$B$1,qtr4_2012)))) -> 29818
A7: Gamer's Desktop | B7: =SUM(IF(products=$A7,IF($B$1="All Regions",qtr1_2011,IF(region=$B$1,qtr1_2011)))) -> 29430 | C7: =SUM(IF(products=$A7,IF($B$1="All Regions",qtr2_2011,IF(region=$B$1,qtr2_2011)))) -> 29657 | D7: =SUM(IF(products=$A7,IF($B$1="All Regions",qtr3_2011,IF(region=$B$1,qtr3_2011)))) -> 29353 | E7: =SUM(IF(products=$A7,IF($B$1="All Regions",qtr4_2011,IF(region=$B$1,qtr4_2011)))) -> 29713 | F7: =SUM(IF(products=$A7,IF($B$1="All Regions",qtr1_2012,IF(region=$B$1,qtr1_2012)))) -> 29892 | G7: =SUM(IF(products=$A7,IF($B$1="All Regions",qtr2_2012,IF(region=$B$1,qtr2_2012)))) -> 29019 | H7: =SUM(IF(products=$A7,IF($B$1="All Regions",qtr3_2012,IF(region=$B$1,qtr3_2012)))) -> 29240 | I7: =SUM(IF(products=$A7,IF($B$1="All Regions",qtr4_2012,IF(region=$B$1,qtr4_2012)))) -> 29799
A8: Hybrid Laptop | B8: =SUM(IF(products=$A8,IF($B$1="All Regions",qtr1_2011,IF(region=$B$1,qtr1_2011)))) -> 27328 | C8: =SUM(IF(products=$A8,IF($B$1="All Regions",qtr2_2011,IF(region=$B$1,qtr2_2011)))) -> 28624 | D8: =SUM(IF(products=$A8,IF($B$1="All Regions",qtr3_2011,IF(region=$B$1,qtr3_2011)))) -> 28842 | E8: =SUM(IF(products=$A8,IF($B$1="All Regions",qtr4_2011,IF(region=$B$1,qtr4_2011)))) -> 27598 | F8: =SUM(IF(products=$A8,IF($B$1="All Regions",qtr1_2012,IF(region=$B$1,qtr1_2012)))) -> 27807 | G8: =SUM(IF(products=$A8,IF($B$1="All Regions",qtr2_2012,IF(region=$B$1,qtr2_2012)))) -> 27671 | H8: =SUM(IF(products=$A8,IF($B$1="All Regions",qtr3_2012,IF(region=$B$1,qtr3_2012)))) -> 27990 | I8: =SUM(IF(products=$A8,IF($B$1="All Regions",qtr4_2012,IF(region=$B$1,qtr4_2012)))) -> 28015
A9: Powerhouse Laptop | B9: =SUM(IF(products=$A9,IF($B$1="All Regions",qtr1_2011,IF(region=$B$1,qtr1_2011)))) -> 28156 | C9: =SUM(IF(products=$A9,IF($B$1="All Regions",qtr2_2011,IF(region=$B$1,qtr2_2011)))) -> 28360 | D9: =SUM(IF(products=$A9,IF($B$1="All Regions",qtr3_2011,IF(region=$B$1,qtr3_2011)))) -> 27778 | E9: =SUM(IF(products=$A9,IF($B$1="All Regions",qtr4_2011,IF(region=$B$1,qtr4_2011)))) -> 27129 | F9: =SUM(IF(products=$A9,IF($B$1="All Regions",qtr1_2012,IF(region=$B$1,qtr1_2012)))) -> 28003 | G9: =SUM(IF(products=$A9,IF($B$1="All Regions",qtr2_2012,IF(region=$B$1,qtr2_2012)))) -> 28645 | H9: =SUM(IF(products=$A9,IF($B$1="All Regions",qtr3_2012,IF(region=$B$1,qtr3_2012)))) -> 28739 | I9: =SUM(IF(products=$A9,IF($B$1="All Regions",qtr4_2012,IF(region=$B$1,qtr4_2012)))) -> 29290
A10: Series 5000 Tablet | B10: =SUM(IF(products=$A10,IF($B$1="All Regions",qtr1_2011,IF(region=$B$1,qtr1_2011)))) -> 27279 | C10: =SUM(IF(products=$A10,IF($B$1="All Regions",qtr2_2011,IF(region=$B$1,qtr2_2011)))) -> 28699 | D10: =SUM(IF(products=$A10,IF($B$1="All Regions",qtr3_2011,IF(region=$B$1,qtr3_2011)))) -> 28246 | E10: =SUM(IF(products=$A10,IF($B$1="All Regions",qtr4_2011,IF(region=$B$1,qtr4_2011)))) -> 28629 | F10: =SUM(IF(products=$A10,IF($B$1="All Regions",qtr1_2012,IF(region=$B$1,qtr1_2012)))) -> 28946 | G10: =SUM(IF(products=$A10,IF($B$1="All Regions",qtr2_2012,IF(region=$B$1,qtr2_2012)))) -> 27847 | H10: =SUM(IF(products=$A10,IF($B$1="All Regions",qtr3_2012,IF(region=$B$1,qtr3_2012)))) -> 28761 | I10: =SUM(IF(products=$A10,IF($B$1="All Regions",qtr4_2012,IF(region=$B$1,qtr4_2012)))) -> 28018
A11: Series 8000 Tablet | B11: =SUM(IF(products=$A11,IF($B$1="All Regions",qtr1_2011,IF(region=$B$1,qtr1_2011)))) -> 27327 | C11: =SUM(IF(products=$A11,IF($B$1="All Regions",qtr2_2011,IF(region=$B$1,qtr2_2011)))) -> 29706 | D11: =SUM(IF(products=$A11,IF($B$1="All Regions",qtr3_2011,IF(region=$B$1,qtr3_2011)))) -> 28576 | E11: =SUM(IF(products=$A11,IF($B$1="All Regions",qtr4_2011,IF(region=$B$1,qtr4_2011)))) -> 29282 | F11: =SUM(IF(products=$A11,IF($B$1="All Regions",qtr1_2012,IF(region=$B$1,qtr1_2012)))) -> 29277 | G11: =SUM(IF(products=$A11,IF($B$1="All Regions",qtr2_2012,IF(region=$B$1,qtr2_2012)))) -> 30149 | H11: =SUM(IF(products=$A11,IF($B$1="All Regions",qtr3_2012,IF(region=$B$1,qtr3_2012)))) -> 28632 | I11: =SUM(IF(products=$A11,IF($B$1="All Regions",qtr4_2012,IF(region=$B$1,qtr4_2012)))) -> 28564
A12: Thin Laptop | B12: =SUM(IF(products=$A12,IF($B$1="All Regions",qtr1_2011,IF(region=$B$1,qtr1_2011)))) -> 29658 | C12: =SUM(IF(products=$A12,IF($B$1="All Regions",qtr2_2011,IF(region=$B$1,qtr2_2011)))) -> 29401 | D12: =SUM(IF(products=$A12,IF($B$1="All Regions",qtr3_2011,IF(region=$B$1,qtr3_2011)))) -> 28389 | E12: =SUM(IF(products=$A12,IF($B$1="All Regions",qtr4_2011,IF(region=$B$1,qtr4_2011)))) -> 29323 | F12: =SUM(IF(products=$A12,IF($B$1="All Regions",qtr1_2012,IF(region=$B$1,qtr1_2012)))) -> 29466 | G12: =SUM(IF(products=$A12,IF($B$1="All Regions",qtr2_2012,IF(region=$B$1,qtr2_2012)))) -> 29211 | H12: =SUM(IF(products=$A12,IF($B$1="All Regions",qtr3_2012,IF(region=$B$1,qtr3_2012)))) -> 28906 | I12: =SUM(IF(products=$A12,IF($B$1="All Regions",qtr4_2012,IF(region=$B$1,qtr4_2012)))) -> 30589
A13: Touchscreen Laptop | B13: =SUM(IF(products=$A13,IF($B$1="All Regions",qtr1_2011,IF(region=$B$1,qtr1_2011)))) -> 28712 | C13: =SUM(IF(products=$A13,IF($B$1="All Regions",qtr2_2011,IF(region=$B$1,qtr2_2011)))) -> 29021 | D13: =SUM(IF(products=$A13,IF($B$1="All Regions",qtr3_2011,IF(region=$B$1,qtr3_2011)))) -> 29393 | E13: =SUM(IF(products=$A13,IF($B$1="All Regions",qtr4_2011,IF(region=$B$1,qtr4_2011)))) -> 30124 | F13: =SUM(IF(products=$A13,IF($B$1="All Regions",qtr1_2012,IF(region=$B$1,qtr1_2012)))) -> 29638 | G13: =SUM(IF(products=$A13,IF($B$1="All Regions",qtr2_2012,IF(region=$B$1,qtr2_2012)))) -> 27919 | H13: =SUM(IF(products=$A13,IF($B$1="All Regions",qtr3_2012,IF(region=$B$1,qtr3_2012)))) -> 27642 | I13: =SUM(IF(products=$A13,IF($B$1="All Regions",qtr4_2012,IF(region=$B$1,qtr4_2012)))) -> 28861
A14: Hybrid Laptop LED | B14: =SUM(IF(products=$A14,IF($B$1="All Regions",qtr1_2011,IF(region=$B$1,qtr1_2011)))) -> 27600 | C14: =SUM(IF(products=$A14,IF($B$1="All Regions",qtr2_2011,IF(region=$B$1,qtr2_2011)))) -> 28764 | D14: =SUM(IF(products=$A14,IF($B$1="All Regions",qtr3_2011,IF(region=$B$1,qtr3_2011)))) -> 27400 | E14: =SUM(IF(products=$A14,IF($B$1="All Regions",qtr4_2011,IF(region=$B$1,qtr4_2011)))) -> 28149 | F14: =SUM(IF(products=$A14,IF($B$1="All Regions",qtr1_2012,IF(region=$B$1,qtr1_2012)))) -> 28869 | G14: =SUM(IF(products=$A14,IF($B$1="All Regions",qtr2_2012,IF(region=$B$1,qtr2_2012)))) -> 28151 | H14: =SUM(IF(products=$A14,IF($B$1="All Regions",qtr3_2012,IF(region=$B$1,qtr3_2012)))) -> 27340 | I14: =SUM(IF(products=$A14,IF($B$1="All Regions",qtr4_2012,IF(region=$B$1,qtr4_2012)))) -> 27880

Sheet Sums
A1: Type | B1: Description | C1: Total Sales | D1: Percent
A2: Product | B2: All-in-one Desktop | C2: =SUM(IF(products=B2,totalsales)) -> 228169 | D2: =C2/SUM($C$2:$C$13) -> 0.0830254026
A3: Product | B3: Economy Laptop | C3: =SUM(IF(products=B3,totalsales)) -> 227889 | D3: =C3/SUM($C$2:$C$13) -> 0.0829235171
A4: Product | B4: Elite Desktop | C4: =SUM(IF(products=B4,totalsales)) -> 224001 | D4: 0.08150876415
A5: Product | B5: Elite Laptop | C5: =SUM(IF(products=B5,totalsales)) -> 233702 | D5: 0.08503873286
A6: Product | B6: Gamer's Desktop | C6: =SUM(IF(products=B6,totalsales)) -> 236103 | D6: 0.08591240103
A7: Product | B7: Hybrid Laptop | C7: =SUM(IF(products=B7,totalsales)) -> 223875 | D7: 0.08146291568
A8: Product | B8: Powerhouse Laptop | C8: =SUM(IF(products=B8,totalsales)) -> 226100 | D8: 0.08227254153
A9: Product | B9: Series 5000 Tablet | C9: =SUM(IF(products=B9,totalsales)) -> 226425 | D9: 0.08239080149
A10: Product | B10: Series 8000 Tablet | C10: =SUM(IF(products=B10,totalsales)) -> 231513 | D10: 0.08424220658
A11: Product | B11: Thin Laptop | C11: =SUM(IF(products=B11,totalsales)) -> 234943 | D11: 0.08549030396
A12: Product | B12: Touchscreen Laptop | C12: =SUM(IF(products=B12,totalsales)) -> 231310 | D12: 0.08416833959
A13: Product | B13: Hybrid Laptop LED | C13: =SUM(IF(products=B13,totalsales)) -> 224153 | D13: 0.08156407343
A14: Salesperson | B14: Bo Kornegay | C14: =SUM(IF(salesperson=B14,totalsales)) -> 224129 | D14: =C14/SUM($C$2:$C$13) -> 0.08155534038
A15: Salesperson | B15: Britta Blakley | C15: =SUM(IF(salesperson=B15,totalsales)) -> 234674
A16: Salesperson | B16: Brock Stalder | C16: =SUM(IF(salesperson=B16,totalsales)) -> 229290
A17: Salesperson | B17: Catherine Shoaff | C17: =SUM(IF(salesperson=B17,totalsales)) -> 225617
A18: Salesperson | B18: Fermin Quin | C18: =SUM(IF(salesperson=B18,totalsales)) -> 237110
A19: Salesperson | B19: Glenda Harbaugh | C19: =SUM(IF(salesperson=B19,totalsales)) -> 218346
A20: Salesperson | B20: Jarrett Rimmer | C20: =SUM(IF(salesperson=B20,totalsales)) -> 236950
A21: Salesperson | B21: Li Bruni | C21: =SUM(IF(salesperson=B21,totalsales)) -> 220798
A22: Salesperson | B22: Linwood Camargo | C22: =SUM(IF(salesperson=B22,totalsales)) -> 225304
A23: Salesperson | B23: Norene McNeece | C23: =SUM(IF(salesperson=B23,totalsales)) -> 235131
A24: Salesperson | B24: Rick Boehm | C24: =SUM(IF(salesperson=B24,totalsales)) -> 225552
A25: Salesperson | B25: Sueann Olivero | C25: =SUM(IF(salesperson=B25,totalsales)) -> 235282
A26: Region | B26: Region 1 | C26: =SUM(IF(region=B26,totalsales)) -> 681285
A27: Region | B27: Region 2 | C27: =SUM(IF(region=B27,totalsales)) -> 694345
A28: Region | B28: Region 3 | C28: =SUM(IF(region=B28,totalsales)) -> 684280
A29: Region | B29: Region 4 | C29: =SUM(IF(region=B29,totalsales)) -> 688273
A30: Customer Type | B30: College Student | C30: =SUM(IF(customer_type=B30,totalsales)) -> 224129
A31: Customer Type | B31: Post Graduate Student | C31: =SUM(IF(customer_type=B31,totalsales)) -> 234674
A32: Customer Type | B32: Full-time Parent | C32: =SUM(IF(customer_type=B32,totalsales)) -> 229290
A33: Customer Type | B33: Self-Employed | C33: =SUM(IF(customer_type=B33,totalsales)) -> 225617
A34: Customer Type | B34: Full-time Employee | C34: =SUM(IF(customer_type=B34,totalsales)) -> 237110
A35: Customer Type | B35: Business Owner | C35: =SUM(IF(customer_type=B35,totalsales)) -> 218346
A36: Customer Type | B36: Maintstream Youth | C36: =SUM(IF(customer_type=B36,totalsales)) -> 236950
A37: Customer Type | B37: Retired | C37: =SUM(IF(customer_type=B37,totalsales)) -> 220798
A38: Customer Type | B38: Government | C38: =SUM(IF(customer_type=B38,totalsales)) -> 225304
A39: Customer Type | B39: Military | C39: =SUM(IF(customer_type=B39,totalsales)) -> 235131
A40: Customer Type | B40: Corporation | C40: =SUM(IF(customer_type=B40,totalsales)) -> 225552
A41: Customer Type | B41: NPO/NGO | C41: =SUM(IF(customer_type=B41,totalsales)) -> 235282

Sheet Financial Dashboard (hidden)
A1: Customer | B1: Industry | C1: Region | D1: Product | E1: Estimated Revenue ($000) | F1: Actual Revenue ($000) | G1: Quarter | H1: Year | I1: Sales Rep | J1: YQ | K1: IYQ | L1: RYQ | M1: SYQ | N1: PYQ
A2: Customer1 | B2: Consumer Goods | C2: Europe | D2: Product1 | E2: 250 | F2: 255 | G2: Q4 | H2: 2006 | I2: Fritz Klein | J2: 2006Q4 | K2: Consumer Goods2006Q4 | L2: Europe2006Q4 | M2: Fritz Klein2006Q4 | N2: Product12006Q4
A3: Customer2 | B3: Consumer Goods | C3: North America | D3: Product2 | E3: 200 | F3: 319 | G3: Q3 | H3: 2008 | I3: Porter Le | J3: 2008Q3 | K3: Consumer Goods2008Q3 | L3: North America2008Q3 | M3: Porter Le2008Q3 | N3: Product22008Q3
A4: Customer3 | B4: Services | C4: Asia Pacific | D4: Product1 | E4: 600 | F4: 123 | G4: Q3 | H4: 2006 | I4: Oren Chase | J4: 2006Q3 | K4: Services2006Q3 | L4: Asia Pacific2006Q3 | M4: Oren Chase2006Q3 | N4: Product12006Q3
A5: Customer4 | B5: Finance | C5: North America | D5: Product2 | E5: 400 | F5: 272 | G5: Q4 | H5: 2008 | I5: Porter Le | J5: 2008Q4 | K5: Finance2008Q4 | L5: North America2008Q4 | M5: Porter Le2008Q4 | N5: Product22008Q4
A6: Customer5 | B6: Consumer Goods | C6: Europe | D6: Product3 | E6: 200 | F6: 30 | G6: Q2 | H6: 2006 | I6: Fritz Klein | J6: 2006Q2 | K6: Consumer Goods2006Q2 | L6: Europe2006Q2 | M6: Fritz Klein2006Q2 | N6: Product32006Q2
A7: Customer6 | B7: Services | C7: North America | D7: Product4 | E7: 550 | F7: 537 | G7: Q1 | H7: 2007 | I7: Porter Le | J7: 2007Q1 | K7: Services2007Q1 | L7: North America2007Q1 | M7: Porter Le2007Q1 | N7: Product42007Q1
A8: Customer7 | B8: Technology | C8: North America | D8: Product4 | E8: 650 | F8: 89 | G8: Q4 | H8: 2005 | I8: Porter Le | J8: 2005Q4 | K8: Technology2005Q4 | L8: North America2005Q4 | M8: Porter Le2005Q4 | N8: Product42005Q4
A9: Customer8 | B9: Consumer Goods | C9: Europe | D9: Product2 | E9: 200 | F9: 249 | G9: Q4 | H9: 2003 | I9: Fritz Klein | J9: 2003Q4 | K9: Consumer Goods2003Q4 | L9: Europe2003Q4 | M9: Fritz Klein2003Q4 | N9: Product22003Q4
A10: Customer9 | B10: Healthcare | C10: Asia Pacific | D10: Product2 | E10: 450 | F10: 268 | G10: Q4 | H10: 2005 | I10: Oren Chase | J10: 2005Q4 | K10: Healthcare2005Q4 | L10: Asia Pacific2005Q4 | M10: Oren Chase2005Q4 | N10: Product22005Q4
A11: Customer10 | B11: Consumer Goods | C11: Europe | D11: Product2 | E11: 250 | F11: 601 | G11: Q2 | H11: 2005 | I11: Fritz Klein | J11: 2005Q2 | K11: Consumer Goods2005Q2 | L11: Europe2005Q2 | M11: Fritz Klein2005Q2 | N11: Product22005Q2
A12: Customer11 | B12: Utilities | C12: South America | D12: Product2 | E12: 700 | F12: 475 | G12: Q4 | H12: 2007 | I12: Nasim Hanson | J12: 2007Q4 | K12: Utilities2007Q4 | L12: South America2007Q4 | M12: Nasim Hanson2007Q4 | N12: Product22007Q4
A13: Customer12 | B13: Technology | C13: Europe | D13: Product4 | E13: 650 | F13: 378 | G13: Q3 | H13: 2006 | I13: Fritz Klein | J13: 2006Q3 | K13: Technology2006Q3 | L13: Europe2006Q3 | M13: Fritz Klein2006Q3 | N13: Product42006Q3
A14: Customer13 | B14: Materials | C14: Europe | D14: Product3 | E14: 150 | F14: 286 | G14: Q4 | H14: 2006 | I14: Fritz Klein | J14: 2006Q4 | K14: Materials2006Q4 | L14: Europe2006Q4 | M14: Fritz Klein2006Q4 | N14: Product32006Q4
A15: Customer14 | B15: Materials | C15: Middle East | D15: Product4 | E15: 150 | F15: 158 | G15: Q3 | H15: 2006 | I15: Bradley Valenzuela | J15: 2006Q3 | K15: Materials2006Q3 | L15: Middle East2006Q3 | M15: Bradley Valenzuela2006Q3 | N15: Product42006Q3
A16: Customer15 | B16: Materials | C16: South America | D16: Product3 | E16: 100 | F16: 390 | G16: Q3 | H16: 2004 | I16: Nasim Hanson | J16: 2004Q3 | K16: Materials2004Q3 | L16: South America2004Q3 | M16: Nasim Hanson2004Q3 | N16: Product32004Q3
A17: Customer16 | B17: Consumer Goods | C17: North America | D17: Product1 | E17: 300 | F17: 291 | G17: Q3 | H17: 2004 | I17: Porter Le | J17: 2004Q3 | K17: Consumer Goods2004Q3 | L17: North America2004Q3 | M17: Porter Le2004Q3 | N17: Product12004Q3
A18: Customer17 | B18: Materials | C18: North America | D18: Product4 | E18: 100 | F18: 764 | G18: Q3 | H18: 2008 | I18: Porter Le | J18: 2008Q3 | K18: Materials2008Q3 | L18: North America2008Q3 | M18: Porter Le2008Q3 | N18: Product42008Q3
A19: Customer18 | B19: Finance | C19: North America | D19: Product2 | E19: 400 | F19: 415 | G19: Q2 | H19: 2007 | I19: Porter Le | J19: 2007Q2 | K19: Finance2007Q2 | L19: North America2007Q2 | M19: Porter Le2007Q2 | N19: Product22007Q2
A20: Customer19 | B20: Services | C20: Asia Pacific | D20: Product2 | E20: 600 | F20: 702 | G20: Q2 | H20: 2005 | I20: Oren Chase | J20: 2005Q2 | K20: Services2005Q2 | L20: Asia Pacific2005Q2 | M20: Oren Chase2005Q2 | N20: Product22005Q2
A21: Customer20 | B21: Services | C21: North America | D21: Product3 | E21: 550 | F21: 941 | G21: Q2 | H21: 2006 | I21: Porter Le | J21: 2006Q2 | K21: Services2006Q2 | L21: North America2006Q2 | M21: Porter Le2006Q2 | N21: Product32006Q2
A22: Customer21 | B22: Utilities | C22: South America | D22: Product4 | E22: 700 | F22: 53 | G22: Q1 | H22: 2005 | I22: Nasim Hanson | J22: 2005Q1 | K22: Utilities2005Q1 | L22: South America2005Q1 | M22: Nasim Hanson2005Q1 | N22: Product42005Q1
A23: Customer22 | B23: Finance | C23: Europe | D23: Product2 | E23: 400 | F23: 151 | G23: Q3 | H23: 2007 | I23: Fritz Klein | J23: 2007Q3 | K23: Finance2007Q3 | L23: Europe2007Q3 | M23: Fritz Klein2007Q3 | N23: Product22007Q3
A24: Customer23 | B24: Healthcare | C24: North America | D24: Product4 | E24: 500 | F24: 953 | G24: Q2 | H24: 2003 | I24: Porter Le | J24: 2003Q2 | K24: Healthcare2003Q2 | L24: North America2003Q2 | M24: Porter Le2003Q2 | N24: Product42003Q2
A25: Customer24 | B25: Technology | C25: Asia Pacific | D25: Product1 | E25: 650 | F25: 105 | G25: Q2 | H25: 2004 | I25: Oren Chase | J25: 2004Q2 | K25: Technology2004Q2 | L25: Asia Pacific2004Q2 | M25: Oren Chase2004Q2 | N25: Product12004Q2
A26: Customer25 | B26: Technology | C26: Europe | D26: Entera CRM | E26: 650 | F26: 87 | G26: Q1 | H26: 2006 | I26: Fritz Klein | J26: 2006Q1 | K26: Technology2006Q1 | L26: Europe2006Q1 | M26: Fritz Klein2006Q1 | N26: Entera CRM2006Q1
A27: Customer26 | B27: Consumer Goods | C27: Europe | D27: Product1 | E27: 200 | F27: 987 | G27: Q4 | H27: 2008 | I27: Fritz Klein | J27: 2008Q4 | K27: Consumer Goods2008Q4 | L27: Europe2008Q4 | M27: Fritz Klein2008Q4 | N27: Product12008Q4
A28: Customer27 | B28: Utilities | C28: North America | D28: Product4 | E28: 700 | F28: 81 | G28: Q2 | H28: 2007 | I28: Porter Le | J28: 2007Q2 | K28: Utilities2007Q2 | L28: North America2007Q2 | M28: Porter Le2007Q2 | N28: Product42007Q2
A29: Customer28 | B29: Materials | C29: Middle East | D29: Product4 | E29: 150 | F29: 675 | G29: Q1 | H29: 2007 | I29: Bradley Valenzuela | J29: 2007Q1 | K29: Materials2007Q1 | L29: Middle East2007Q1 | M29: Bradley Valenzuela2007Q1 | N29: Product42007Q1
A30: Customer29 | B30: Consumer Goods | C30: Europe | D30: Product2 | E30: 250 | F30: 616 | G30: Q4 | H30: 2007 | I30: Fritz Klein | J30: 2007Q4 | K30: Consumer Goods2007Q4 | L30: Europe2007Q4 | M30: Fritz Klein2007Q4 | N30: Product22007Q4
A31: Customer30 | B31: Industrial Goods | C31: Asia Pacific | D31: Product3 | E31: 550 | F31: 856 | G31: Q3 | H31: 2006 | I31: Oren Chase | J31: 2006Q3 | K31: Industrial Goods2006Q3 | L31: Asia Pacific2006Q3 | M31: Oren Chase2006Q3 | N31: Product32006Q3
A32: Customer31 | B32: Finance | C32: Europe | D32: Product1 | E32: 400 | F32: 617 | G32: Q4 | H32: 2006 | I32: Fritz Klein | J32: 2006Q4 | K32: Finance2006Q4 | L32: Europe2006Q4 | M32: Fritz Klein2006Q4 | N32: Product12006Q4
A33: Customer32 | B33: Consumer Goods | C33: Europe | D33: Product1 | E33: 300 | F33: 852 | G33: Q2 | H33: 2008 | I33: Fritz Klein | J33: 2008Q2 | K33: Consumer Goods2008Q2 | L33: Europe2008Q2 | M33: Fritz Klein2008Q2 | N33: Product12008Q2
A34: Customer33 | B34: Services | C34: North America | D34: Product2 | E34: 600 | F34: 765 | G34: Q4 | H34: 2007 | I34: Porter Le | J34: 2007Q4 | K34: Services2007Q4 | L34: North America2007Q4 | M34: Porter Le2007Q4 | N34: Product22007Q4
A35: Customer34 | B35: Finance | C35: North America | D35: Entera CRM | E35: 300 | F35: 958 | G35: Q3 | H35: 2004 | I35: Porter Le | J35: 2004Q3 | K35: Finance2004Q3 | L35: North America2004Q3 | M35: Porter Le2004Q3 | N35: Entera CRM2004Q3
A36: Customer35 | B36: Finance | C36: Europe | D36: Product3 | E36: 400 | F36: 300 | G36: Q2 | H36: 2007 | I36: Fritz Klein | J36: 2007Q2 | K36: Finance2007Q2 | L36: Europe2007Q2 | M36: Fritz Klein2007Q2 | N36: Product32007Q2
A37: Customer36 | B37: Technology | C37: Europe | D37: Entera CRM | E37: 650 | F37: 84 | G37: Q2 | H37: 2008 | I37: Fritz Klein | J37: 2008Q2 | K37: Technology2008Q2 | L37: Europe2008Q2 | M37: Fritz Klein2008Q2 | N37: Entera CRM2008Q2
A38: Customer37 | B38: Materials | C38: Europe | D38: Product3 | E38: 150 | F38: 83 | G38: Q2 | H38: 2008 | I38: Fritz Klein | J38: 2008Q2 | K38: Materials2008Q2 | L38: Europe2008Q2 | M38: Fritz Klein2008Q2 | N38: Product32008Q2
A39: Customer38 | B39: Services | C39: North America | D39: Product2 | E39: 600 | F39: 756 | G39: Q1 | H39: 2007 | I39: Porter Le | J39: 2007Q1 | K39: Services2007Q1 | L39: North America2007Q1 | M39: Porter Le2007Q1 | N39: Product22007Q1
A40: Customer39 | B40: Materials | C40: Europe | D40: Product4 | E40: 100 | F40: 887 | G40: Q3 | H40: 2007 | I40: Fritz Klein | J40: 2007Q3 | K40: Materials2007Q3 | L40: Europe2007Q3 | M40: Fritz Klein2007Q3 | N40: Product42007Q3
A41: Customer40 | B41: Consumer Goods | C41: Europe | D41: Entera CRM | E41: 200 | F41: 188 | G41: Q3 | H41: 2003 | I41: Fritz Klein | J41: 2003Q3 | K41: Consumer Goods2003Q3 | L41: Europe2003Q3 | M41: Fritz Klein2003Q3 | N41: Entera CRM2003Q3
A42: Customer41 | B42: Materials | C42: Asia Pacific | D42: Product1 | E42: 150 | F42: 598 | G42: Q3 | H42: 2006 | I42: Oren Chase | J42: 2006Q3 | K42: Materials2006Q3 | L42: Asia Pacific2006Q3 | M42: Oren Chase2006Q3 | N42: Product12006Q3
A43: Customer42 | B43: Materials | C43: Middle East | D43: Product1 | E43: 150 | F43: 64 | G43: Q3 | H43: 2007 | I43: Bradley Valenzuela | J43: 2007Q3 | K43: Materials2007Q3 | L43: Middle East2007Q3 | M43: Bradley Valenzuela2007Q3 | N43: Product12007Q3
A44: Customer43 | B44: Utilities | C44: South America | D44: Product4 | E44: 700 | F44: 534 | G44: Q4 | H44: 2005 | I44: Nasim Hanson | J44: 2005Q4 | K44: Utilities2005Q4 | L44: South America2005Q4 | M44: Nasim Hanson2005Q4 | N44: Product42005Q4
A45: Customer44 | B45: Materials | C45: North America | D45: Product4 | E45: 100 | F45: 160 | G45: Q3 | H45: 2003 | I45: Porter Le | J45: 2003Q3 | K45: Materials2003Q3 | L45: North America2003Q3 | M45: Porter Le2003Q3 | N45: Product42003Q3
A46: Customer45 | B46: Services | C46: North America | D46: Product3 | E46: 600 | F46: 884 | G46: Q1 | H46: 2008 | I46: Porter Le | J46: 2008Q1 | K46: Services2008Q1 | L46: North America2008Q1 | M46: Porter Le2008Q1 | N46: Product32008Q1
A47: Customer46 | B47: Materials | C47: North America | D47: Product1 | E47: 100 | F47: 828 | G47: Q3 | H47: 2004 | I47: Porter Le | J47: 2004Q3 | K47: Materials2004Q3 | L47: North America2004Q3 | M47: Porter Le2004Q3 | N47: Product12004Q3
A48: Customer47 | B48: Technology | C48: Europe | D48: Entera CRM | E48: 650 | F48: 81 | G48: Q1 | H48: 2003 | I48: Fritz Klein | J48: 2003Q1 | K48: Technology2003Q1 | L48: Europe2003Q1 | M48: Fritz Klein2003Q1 | N48: Entera CRM2003Q1
A49: Customer48 | B49: Services | C49: North America | D49: Product2 | E49: 600 | F49: 835 | G49: Q1 | H49: 2008 | I49: Porter Le | J49: 2008Q1 | K49: Services2008Q1 | L49: North America2008Q1 | M49: Porter Le2008Q1 | N49: Product22008Q1
A50: Customer49 | B50: Consumer Goods | C50: Europe | D50: Product1 | E50: 250 | F50: 810 | G50: Q2 | H50: 2004 | I50: Fritz Klein | J50: 2004Q2 | K50: Consumer Goods2004Q2 | L50: Europe2004Q2 | M50: Fritz Klein2004Q2 | N50: Product12004Q2
A51: Customer50 | B51: Healthcare | C51: Europe | D51: Product1 | E51: 500 | F51: 536 | G51: Q2 | H51: 2006 | I51: Fritz Klein | J51: 2006Q2 | K51: Healthcare2006Q2 | L51: Europe2006Q2 | M51: Fritz Klein2006Q2 | N51: Product12006Q2
A52: Customer51 | B52: Consumer Goods | C52: Europe | D52: Product3 | E52: 200 | F52: 476 | G52: Q2 | H52: 2005 | I52: Fritz Klein | J52: 2005Q2 | K52: Consumer Goods2005Q2 | L52: Europe2005Q2 | M52: Fritz Klein2005Q2 | N52: Product32005Q2
A53: Customer52 | B53: Materials | C53: South America | D53: Product1 | E53: 100 | F53: 623 | G53: Q2 | H53: 2006 | I53: Nasim Hanson | J53: 2006Q2 | K53: Materials2006Q2 | L53: South America2006Q2 | M53: Nasim Hanson2006Q2 | N53: Product12006Q2
A54: Customer53 | B54: Finance | C54: Asia Pacific | D54: Entera CRM | E54: 450 | F54: 456 | G54: Q3 | H54: 2003 | I54: Oren Chase | J54: 2003Q3 | K54: Finance2003Q3 | L54: Asia Pacific2003Q3 | M54: Oren Chase2003Q3 | N54: Entera CRM2003Q3
A55: Customer54 | B55: Finance | C55: Europe | D55: Product3 | E55: 400 | F55: 450 | G55: Q1 | H55: 2005 | I55: Fritz Klein | J55: 2005Q1 | K55: Finance2005Q1 | L55: Europe2005Q1 | M55: Fritz Klein2005Q1 | N55: Product32005Q1
A56: Customer55 | B56: Technology | C56: Europe | D56: Product3 | E56: 650 | F56: 830 | G56: Q3 | H56: 2005 | I56: Fritz Klein | J56: 2005Q3 | K56: Technology2005Q3 | L56: Europe2005Q3 | M56: Fritz Klein2005Q3 | N56: Product32005Q3
A57: Customer56 | B57: Finance | C57: North America | D57: Product4 | E57: 300 | F57: 252 | G57: Q1 | H57: 2005 | I57: Porter Le | J57: 2005Q1 | K57: Finance2005Q1 | L57: North America2005Q1 | M57: Porter Le2005Q1 | N57: Product42005Q1
A58: Customer57 | B58: Finance | C58: North America | D58: Product4 | E58: 350 | F58: 863 | G58: Q4 | H58: 2006 | I58: Porter Le | J58: 2006Q4 | K58: Finance2006Q4 | L58: North America2006Q4 | M58: Porter Le2006Q4 | N58: Product42006Q4
A59: Customer58 | B59: Technology | C59: Asia Pacific | D59: Product4 | E59: 650 | F59: 769 | G59: Q2 | H59: 2003 | I59: Oren Chase | J59: 2003Q2 | K59: Technology2003Q2 | L59: Asia Pacific2003Q2 | M59: Oren Chase2003Q2 | N59: Product42003Q2
A60: Customer59 | B60: Consumer Goods | C60: North America | D60: Product3 | E60: 300 | F60: 585 | G60: Q2 | H60: 2008 | I60: Porter Le | J60: 2008Q2 | K60: Consumer Goods2008Q2 | L60: North America2008Q2 | M60: Porter Le2008Q2 | N60: Product32008Q2
A61: Customer60 | B61: Consumer Goods | C61: Europe | D61: Product2 | E61: 250 | F61: 436 | G61: Q2 | H61: 2006 | I61: Fritz Klein | J61: 2006Q2 | K61: Consumer Goods2006Q2 | L61: Europe2006Q2 | M61: Fritz Klein2006Q2 | N61: Product22006Q2
A62: Customer61 | B62: Healthcare | C62: South America | D62: Product3 | E62: 450 | F62: 161 | G62: Q1 | H62: 2008 | I62: Nasim Hanson | J62: 2008Q1 | K62: Healthcare2008Q1 | L62: South America2008Q1 | M62: Nasim Hanson2008Q1 | N62: Product32008Q1
A63: Customer62 | B63: Consumer Goods | C63: Europe | D63: Product3 | E63: 300 | F63: 801 | G63: Q2 | H63: 2006 | I63: Fritz Klein | J63: 2006Q2 | K63: Consumer Goods2006Q2 | L63: Europe2006Q2 | M63: Fritz Klein2006Q2 | N63: Product32006Q2
A64: Customer63 | B64: Finance | C64: Europe | D64: Entera CRM | E64: 400 | F64: 156 | G64: Q3 | H64: 2003 | I64: Fritz Klein | J64: 2003Q3 | K64: Finance2003Q3 | L64: Europe2003Q3 | M64: Fritz Klein2003Q3 | N64: Entera CRM2003Q3
A65: Customer64 | B65: Finance | C65: Europe | D65: Product3 | E65: 400 | F65: 32 | G65: Q4 | H65: 2007 | I65: Fritz Klein | J65: 2007Q4 | K65: Finance2007Q4 | L65: Europe2007Q4 | M65: Fritz Klein2007Q4 | N65: Product32007Q4
A66: Customer65 | B66: Industrial Goods | C66: Asia Pacific | D66: Product3 | E66: 500 | F66: 122 | G66: Q3 | H66: 2003 | I66: Oren Chase | J66: 2003Q3 | K66: Industrial Goods2003Q3 | L66: Asia Pacific2003Q3 | M66: Oren Chase2003Q3 | N66: Product32003Q3
A67: Customer66 | B67: Consumer Goods | C67: Asia Pacific | D67: Product3 | E67: 250 | F67: 732 | G67: Q4 | H67: 2006 | I67: Oren Chase | J67: 2006Q4 | K67: Consumer Goods2006Q4 | L67: Asia Pacific2006Q4 | M67: Oren Chase2006Q4 | N67: Product32006Q4
A68: Customer67 | B68: Consumer Goods | C68: Europe | D68: Entera CRM | E68: 200 | F68: 344 | G68: Q4 | H68: 2006 | I68: Fritz Klein | J68: 2006Q4 | K68: Consumer Goods2006Q4 | L68: Europe2006Q4 | M68: Fritz Klein2006Q4 | N68: Entera CRM2006Q4
A69: Customer68 | B69: Utilities | C69: North America | D69: Product1 | E69: 700 | F69: 974 | G69: Q1 | H69: 2006 | I69: Porter Le | J69: 2006Q1 | K69: Utilities2006Q1 | L69: North America2006Q1 | M69: Porter Le2006Q1 | N69: Product12006Q1
A70: Customer69 | B70: Healthcare | C70: Europe | D70: Entera CRM | E70: 500 | F70: 929 | G70: Q1 | H70: 2003 | I70: Fritz Klein | J70: 2003Q1 | K70: Healthcare2003Q1 | L70: Europe2003Q1 | M70: Fritz Klein2003Q1 | N70: Entera CRM2003Q1
A71: Customer70 | B71: Services | C71: North America | D71: Product1 | E71: 600 | F71: 389 | G71: Q3 | H71: 2004 | I71: Porter Le | J71: 2004Q3 | K71: Services2004Q3 | L71: North America2004Q3 | M71: Porter Le2004Q3 | N71: Product12004Q3
A72: Customer71 | B72: Finance | C72: North America | D72: Product3 | E72: 350 | F72: 409 | G72: Q2 | H72: 2004 | I72: Porter Le | J72: 2004Q2 | K72: Finance2004Q2 | L72: North America2004Q2 | M72: Porter Le2004Q2 | N72: Product32004Q2
A73: Customer72 | B73: Consumer Goods | C73: Europe | D73: Entera CRM | E73: 250 | F73: 907 | G73: Q1 | H73: 2003 | I73: Fritz Klein | J73: 2003Q1 | K73: Consumer Goods2003Q1 | L73: Europe2003Q1 | M73: Fritz Klein2003Q1 | N73: Entera CRM2003Q1
A74: Customer73 | B74: Materials | C74: South America | D74: Product2 | E74: 100 | F74: 928 | G74: Q2 | H74: 2005 | I74: Nasim Hanson | J74: 2005Q2 | K74: Materials2005Q2 | L74: South America2005Q2 | M74: Nasim Hanson2005Q2 | N74: Product22005Q2
A75: Customer74 | B75: Industrial Goods | C75: Asia Pacific | D75: Product2 | E75: 550 | F75: 928 | G75: Q3 | H75: 2003 | I75: Oren Chase | J75: 2003Q3 | K75: Industrial Goods2003Q3 | L75: Asia Pacific2003Q3 | M75: Oren Chase2003Q3 | N75: Product22003Q3
A76: Customer75 | B76: Materials | C76: North America | D76: Product2 | E76: 100 | F76: 271 | G76: Q4 | H76: 2007 | I76: Porter Le | J76: 2007Q4 | K76: Materials2007Q4 | L76: North America2007Q4 | M76: Porter Le2007Q4 | N76: Product22007Q4
A77: Customer76 | B77: Healthcare | C77: North America | D77: Product3 | E77: 500 | F77: 468 | G77: Q1 | H77: 2007 | I77: Porter Le | J77: 2007Q1 | K77: Healthcare2007Q1 | L77: North America2007Q1 | M77: Porter Le2007Q1 | N77: Product32007Q1
A78: Customer77 | B78: Finance | C78: North America | D78: Entera CRM | E78: 350 | F78: 913 | G78: Q3 | H78: 2005 | I78: Porter Le | J78: 2005Q3 | K78: Finance2005Q3 | L78: North America2005Q3 | M78: Porter Le2005Q3 | N78: Entera CRM2005Q3
A79: Customer78 | B79: Utilities | C79: South America | D79: Product1 | E79: 700 | F79: 438 | G79: Q3 | H79: 2005 | I79: Nasim Hanson | J79: 2005Q3 | K79: Utilities2005Q3 | L79: South America2005Q3 | M79: Nasim Hanson2005Q3 | N79: Product12005Q3
A80: Customer79 | B80: Services | C80: North America | D80: Entera CRM | E80: 600 | F80: 871 | G80: Q4 | H80: 2007 | I80: Porter Le | J80: 2007Q4 | K80: Services2007Q4 | L80: North America2007Q4 | M80: Porter Le2007Q4 | N80: Entera CRM2007Q4
A81: Customer80 | B81: Materials | C81: Asia Pacific | D81: Entera CRM | E81: 150 | F81: 969 | G81: Q4 | H81: 2004 | I81: Oren Chase | J81: 2004Q4 | K81: Materials2004Q4 | L81: Asia Pacific2004Q4 | M81: Oren Chase2004Q4 | N81: Entera CRM2004Q4
A82: Customer81 | B82: Consumer Goods | C82: Europe | D82: Product4 | E82: 250 | F82: 959 | G82: Q1 | H82: 2007 | I82: Fritz Klein | J82: 2007Q1 | K82: Consumer Goods2007Q1 | L82: Europe2007Q1 | M82: Fritz Klein2007Q1 | N82: Product42007Q1
A83: Customer82 | B83: Finance | C83: North America | D83: Product2 | E83: 350 | F83: 123 | G83: Q1 | H83: 2007 | I83: Porter Le | J83: 2007Q1 | K83: Finance2007Q1 | L83: North America2007Q1 | M83: Porter Le2007Q1 | N83: Product22007Q1
A84: Customer83 | B84: Finance | C84: Europe | D84: Product3 | E84: 350 | F84: 714 | G84: Q1 | H84: 2004 | I84: Fritz Klein | J84: 2004Q1 | K84: Finance2004Q1 | L84: Europe2004Q1 | M84: Fritz Klein2004Q1 | N84: Product32004Q1
A85: Customer84 | B85: Healthcare | C85: North America | D85: Product2 | E85: 500 | F85: 153 | G85: Q2 | H85: 2005 | I85: Porter Le | J85: 2005Q2 | K85: Healthcare2005Q2 | L85: North America2005Q2 | M85: Porter Le2005Q2 | N85: Product22005Q2
A86: Customer85 | B86: Finance | C86: North America | D86: Product2 | E86: 300 | F86: 596 | G86: Q3 | H86: 2003 | I86: Porter Le | J86: 2003Q3 | K86: Finance2003Q3 | L86: North America2003Q3 | M86: Porter Le2003Q3 | N86: Product22003Q3
A87: Customer86 | B87: Consumer Goods | C87: North America | D87: Product3 | E87: 200 | F87: 371 | G87: Q3 | H87: 2006 | I87: Porter Le | J87: 2006Q3 | K87: Consumer Goods2006Q3 | L87: North America2006Q3 | M87: Porter Le2006Q3 | N87: Product32006Q3
A88: Customer87 | B88: Services | C88: Asia Pacific | D88: Product2 | E88: 600 | F88: 773 | G88: Q4 | H88: 2008 | I88: Oren Chase | J88: 2008Q4 | K88: Services2008Q4 | L88: Asia Pacific2008Q4 | M88: Oren Chase2008Q4 | N88: Product22008Q4
A89: Customer88 | B89: Consumer Goods | C89: Europe | D89: Product3 | E89: 200 | F89: 828 | G89: Q4 | H89: 2008 | I89: Fritz Klein | J89: 2008Q4 | K89: Consumer Goods2008Q4 | L89: Europe2008Q4 | M89: Fritz Klein2008Q4 | N89: Product32008Q4
A90: Customer89 | B90: Industrial Goods | C90: Asia Pacific | D90: Product1 | E90: 500 | F90: 877 | G90: Q2 | H90: 2003 | I90: Oren Chase | J90: 2003Q2 | K90: Industrial Goods2003Q2 | L90: Asia Pacific2003Q2 | M90: Oren Chase2003Q2 | N90: Product12003Q2
A91: Customer90 | B91: Healthcare | C91: North America | D91: Entera CRM | E91: 500 | F91: 228 | G91: Q1 | H91: 2003 | I91: Porter Le | J91: 2003Q1 | K91: Healthcare2003Q1 | L91: North America2003Q1 | M91: Porter Le2003Q1 | N91: Entera CRM2003Q1
A92: Customer91 | B92: Healthcare | C92: Europe | D92: Product4 | E92: 500 | F92: 651 | G92: Q4 | H92: 2003 | I92: Fritz Klein | J92: 2003Q4 | K92: Healthcare2003Q4 | L92: Europe2003Q4 | M92: Fritz Klein2003Q4 | N92: Product42003Q4
A93: Customer92 | B93: Finance | C93: North America | D93: Product1 | E93: 400 | F93: 718 | G93: Q4 | H93: 2004 | I93: Porter Le | J93: 2004Q4 | K93: Finance2004Q4 | L93: North America2004Q4 | M93: Porter Le2004Q4 | N93: Product12004Q4
A94: Customer93 | B94: Services | C94: North America | D94: Product2 | E94: 600 | F94: 778 | G94: Q4 | H94: 2005 | I94: Porter Le | J94: 2005Q4 | K94: Services2005Q4 | L94: North America2005Q4 | M94: Porter Le2005Q4 | N94: Product22005Q4
A95: Customer94 | B95: Utilities | C95: North America | D95: Entera CRM | E95: 700 | F95: 461 | G95: Q2 | H95: 2005 | I95: Porter Le | J95: 2005Q2 | K95: Utilities2005Q2 | L95: North America2005Q2 | M95: Porter Le2005Q2 | N95: Entera CRM2005Q2
A96: Customer95 | B96: Technology | C96: Europe | D96: Product3 | E96: 650 | F96: 49 | G96: Q4 | H96: 2005 | I96: Fritz Klein | J96: 2005Q4 | K96: Technology2005Q4 | L96: Europe2005Q4 | M96: Fritz Klein2005Q4 | N96: Product32005Q4
A97: Customer96 | B97: Healthcare | C97: North America | D97: Product4 | E97: 500 | F97: 576 | G97: Q3 | H97: 2005 | I97: Porter Le | J97: 2005Q3 | K97: Healthcare2005Q3 | L97: North America2005Q3 | M97: Porter Le2005Q3 | N97: Product42005Q3
A98: Customer97 | B98: Consumer Goods | C98: Europe | D98: Product4 | E98: 200 | F98: 579 | G98: Q4 | H98: 2006 | I98: Fritz Klein | J98: 2006Q4 | K98: Consumer Goods2006Q4 | L98: Europe2006Q4 | M98: Fritz Klein2006Q4 | N98: Product42006Q4
A99: Customer98 | B99: Services | C99: Asia Pacific | D99: Entera CRM | E99: 600 | F99: 449 | G99: Q1 | H99: 2003 | I99: Oren Chase | J99: 2003Q1 | K99: Services2003Q1 | L99: Asia Pacific2003Q1 | M99: Oren Chase2003Q1 | N99: Entera CRM2003Q1
A100: Customer99 | B100: Finance | C100: North America | D100: Product2 | E100: 350 | F100: 516 | G100: Q2 | H100: 2003 | I100: Porter Le | J100: 2003Q2 | K100: Finance2003Q2 | L100: North America2003Q2 | M100: Porter Le2003Q2 | N100: Product22003Q2
A101: Customer100 | B101: Materials | C101: South America | D101: Entera CRM | E101: 100 | F101: 456 | G101: Q4 | H101: 2007 | I101: Nasim Hanson | J101: 2007Q4 | K101: Materials2007Q4 | L101: South America2007Q4 | M101: Nasim Hanson2007Q4 | N101: Entera CRM2007Q4
A102: Customer101 | B102: Healthcare | C102: North America | D102: Product3 | E102: 500 | F102: 959 | G102: Q2 | H102: 2008 | I102: Porter Le | J102: 2008Q2 | K102: Healthcare2008Q2 | L102: North America2008Q2 | M102: Porter Le2008Q2 | N102: Product32008Q2
A103: Customer102 | B103: Technology | C103: Asia Pacific | D103: Entera CRM | E103: 700 | F103: 179 | G103: Q4 | H103: 2005 | I103: Oren Chase | J103: 2005Q4 | K103: Technology2005Q4 | L103: Asia Pacific2005Q4 | M103: Oren Chase2005Q4 | N103: Entera CRM2005Q4
A104: Customer103 | B104: Finance | C104: North America | D104: Product2 | E104: 300 | F104: 848 | G104: Q4 | H104: 2003 | I104: Porter Le | J104: 2003Q4 | K104: Finance2003Q4 | L104: North America2003Q4 | M104: Porter Le2003Q4 | N104: Product22003Q4
A105: Customer104 | B105: Consumer Goods | C105: Asia Pacific | D105: Product1 | E105: 250 | F105: 431 | G105: Q1 | H105: 2005 | I105: Oren Chase | J105: 2005Q1 | K105: Consumer Goods2005Q1 | L105: Asia Pacific2005Q1 | M105: Oren Chase2005Q1 | N105: Product12005Q1
A106: Customer105 | B106: Finance | C106: North America | D106: Entera CRM | E106: 400 | F106: 86 | G106: Q4 | H106: 2007 | I106: Porter Le | J106: 2007Q4 | K106: Finance2007Q4 | L106: North America2007Q4 | M106: Porter Le2007Q4 | N106: Entera CRM2007Q4
A107: Customer106 | B107: Materials | C107: Asia Pacific | D107: Entera CRM | E107: 150 | F107: 606 | G107: Q4 | H107: 2008 | I107: Oren Chase | J107: 2008Q4 | K107: Materials2008Q4 | L107: Asia Pacific2008Q4 | M107: Oren Chase2008Q4 | N107: Entera CRM2008Q4
A108: Customer107 | B108: Consumer Goods | C108: Europe | D108: Product3 | E108: 200 | F108: 871 | G108: Q3 | H108: 2008 | I108: Fritz Klein | J108: 2008Q3 | K108: Consumer Goods2008Q3 | L108: Europe2008Q3 | M108: Fritz Klein2008Q3 | N108: Product32008Q3
A109: Customer108 | B109: Healthcare | C109: Europe | D109: Product1 | E109: 500 | F109: 974 | G109: Q2 | H109: 2003 | I109: Fritz Klein | J109: 2003Q2 | K109: Healthcare2003Q2 | L109: Europe2003Q2 | M109: Fritz Klein2003Q2 | N109: Product12003Q2
A110: Customer109 | B110: Consumer Goods | C110: Europe | D110: Product4 | E110: 250 | F110: 874 | G110: Q4 | H110: 2006 | I110: Fritz Klein | J110: 2006Q4 | K110: Consumer Goods2006Q4 | L110: Europe2006Q4 | M110: Fritz Klein2006Q4 | N110: Product42006Q4
A111: Customer110 | B111: Healthcare | C111: North America | D111: Product4 | E111: 500 | F111: 362 | G111: Q1 | H111: 2007 | I111: Porter Le | J111: 2007Q1 | K111: Healthcare2007Q1 | L111: North America2007Q1 | M111: Porter Le2007Q1 | N111: Product42007Q1
A112: Customer111 | B112: Consumer Goods | C112: Europe | D112: Entera CRM | E112: 250 | F112: 848 | G112: Q1 | H112: 2007 | I112: Fritz Klein | J112: 2007Q1 | K112: Consumer Goods2007Q1 | L112: Europe2007Q1 | M112: Fritz Klein2007Q1 | N112: Entera CRM2007Q1
A113: Customer112 | B113: Healthcare | C113: North America | D113: Product2 | E113: 500 | F113: 681 | G113: Q2 | H113: 2004 | I113: Porter Le | J113: 2004Q2 | K113: Healthcare2004Q2 | L113: North America2004Q2 | M113: Porter Le2004Q2 | N113: Product22004Q2
A114: Customer113 | B114: Technology | C114: Asia Pacific | D114: Entera CRM | E114: 650 | F114: 281 | G114: Q3 | H114: 2008 | I114: Oren Chase | J114: 2008Q3 | K114: Technology2008Q3 | L114: Asia Pacific2008Q3 | M114: Oren Chase2008Q3 | N114: Entera CRM2008Q3
A115: Customer114 | B115: Healthcare | C115: North America | D115: Product1 | E115: 500 | F115: 487 | G115: Q4 | H115: 2003 | I115: Porter Le | J115: 2003Q4 | K115: Healthcare2003Q4 | L115: North America2003Q4 | M115: Porter Le2003Q4 | N115: Product12003Q4
A116: Customer115 | B116: Services | C116: Asia Pacific | D116: Product1 | E116: 600 | F116: 491 | G116: Q1 | H116: 2006 | I116: Oren Chase | J116: 2006Q1 | K116: Services2006Q1 | L116: Asia Pacific2006Q1 | M116: Oren Chase2006Q1 | N116: Product12006Q1
A117: Customer116 | B117: Healthcare | C117: Asia Pacific | D117: Product1 | E117: 450 | F117: 640 | G117: Q4 | H117: 2006 | I117: Oren Chase | J117: 2006Q4 | K117: Healthcare2006Q4 | L117: Asia Pacific2006Q4 | M117: Oren Chase2006Q4 | N117: Product12006Q4
A118: Customer117 | B118: Consumer Goods | C118: Asia Pacific | D118: Entera CRM | E118: 250 | F118: 892 | G118: Q4 | H118: 2008 | I118: Oren Chase | J118: 2008Q4 | K118: Consumer Goods2008Q4 | L118: Asia Pacific2008Q4 | M118: Oren Chase2008Q4 | N118: Entera CRM2008Q4
A119: Customer118 | B119: Finance | C119: North America | D119: Product4 | E119: 400 | F119: 495 | G119: Q4 | H119: 2003 | I119: Porter Le | J119: 2003Q4 | K119: Finance2003Q4 | L119: North America2003Q4 | M119: Porter Le2003Q4 | N119: Product42003Q4
A120: Customer119 | B120: Consumer Goods | C120: Europe | D120: Product4 | E120: 200 | F120: 984 | G120: Q2 | H120: 2006 | I120: Fritz Klein | J120: 2006Q2 | K120: Consumer Goods2006Q2 | L120: Europe2006Q2 | M120: Fritz Klein2006Q2 | N120: Product42006Q2
A121: Customer120 | B121: Consumer Goods | C121: Asia Pacific | D121: Product4 | E121: 250 | F121: 719 | G121: Q2 | H121: 2005 | I121: Oren Chase | J121: 2005Q2 | K121: Consumer Goods2005Q2 | L121: Asia Pacific2005Q2 | M121: Oren Chase2005Q2 | N121: Product42005Q2
A122: Customer121 | B122: Finance | C122: North America | D122: Product1 | E122: 400 | F122: 173 | G122: Q4 | H122: 2006 | I122: Porter Le | J122: 2006Q4 | K122: Finance2006Q4 | L122: North America2006Q4 | M122: Porter Le2006Q4 | N122: Product12006Q4
A123: Customer122 | B123: Healthcare | C123: North America | D123: Product2 | E123: 500 | F123: 998 | G123: Q4 | H123: 2004 | I123: Porter Le | J123: 2004Q4 | K123: Healthcare2004Q4 | L123: North America2004Q4 | M123: Porter Le2004Q4 | N123: Product22004Q4
A124: Customer123 | B124: Finance | C124: Europe | D124: Product4 | E124: 350 | F124: 358 | G124: Q4 | H124: 2008 | I124: Fritz Klein | J124: 2008Q4 | K124: Finance2008Q4 | L124: Europe2008Q4 | M124: Fritz Klein2008Q4 | N124: Product42008Q4
A125: Customer124 | B125: Consumer Goods | C125: Asia Pacific | D125: Entera CRM | E125: 250 | F125: 551 | G125: Q4 | H125: 2005 | I125: Oren Chase | J125: 2005Q4 | K125: Consumer Goods2005Q4 | L125: Asia Pacific2005Q4 | M125: Oren Chase2005Q4 | N125: Entera CRM2005Q4
A126: Customer125 | B126: Consumer Goods | C126: Europe | D126: Product4 | E126: 250 | F126: 948 | G126: Q3 | H126: 2003 | I126: Fritz Klein | J126: 2003Q3 | K126: Consumer Goods2003Q3 | L126: Europe2003Q3 | M126: Fritz Klein2003Q3 | N126: Product42003Q3
A127: Customer126 | B127: Finance | C127: North America | D127: Product4 | E127: 350 | F127: 122 | G127: Q3 | H127: 2007 | I127: Porter Le | J127: 2007Q3 | K127: Finance2007Q3 | L127: North America2007Q3 | M127: Porter Le2007Q3 | N127: Product42007Q3
A128: Customer127 | B128: Healthcare | C128: Asia Pacific | D128: Product1 | E128: 450 | F128: 731 | G128: Q4 | H128: 2005 | I128: Oren Chase | J128: 2005Q4 | K128: Healthcare2005Q4 | L128: Asia Pacific2005Q4 | M128: Oren Chase2005Q4 | N128: Product12005Q4
A129: Customer128 | B129: Materials | C129: South America | D129: Product1 | E129: 100 | F129: 95 | G129: Q1 | H129: 2003 | I129: Nasim Hanson | J129: 2003Q1 | K129: Materials2003Q1 | L129: South America2003Q1 | M129: Nasim Hanson2003Q1 | N129: Product12003Q1
A130: Customer129 | B130: Consumer Goods | C130: North America | D130: Product4 | E130: 300 | F130: 602 | G130: Q3 | H130: 2004 | I130: Porter Le | J130: 2004Q3 | K130: Consumer Goods2004Q3 | L130: North America2004Q3 | M130: Porter Le2004Q3 | N130: Product42004Q3
A131: Customer130 | B131: Healthcare | C131: South America | D131: Entera CRM | E131: 500 | F131: 171 | G131: Q1 | H131: 2007 | I131: Nasim Hanson | J131: 2007Q1 | K131: Healthcare2007Q1 | L131: South America2007Q1 | M131: Nasim Hanson2007Q1 | N131: Entera CRM2007Q1
A132: Customer131 | B132: Consumer Goods | C132: North America | D132: Product2 | E132: 200 | F132: 415 | G132: Q3 | H132: 2003 | I132: Porter Le | J132: 2003Q3 | K132: Consumer Goods2003Q3 | L132: North America2003Q3 | M132: Porter Le2003Q3 | N132: Product22003Q3
A133: Customer132 | B133: Consumer Goods | C133: Asia Pacific | D133: Product1 | E133: 250 | F133: 254 | G133: Q3 | H133: 2004 | I133: Oren Chase | J133: 2004Q3 | K133: Consumer Goods2004Q3 | L133: Asia Pacific2004Q3 | M133: Oren Chase2004Q3 | N133: Product12004Q3
A134: Customer133 | B134: Consumer Goods | C134: North America | D134: Product3 | E134: 300 | F134: 454 | G134: Q3 | H134: 2003 | I134: Porter Le | J134: 2003Q3 | K134: Consumer Goods2003Q3 | L134: North America2003Q3 | M134: Porter Le2003Q3 | N134: Product32003Q3
A135: Customer134 | B135: Finance | C135: Europe | D135: Product2 | E135: 400 | F135: 511 | G135: Q3 | H135: 2005 | I135: Fritz Klein | J135: 2005Q3 | K135: Finance2005Q3 | L135: Europe2005Q3 | M135: Fritz Klein2005Q3 | N135: Product22005Q3
A136: Customer135 | B136: Finance | C136: North America | D136: Entera CRM | E136: 350 | F136: 316 | G136: Q3 | H136: 2005 | I136: Porter Le | J136: 2005Q3 | K136: Finance2005Q3 | L136: North America2005Q3 | M136: Porter Le2005Q3 | N136: Entera CRM2005Q3
A137: Customer136 | B137: Technology | C137: Asia Pacific | D137: Product1 | E137: 650 | F137: 838 | G137: Q2 | H137: 2004 | I137: Oren Chase | J137: 2004Q2 | K137: Technology2004Q2 | L137: Asia Pacific2004Q2 | M137: Oren Chase2004Q2 | N137: Product12004Q2
A138: Customer137 | B138: Healthcare | C138: South America | D138: Product4 | E138: 450 | F138: 804 | G138: Q3 | H138: 2007 | I138: Nasim Hanson | J138: 2007Q3 | K138: Healthcare2007Q3 | L138: South America2007Q3 | M138: Nasim Hanson2007Q3 | N138: Product42007Q3
A139: Customer138 | B139: Consumer Goods | C139: North America | D139: Product4 | E139: 300 | F139: 881 | G139: Q3 | H139: 2006 | I139: Porter Le | J139: 2006Q3 | K139: Consumer Goods2006Q3 | L139: North America2006Q3 | M139: Porter Le2006Q3 | N139: Product42006Q3
A140: Customer139 | B140: Materials | C140: North America | D140: Product1 | E140: 100 | F140: 111 | G140: Q2 | H140: 2003 | I140: Porter Le | J140: 2003Q2 | K140: Materials2003Q2 | L140: North America2003Q2 | M140: Porter Le2003Q2 | N140: Product12003Q2
A141: Customer140 | B141: Finance | C141: Europe | D141: Product3 | E141: 350 | F141: 651 | G141: Q3 | H141: 2008 | I141: Fritz Klein | J141: 2008Q3 | K141: Finance2008Q3 | L141: Europe2008Q3 | M141: Fritz Klein2008Q3 | N141: Product32008Q3
A142: Customer141 | B142: Consumer Goods | C142: Europe | D142: Product4 | E142: 250 | F142: 925 | G142: Q1 | H142: 2003 | I142: Fritz Klein | J142: 2003Q1 | K142: Consumer Goods2003Q1 | L142: Europe2003Q1 | M142: Fritz Klein2003Q1 | N142: Product42003Q1
A143: Customer142 | B143: Technology | C143: Europe | D143: Entera CRM | E143: 650 | F143: 183 | G143: Q4 | H143: 2003 | I143: Fritz Klein | J143: 2003Q4 | K143: Technology2003Q4 | L143: Europe2003Q4 | M143: Fritz Klein2003Q4 | N143: Entera CRM2003Q4
A144: Customer143 | B144: Materials | C144: South America | D144: Entera CRM | E144: 100 | F144: 590 | G144: Q2 | H144: 2007 | I144: Nasim Hanson | J144: 2007Q2 | K144: Materials2007Q2 | L144: South America2007Q2 | M144: Nasim Hanson2007Q2 | N144: Entera CRM2007Q2
A145: Customer144 | B145: Finance | C145: Europe | D145: Entera CRM | E145: 350 | F145: 951 | G145: Q2 | H145: 2007 | I145: Fritz Klein | J145: 2007Q2 | K145: Finance2007Q2 | L145: Europe2007Q2 | M145: Fritz Klein2007Q2 | N145: Entera CRM2007Q2
A146: Customer145 | B146: Services | C146: North America | D146: Entera CRM | E146: 550 | F146: 694 | G146: Q3 | H146: 2008 | I146: Porter Le | J146: 2008Q3 | K146: Services2008Q3 | L146: North America2008Q3 | M146: Porter Le2008Q3 | N146: Entera CRM2008Q3
A147: Customer146 | B147: Services | C147: North America | D147: Product3 | E147: 550 | F147: 235 | G147: Q3 | H147: 2006 | I147: Porter Le | J147: 2006Q3 | K147: Services2006Q3 | L147: North America2006Q3 | M147: Porter Le2006Q3 | N147: Product32006Q3
A148: Customer147 | B148: Consumer Goods | C148: Europe | D148: Product3 | E148: 250 | F148: 622 | G148: Q2 | H148: 2003 | I148: Fritz Klein | J148: 2003Q2 | K148: Consumer Goods2003Q2 | L148: Europe2003Q2 | M148: Fritz Klein2003Q2 | N148: Product32003Q2
A149: Customer148 | B149: Finance | C149: North America | D149: Product2 | E149: 350 | F149: 237 | G149: Q2 | H149: 2008 | I149: Porter Le | J149: 2008Q2 | K149: Finance2008Q2 | L149: North America2008Q2 | M149: Porter Le2008Q2 | N149: Product22008Q2
A150: Customer149 | B150: Finance | C150: North America | D150: Product2 | E150: 300 | F150: 98 | G150: Q1 | H150: 2003 | I150: Porter Le | J150: 2003Q1 | K150: Finance2003Q1 | L150: North America2003Q1 | M150: Porter Le2003Q1 | N150: Product22003Q1
A151: Customer150 | B151: Services | C151: North America | D151: Product4 | E151: 550 | F151: 868 | G151: Q4 | H151: 2003 | I151: Porter Le | J151: 2003Q4 | K151: Services2003Q4 | L151: North America2003Q4 | M151: Porter Le2003Q4 | N151: Product42003Q4
A152: Customer151 | B152: Materials | C152: North America | D152: Product1 | E152: 100 | F152: 77 | G152: Q2 | H152: 2006 | I152: Porter Le | J152: 2006Q2 | K152: Materials2006Q2 | L152: North America2006Q2 | M152: Porter Le2006Q2 | N152: Product12006Q2
A153: Customer152 | B153: Materials | C153: Middle East | D153: Product1 | E153: 150 | F153: 420 | G153: Q3 | H153: 2004 | I153: Bradley Valenzuela | J153: 2004Q3 | K153: Materials2004Q3 | L153: Middle East2004Q3 | M153: Bradley Valenzuela2004Q3 | N153: Product12004Q3
A154: Customer153 | B154: Materials | C154: South America | D154: Product1 | E154: 100 | F154: 949 | G154: Q1 | H154: 2003 | I154: Nasim Hanson | J154: 2003Q1 | K154: Materials2003Q1 | L154: South America2003Q1 | M154: Nasim Hanson2003Q1 | N154: Product12003Q1
A155: Customer154 | B155: Consumer Goods | C155: Asia Pacific | D155: Product3 | E155: 250 | F155: 930 | G155: Q3 | H155: 2005 | I155: Oren Chase | J155: 2005Q3 | K155: Consumer Goods2005Q3 | L155: Asia Pacific2005Q3 | M155: Oren Chase2005Q3 | N155: Product32005Q3
A156: Customer155 | B156: Finance | C156: North America | D156: Product2 | E156: 300 | F156: 242 | G156: Q1 | H156: 2003 | I156: Porter Le | J156: 2003Q1 | K156: Finance2003Q1 | L156: North America2003Q1 | M156: Porter Le2003Q1 | N156: Product22003Q1
A157: Customer156 | B157: Utilities | C157: North America | D157: Product1 | E157: 700 | F157: 273 | G157: Q2 | H157: 2005 | I157: Porter Le | J157: 2005Q2 | K157: Utilities2005Q2 | L157: North America2005Q2 | M157: Porter Le2005Q2 | N157: Product12005Q2
A158: Customer157 | B158: Finance | C158: Europe | D158: Entera CRM | E158: 400 | F158: 161 | G158: Q2 | H158: 2005 | I158: Fritz Klein | J158: 2005Q2 | K158: Finance2005Q2 | L158: Europe2005Q2 | M158: Fritz Klein2005Q2 | N158: Entera CRM2005Q2
A159: Customer158 | B159: Finance | C159: North America | D159: Product1 | E159: 400 | F159: 152 | G159: Q4 | H159: 2005 | I159: Porter Le | J159: 2005Q4 | K159: Finance2005Q4 | L159: North America2005Q4 | M159: Porter Le2005Q4 | N159: Product12005Q4
A160: Customer159 | B160: Finance | C160: Europe | D160: Product3 | E160: 350 | F160: 700 | G160: Q3 | H160: 2008 | I160: Fritz Klein | J160: 2008Q3 | K160: Finance2008Q3 | L160: Europe2008Q3 | M160: Fritz Klein2008Q3 | N160: Product32008Q3
A161: Customer160 | B161: Consumer Goods | C161: North America | D161: Product2 | E161: 300 | F161: 633 | G161: Q3 | H161: 2006 | I161: Porter Le | J161: 2006Q3 | K161: Consumer Goods2006Q3 | L161: North America2006Q3 | M161: Porter Le2006Q3 | N161: Product22006Q3
A162: Customer161 | B162: Materials | C162: South America | D162: Product4 | E162: 100 | F162: 670 | G162: Q3 | H162: 2003 | I162: Nasim Hanson | J162: 2003Q3 | K162: Materials2003Q3 | L162: South America2003Q3 | M162: Nasim Hanson2003Q3 | N162: Product42003Q3
A163: Customer162 | B163: Technology | C163: North America | D163: Product1 | E163: 650 | F163: 918 | G163: Q4 | H163: 2004 | I163: Porter Le | J163: 2004Q4 | K163: Technology2004Q4 | L163: North America2004Q4 | M163: Porter Le2004Q4 | N163: Product12004Q4
A164: Customer163 | B164: Healthcare | C164: North America | D164: Entera CRM | E164: 500 | F164: 287 | G164: Q1 | H164: 2005 | I164: Porter Le | J164: 2005Q1 | K164: Healthcare2005Q1 | L164: North America2005Q1 | M164: Porter Le2005Q1 | N164: Entera CRM2005Q1
A165: Customer164 | B165: Services | C165: Asia Pacific | D165: Product1 | E165: 600 | F165: 24 | G165: Q3 | H165: 2003 | I165: Oren Chase | J165: 2003Q3 | K165: Services2003Q3 | L165: Asia Pacific2003Q3 | M165: Oren Chase2003Q3 | N165: Product12003Q3
A166: Customer165 | B166: Materials | C166: Asia Pacific | D166: Product1 | E166: 150 | F166: 620 | G166: Q3 | H166: 2008 | I166: Oren Chase | J166: 2008Q3 | K166: Materials2008Q3 | L166: Asia Pacific2008Q3 | M166: Oren Chase2008Q3 | N166: Product12008Q3
A167: Customer166 | B167: Services | C167: Asia Pacific | D167: Product3 | E167: 600 | F167: 334 | G167: Q2 | H167: 2005 | I167: Oren Chase | J167: 2005Q2 | K167: Services2005Q2 | L167: Asia Pacific2005Q2 | M167: Oren Chase2005Q2 | N167: Product32005Q2
A168: Customer167 | B168: Healthcare | C168: Asia Pacific | D168: Product3 | E168: 450 | F168: 920 | G168: Q4 | H168: 2005 | I168: Oren Chase | J168: 2005Q4 | K168: Healthcare2005Q4 | L168: Asia Pacific2005Q4 | M168: Oren Chase2005Q4 | N168: Product32005Q4
A169: Customer168 | B169: Finance | C169: Asia Pacific | D169: Product1 | E169: 450 | F169: 255 | G169: Q4 | H169: 2003 | I169: Oren Chase | J169: 2003Q4 | K169: Finance2003Q4 | L169: Asia Pacific2003Q4 | M169: Oren Chase2003Q4 | N169: Product12003Q4
A170: Customer169 | B170: Consumer Goods | C170: North America | D170: Product1 | E170: 300 | F170: 525 | G170: Q4 | H170: 2005 | I170: Porter Le | J170: 2005Q4 | K170: Consumer Goods2005Q4 | L170: North America2005Q4 | M170: Porter Le2005Q4 | N170: Product12005Q4
A171: Customer170 | B171: Healthcare | C171: Asia Pacific | D171: Product4 | E171: 450 | F171: 897 | G171: Q2 | H171: 2007 | I171: Oren Chase | J171: 2007Q2 | K171: Healthcare2007Q2 | L171: Asia Pacific2007Q2 | M171: Oren Chase2007Q2 | N171: Product42007Q2
A172: Customer171 | B172: Consumer Goods | C172: Europe | D172: Entera CRM | E172: 200 | F172: 973 | G172: Q1 | H172: 2003 | I172: Fritz Klein | J172: 2003Q1 | K172: Consumer Goods2003Q1 | L172: Europe2003Q1 | M172: Fritz Klein2003Q1 | N172: Entera CRM2003Q1
A173: Customer172 | B173: Finance | C173: North America | D173: Product2 | E173: 350 | F173: 530 | G173: Q4 | H173: 2004 | I173: Porter Le | J173: 2004Q4 | K173: Finance2004Q4 | L173: North America2004Q4 | M173: Porter Le2004Q4 | N173: Product22004Q4
A174: Customer173 | B174: Consumer Goods | C174: Europe | D174: Product1 | E174: 250 | F174: 985 | G174: Q2 | H174: 2007 | I174: Fritz Klein | J174: 2007Q2 | K174: Consumer Goods2007Q2 | L174: Europe2007Q2 | M174: Fritz Klein2007Q2 | N174: Product12007Q2
A175: Customer174 | B175: Consumer Goods | C175: Asia Pacific | D175: Product4 | E175: 250 | F175: 193 | G175: Q2 | H175: 2006 | I175: Oren Chase | J175: 2006Q2 | K175: Consumer Goods2006Q2 | L175: Asia Pacific2006Q2 | M175: Oren Chase2006Q2 | N175: Product42006Q2
A176: Customer175 | B176: Materials | C176: South America | D176: Product1 | E176: 100 | F176: 201 | G176: Q1 | H176: 2006 | I176: Nasim Hanson | J176: 2006Q1 | K176: Materials2006Q1 | L176: South America2006Q1 | M176: Nasim Hanson2006Q1 | N176: Product12006Q1
A177: Customer176 | B177: Consumer Goods | C177: Asia Pacific | D177: Product4 | E177: 250 | F177: 929 | G177: Q4 | H177: 2004 | I177: Oren Chase | J177: 2004Q4 | K177: Consumer Goods2004Q4 | L177: Asia Pacific2004Q4 | M177: Oren Chase2004Q4 | N177: Product42004Q4
A178: Customer177 | B178: Services | C178: North America | D178: Product1 | E178: 550 | F178: 442 | G178: Q4 | H178: 2005 | I178: Porter Le | J178: 2005Q4 | K178: Services2005Q4 | L178: North America2005Q4 | M178: Porter Le2005Q4 | N178: Product12005Q4
A179: Customer178 | B179: Healthcare | C179: North America | D179: Product1 | E179: 500 | F179: 62 | G179: Q4 | H179: 2003 | I179: Porter Le | J179: 2003Q4 | K179: Healthcare2003Q4 | L179: North America2003Q4 | M179: Porter Le2003Q4 | N179: Product12003Q4
A180: Customer179 | B180: Finance | C180: North America | D180: Product4 | E180: 300 | F180: 731 | G180: Q4 | H180: 2003 | I180: Porter Le | J180: 2003Q4 | K180: Finance2003Q4 | L180: North America2003Q4 | M180: Porter Le2003Q4 | N180: Product42003Q4
A181: Customer180 | B181: Healthcare | C181: Asia Pacific | D181: Product2 | E181: 450 | F181: 62 | G181: Q2 | H181: 2008 | I181: Oren Chase | J181: 2008Q2 | K181: Healthcare2008Q2 | L181: Asia Pacific2008Q2 | M181: Oren Chase2008Q2 | N181: Product22008Q2
A182: Customer181 | B182: Services | C182: North America | D182: Product2 | E182: 550 | F182: 190 | G182: Q4 | H182: 2003 | I182: Porter Le | J182: 2003Q4 | K182: Services2003Q4 | L182: North America2003Q4 | M182: Porter Le2003Q4 | N182: Product22003Q4
A183: Customer182 | B183: Technology | C183: North America | D183: Product1 | E183: 650 | F183: 159 | G183: Q1 | H183: 2007 | I183: Porter Le | J183: 2007Q1 | K183: Technology2007Q1 | L183: North America2007Q1 | M183: Porter Le2007Q1 | N183: Product12007Q1
A184: Customer183 | B184: Technology | C184: Europe | D184: Product2 | E184: 650 | F184: 263 | G184: Q4 | H184: 2006 | I184: Fritz Klein | J184: 2006Q4 | K184: Technology2006Q4 | L184: Europe2006Q4 | M184: Fritz Klein2006Q4 | N184: Product22006Q4
A185: Customer184 | B185: Finance | C185: Europe | D185: Product4 | E185: 350 | F185: 284 | G185: Q4 | H185: 2006 | I185: Fritz Klein | J185: 2006Q4 | K185: Finance2006Q4 | L185: Europe2006Q4 | M185: Fritz Klein2006Q4 | N185: Product42006Q4
A186: Customer185 | B186: Finance | C186: North America | D186: Product3 | E186: 300 | F186: 865 | G186: Q4 | H186: 2003 | I186: Porter Le | J186: 2003Q4 | K186: Finance2003Q4 | L186: North America2003Q4 | M186: Porter Le2003Q4 | N186: Product32003Q4
A187: Customer186 | B187: Materials | C187: North America | D187: Product4 | E187: 100 | F187: 517 | G187: Q4 | H187: 2003 | I187: Porter Le | J187: 2003Q4 | K187: Materials2003Q4 | L187: North America2003Q4 | M187: Porter Le2003Q4 | N187: Product42003Q4
A188: Customer187 | B188: Services | C188: North America | D188: Product4 | E188: 550 | F188: 166 | G188: Q3 | H188: 2004 | I188: Porter Le | J188: 2004Q3 | K188: Services2004Q3 | L188: North America2004Q3 | M188: Porter Le2004Q3 | N188: Product42004Q3
A189: Customer188 | B189: Materials | C189: South America | D189: Product1 | E189: 100 | F189: 371 | G189: Q3 | H189: 2003 | I189: Nasim Hanson | J189: 2003Q3 | K189: Materials2003Q3 | L189: South America2003Q3 | M189: Nasim Hanson2003Q3 | N189: Product12003Q3
A190: Customer189 | B190: Materials | C190: Middle East | D190: Product3 | E190: 150 | F190: 533 | G190: Q4 | H190: 2004 | I190: Bradley Valenzuela | J190: 2004Q4 | K190: Materials2004Q4 | L190: Middle East2004Q4 | M190: Bradley Valenzuela2004Q4 | N190: Product32004Q4
A191: Customer190 | B191: Healthcare | C191: South America | D191: Entera CRM | E191: 500 | F191: 223 | G191: Q4 | H191: 2008 | I191: Nasim Hanson | J191: 2008Q4 | K191: Healthcare2008Q4 | L191: South America2008Q4 | M191: Nasim Hanson2008Q4 | N191: Entera CRM2008Q4
A192: Customer191 | B192: Consumer Goods | C192: Europe | D192: Product3 | E192: 200 | F192: 74 | G192: Q4 | H192: 2006 | I192: Fritz Klein | J192: 2006Q4 | K192: Consumer Goods2006Q4 | L192: Europe2006Q4 | M192: Fritz Klein2006Q4 | N192: Product32006Q4
A193: Customer192 | B193: Finance | C193: Europe | D193: Entera CRM | E193: 400 | F193: 157 | G193: Q4 | H193: 2006 | I193: Fritz Klein | J193: 2006Q4 | K193: Finance2006Q4 | L193: Europe2006Q4 | M193: Fritz Klein2006Q4 | N193: Entera CRM2006Q4
A194: Customer193 | B194: Technology | C194: North America | D194: Entera CRM | E194: 650 | F194: 655 | G194: Q2 | H194: 2007 | I194: Porter Le | J194: 2007Q2 | K194: Technology2007Q2 | L194: North America2007Q2 | M194: Porter Le2007Q2 | N194: Entera CRM2007Q2
A195: Customer194 | B195: Services | C195: North America | D195: Entera CRM | E195: 550 | F195: 305 | G195: Q3 | H195: 2004 | I195: Porter Le | J195: 2004Q3 | K195: Services2004Q3 | L195: North America2004Q3 | M195: Porter Le2004Q3 | N195: Entera CRM2004Q3
A196: Customer195 | B196: Services | C196: North America | D196: Product1 | E196: 550 | F196: 694 | G196: Q3 | H196: 2007 | I196: Porter Le | J196: 2007Q3 | K196: Services2007Q3 | L196: North America2007Q3 | M196: Porter Le2007Q3 | N196: Product12007Q3
A197: Customer196 | B197: Materials | C197: South America | D197: Product2 | E197: 100 | F197: 835 | G197: Q1 | H197: 2004 | I197: Nasim Hanson | J197: 2004Q1 | K197: Materials2004Q1 | L197: South America2004Q1 | M197: Nasim Hanson2004Q1 | N197: Product22004Q1
A198: Customer197 | B198: Consumer Goods | C198: Europe | D198: Product1 | E198: 250 | F198: 832 | G198: Q4 | H198: 2006 | I198: Fritz Klein | J198: 2006Q4 | K198: Consumer Goods2006Q4 | L198: Europe2006Q4 | M198: Fritz Klein2006Q4 | N198: Product12006Q4
A199: Customer198 | B199: Finance | C199: Europe | D199: Product2 | E199: 350 | F199: 272 | G199: Q2 | H199: 2007 | I199: Fritz Klein | J199: 2007Q2 | K199: Finance2007Q2 | L199: Europe2007Q2 | M199: Fritz Klein2007Q2 | N199: Product22007Q2
A200: Customer199 | B200: Consumer Goods | C200: Europe | D200: Product4 | E200: 200 | F200: 776 | G200: Q1 | H200: 2005 | I200: Fritz Klein | J200: 2005Q1 | K200: Consumer Goods2005Q1 | L200: Europe2005Q1 | M200: Fritz Klein2005Q1 | N200: Product42005Q1
... 304 more rows

Sheet Human Resources (hidden)
C1: Previous Month Data
A2: Full Name | B2: Hire Date | C2: Salary | D2: Bonus | E2: Overtime | F2: Department | G2: Sick Days | H2: Performance Score
A3: Fritz Klein | B3: 2014-12-05 | C3: 20000 | D3: 3130 | E3: 220 | F3: Finance | G3: 3 | H3: 4
A4: Porter Le | B4: 2015-04-28 | C4: 29000 | D4: 1800 | E4: 810 | F4: Administration | G4: 4 | H4: 5
A5: Oren Chase | B5: 2013-12-26 | C5: 29000 | D5: 2550 | E5: 810 | F5: Human Resources | G5: 1 | H5: 1
A6: Nasim Hanson | B6: 2015-02-25 | C6: 30000 | D6: 4430 | E6: 840 | F6: Finance | G6: 5 | H6: 5
A7: Bradley Valenzuela | B7: 2014-04-18 | C7: 31000 | D7: 1860 | E7: 2220 | F7: Marketing | G7: 3 | H7: 3
A8: Vaughan Dean | B8: 2015-02-28 | C8: 31000 | D8: 5550 | E8: 60 | F8: Marketing | G8: 5 | H8: 4
A9: Christopher Guerra | B9: 2014-02-20 | C9: 32000 | D9: 5250 | E9: 60 | F9: R&D | G9: 1 | H9: 3
A10: Ishmael Grimes | B10: 2013-12-20 | C10: 32000 | D10: 4690 | E10: 1460 | F10: Administration | G10: 1 | H10: 2
A11: Ferdinand Small | B11: 2014-01-23 | C11: 34000 | D11: 4350 | E11: 3060 | F11: Customer Support | G11: 3 | H11: 3
A12: Asher Benson | B12: 2013-11-20 | C12: 34000 | D12: 2850 | E12: 1860 | F12: Accounting | G12: 1 | H12: 5
A13: Marvin Velasquez | B13: 2014-10-09 | C13: 35000 | D13: 3840 | E13: 370 | F13: Administration | G13: 6 | H13: 5
A14: Tiger Schultz | B14: 2014-12-18 | C14: 35000 | D14: 2290 | E14: 990 | F14: Human Resources | G14: 2 | H14: 4
A15: Kasimir Mccoy | B15: 2014-01-29 | C15: 36000 | D15: 3290 | E15: 60 | F15: R&D | G15: 3 | H15: 3
A16: Oscar Keller | B16: 2014-02-21 | C16: 36000 | D16: 5210 | E16: 700 | F16: R&D | G16: 1 | H16: 1
A17: Lamar Howard | B17: 2014-11-18 | C17: 38000 | D17: 5470 | E17: 2100 | F17: Administration | G17: 5 | H17: 3
A18: Wesley Conner | B18: 2014-04-29 | C18: 38000 | D18: 5130 | E18: 3120 | F18: IT | G18: 5 | H18: 1
A19: Hu Frost | B19: 2014-01-15 | C19: 39000 | D19: 2800 | E19: 1110 | F19: Accounting | G19: 3 | H19: 4
A20: Luke Luna | B20: 2015-03-02 | C20: 39000 | D20: 4550 | E20: 2160 | F20: R&D | G20: 1 | H20: 2
A21: Hayes Gonzales | B21: 2015-03-26 | C21: 39000 | D21: 27050 | E21: 60 | F21: Sales | G21: 4 | H21: 5
A22: Bevis Whitfield | B22: 2015-06-25 | C22: 40000 | D22: 3570 | E22: 1860 | F22: Marketing | G22: 1 | H22: 1
A23: Connor Baxter | B23: 2014-09-06 | C23: 42000 | D23: 2950 | E23: 60 | F23: IT | G23: 1 | H23: 3
A24: Tiger Mcintosh | B24: 2014-10-25 | C24: 43000 | D24: 1830 | E24: 450 | F24: Marketing | G24: 4 | H24: 3
A25: Jerry Goodwin | B25: 2015-10-05 | C25: 44000 | D25: 6650 | E25: 60 | F25: Customer Support | G25: 6 | H25: 5
A26: Jasper Battle | B26: 2014-07-13 | C26: 44000 | D26: 2650 | E26: 1660 | F26: Finance | G26: 2 | H26: 2
A27: Malcolm Hutchinson | B27: 2015-09-09 | C27: 45000 | D27: 3100 | E27: 1700 | F27: Human Resources | G27: 1 | H27: 2
A28: Gabriel Ayala | B28: 2014-11-04 | C28: 46000 | D28: 3570 | E28: 3840 | F28: Accounting | G28: 5 | H28: 4
A29: Phelan Davidson | B29: 2015-04-07 | C29: 47000 | D29: 5780 | E29: 60 | F29: Sales | G29: 3 | H29: 2
A30: Gavin Bell | B30: 2015-08-23 | C30: 47000 | D30: 43050 | E30: 60 | F30: Sales | G30: 4 | H30: 4
A31: Hasad Faulkner | B31: 2014-03-31 | C31: 48000 | D31: 2370 | E31: 940 | F31: Finance | G31: 3 | H31: 4
A32: Hector Madden | B32: 2014-06-02 | C32: 49000 | D32: 38050 | E32: 60 | F32: Sales | G32: 2 | H32: 5
A33: Hyatt Edwards | B33: 2014-12-30 | C33: 49000 | D33: 6900 | E33: 4560 | F33: Administration | G33: 1 | H33: 2
A34: Oscar Emerson | B34: 2014-09-20 | C34: 49000 | D34: 1950 | E34: 60 | F34: IT | G34: 1 | H34: 5
A35: Bernard Wilkinson | B35: 2014-06-26 | C35: 50000 | D35: 3350 | E35: 60 | F35: Sales | G35: 6 | H35: 2
A36: Caldwell Shepherd | B36: 2014-05-22 | C36: 51000 | D36: 3870 | E36: 530 | F36: Human Resources | G36: 3 | H36: 5
A37: Damian Silva | B37: 2014-03-14 | C37: 52000 | D37: 6810 | E37: 4860 | F37: Accounting | G37: 2 | H37: 3
A38: Lawrence Hicks | B38: 2015-07-03 | C38: 52000 | D38: 4890 | E38: 4380 | F38: Finance | G38: 5 | H38: 5
A39: Deacon Whitaker | B39: 2015-09-22 | C39: 52000 | D39: 7770 | E39: 2460 | F39: Accounting | G39: 5 | H39: 3
A40: Brennan Ellison | B40: 2014-08-19 | C40: 52000 | D40: 7290 | E40: 540 | F40: Marketing | G40: 3 | H40: 1
A41: Linus Christian | B41: 2014-03-25 | C41: 52000 | D41: 5850 | E41: 3420 | F41: R&D | G41: 2 | H41: 5
A42: Elmo Abbott | B42: 2013-12-20 | C42: 55000 | D42: 7680 | E42: 2100 | F42: Human Resources | G42: 1 | H42: 3
A43: Kuame Griffith | B43: 2014-11-25 | C43: 56000 | D43: 2610 | E43: 3700 | F43: R&D | G43: 6 | H43: 2
A44: Henry Holcomb | B44: 2015-04-20 | C44: 57000 | D44: 36050 | E44: 60 | F44: Sales | G44: 5 | H44: 5
A45: Chandler Stevens | B45: 2013-11-07 | C45: 57000 | D45: 6350 | E45: 590 | F45: Marketing | G45: 2 | H45: 1
A46: Oscar Dickerson | B46: 2014-05-10 | C46: 58000 | D46: 6450 | E46: 3840 | F46: Administration | G46: 3 | H46: 2
A47: Cruz Chase | B47: 2014-03-29 | C47: 58000 | D47: 2670 | E47: 4380 | F47: Administration | G47: 1 | H47: 2
A48: Ralph Alvarez | B48: 2015-07-29 | C48: 58000 | D48: 6450 | E48: 4920 | F48: Accounting | G48: 3 | H48: 5
A49: Felix Boyle | B49: 2015-09-07 | C49: 58000 | D49: 9150 | E49: 1680 | F49: R&D | G49: 3 | H49: 1
A50: Brandon Mckenzie | B50: 2015-02-28 | C50: 59000 | D50: 2150 | E50: 60 | F50: IT | G50: 5 | H50: 3
A51: Ciaran Smith | B51: 2014-08-19 | C51: 61000 | D51: 5040 | E51: 630 | F51: Finance | G51: 3 | H51: 3
A52: Wayne Golden | B52: 2014-07-19 | C52: 61000 | D52: 6180 | E52: 3480 | F52: Marketing | G52: 6 | H52: 1
A53: Patrick Hawkins | B53: 2015-05-24 | C53: 62000 | D53: 6270 | E53: 5280 | F53: Finance | G53: 6 | H53: 4
A54: Adam Curtis | B54: 2014-05-19 | C54: 63000 | D54: 9900 | E54: 60 | F54: Human Resources | G54: 2 | H54: 4
A55: Aidan Tyler | B55: 2015-01-29 | C55: 63000 | D55: 6950 | E55: 60 | F55: IT | G55: 6 | H55: 4
A56: Clayton Riddle | B56: 2014-11-09 | C56: 63000 | D56: 6360 | E56: 650 | F56: IT | G56: 1 | H56: 5
A57: Tad Carson | B57: 2015-06-20 | C57: 63000 | D57: 8130 | E57: 1240 | F57: Customer Support | G57: 3 | H57: 2
A58: Stewart Wilcox | B58: 2014-10-28 | C58: 64000 | D58: 9450 | E58: 60 | F58: Sales | G58: 5 | H58: 5
A59: Barry Mccarthy | B59: 2014-06-15 | C59: 66000 | D59: 9110 | E59: 3160 | F59: R&D | G59: 6 | H59: 5
A60: Jonah Mcintyre | B60: 2014-04-01 | C60: 66000 | D60: 9110 | E60: 1300 | F60: Finance | G60: 5 | H60: 2
A61: Chester Baldwin | B61: 2015-07-20 | C61: 67000 | D61: 8610 | E61: 4470 | F61: IT | G61: 1 | H61: 3
A62: Dennis Nguyen | B62: 2015-03-03 | C62: 67000 | D62: 8610 | E62: 60 | F62: IT | G62: 3 | H62: 2
A63: Sean Stark | B63: 2015-06-08 | C63: 67000 | D63: 4200 | E63: 3840 | F63: Accounting | G63: 4 | H63: 3
A64: Brennan Walls | B64: 2014-04-23 | C64: 68000 | D64: 3610 | E64: 60 | F64: Administration | G64: 4 | H64: 1
A65: Marvin Moses | B65: 2013-11-26 | C65: 68000 | D65: 9370 | E65: 5180 | F65: Administration | G65: 5 | H65: 1
A66: Drake Dominguez | B66: 2014-04-18 | C66: 68000 | D66: 6810 | E66: 60 | F66: IT | G66: 1 | H66: 3
A67: Emerson Sellers | B67: 2014-08-07 | C67: 69000 | D67: 4950 | E67: 60 | F67: Marketing | G67: 6 | H67: 5
A68: Dustin Harris | B68: 2014-05-19 | C68: 69000 | D68: 2350 | E68: 1360 | F68: Human Resources | G68: 4 | H68: 2
A69: Clayton Cotton | B69: 2015-08-15 | C69: 70000 | D69: 3690 | E69: 1380 | F69: Accounting | G69: 1 | H69: 3
A70: Ferris Knight | B70: 2013-11-12 | C70: 70000 | D70: 2370 | E70: 2040 | F70: Marketing | G70: 3 | H70: 4
A71: Rashad Zimmerman | B71: 2014-10-24 | C71: 71000 | D71: 42050 | E71: 60 | F71: Sales | G71: 2 | H71: 3
A72: Noah Rowland | B72: 2014-02-02 | C72: 71000 | D72: 9090 | E72: 3410 | F72: Finance | G72: 3 | H72: 1
A73: Graham Gibbs | B73: 2015-03-24 | C73: 72000 | D73: 9890 | E73: 5500 | F73: Human Resources | G73: 3 | H73: 3
A74: Hyatt Rogers | B74: 2014-04-04 | C74: 76000 | D74: 3930 | E74: 6540 | F74: R&D | G74: 2 | H74: 1
A75: Gareth Wyatt | B75: 2014-07-27 | C75: 76000 | D75: 3210 | E75: 2940 | F75: Accounting | G75: 4 | H75: 5
A76: Geoffrey Small | B76: 2014-08-26 | C76: 77000 | D76: 2510 | E76: 5170 | F76: IT | G76: 6 | H76: 1
A77: Melvin Pickett | B77: 2013-11-07 | C77: 78000 | D77: 9190 | E77: 2280 | F77: Accounting | G77: 4 | H77: 1
A78: Kasper Riley | B78: 2015-06-01 | C78: 79000 | D78: 10800 | E78: 1560 | F78: Administration | G78: 4 | H78: 1
A79: Simon Pratt | B79: 2014-08-11 | C79: 80000 | D79: 8650 | E79: 2340 | F79: R&D | G79: 4 | H79: 1
A80: Rajah Weber | B80: 2014-04-11 | C80: 81000 | D80: 12600 | E80: 60 | F80: IT | G80: 4 | H80: 4
A81: Griffith Nielsen | B81: 2014-07-05 | C81: 81000 | D81: 6440 | E81: 60 | F81: R&D | G81: 6 | H81: 1
A82: Declan Larson | B82: 2014-09-02 | C82: 81000 | D82: 29050 | E82: 60 | F82: Sales | G82: 5 | H82: 5
A83: Sawyer Byers | B83: 2014-03-29 | C83: 84000 | D83: 53050 | E83: 60 | F83: Sales | G83: 5 | H83: 5
A84: Hashim Vazquez | B84: 2014-03-10 | C84: 85000 | D84: 5910 | E84: 60 | F84: Customer Support | G84: 3 | H84: 5
A85: Stone Bush | B85: 2014-12-28 | C85: 87000 | D85: 33050 | E85: 60 | F85: Sales | G85: 6 | H85: 2
A86: Harding Turner | B86: 2014-07-28 | C86: 89000 | D86: 2750 | E86: 60 | F86: IT | G86: 2 | H86: 4
A87: Jesse Barron | B87: 2013-11-12 | C87: 89000 | D87: 10400 | E87: 60 | F87: IT | G87: 1 | H87: 5
A88: Kenneth Booker | B88: 2015-06-29 | C88: 89000 | D88: 10400 | E88: 60 | F88: IT | G88: 4 | H88: 4
A89: Steel Stuart | B89: 2014-06-20 | C89: 91000 | D89: 8880 | E89: 7890 | F89: Customer Support | G89: 2 | H89: 4
A90: Darius Sandoval | B90: 2015-01-06 | C90: 91000 | D90: 14100 | E90: 7020 | F90: Marketing | G90: 4 | H90: 1
A91: Giacomo Parks | B91: 2014-06-03 | C91: 93000 | D91: 9060 | E91: 60 | F91: Marketing | G91: 3 | H91: 3
A92: Flynn Guthrie | B92: 2014-10-22 | C92: 98000 | D92: 6690 | E92: 60 | F92: Human Resources | G92: 3 | H92: 1
A93: Kenyon Petersen | B93: 2014-11-30 | C93: 100000 | D93: 5850 | E93: 7740 | F93: Finance | G93: 3 | H93: 1
A94: Dexter Hawkins | B94: 2014-10-07 | C94: 109000 | D94: 16800 | E94: 60 | F94: R&D | G94: 4 | H94: 3
A95: Garrison Bray | B95: 2015-09-16 | C95: 114000 | D95: 7650 | E95: 5560 | F95: Administration | G95: 3 | H95: 5
A96: Kermit Duffy | B96: 2014-06-28 | C96: 123000 | D96: 11760 | E96: 4820 | F96: R&D | G96: 5 | H96: 2
A97: Eaton Stevens | B97: 2014-08-30 | C97: 127000 | D97: 18270 | E97: 4980 | F97: Administration | G97: 5 | H97: 2
A98: Judah Suarez | B98: 2014-04-22 | C98: 149000 | D98: 17000 | E98: 5860 | F98: Administration | G98: 5 | H98: 4
A99: Judah Robles | B99: 2014-03-07 | C99: 81000 | D99: 12600 | E99: 60 | F99: IT | G99: 4 | H99: 1
A100: Byron Foreman | B100: 2014-01-08 | C100: 81000 | D100: 6440 | E100: 60 | F100: R&D | G100: 3 | H100: 3
A101: Wylie Burris | B101: 2014-04-23 | C101: 81000 | D101: 29050 | E101: 60 | F101: Sales | G101: 2 | H101: 5
A102: Rafael Griffith | B102: 2015-06-09 | C102: 84000 | D102: 53050 | E102: 60 | F102: Sales | G102: 2 | H102: 1

Sheet Stock Performance (hidden)
C1: Close of trading Data
A2: Company Name | B2: Ticker | C2: Prev. Close | D2: Last Trade | E2: Move | F2: % | G2: Volume
A3: Tincidunt Orci Quis Inc. | B3: A1 | C3: 11.58 | D3: 11.25 | E3: -0.33 | F3: -0.02849740933 | G3: 22887335
A4: Dapibus Rutrum Justo Associates | B4: A2 | C4: 48.68 | D4: 49.27 | E4: 0.59 | F4: 0.01211996713 | G4: 6045029
A5: Elit Foundation | B5: A3 | C5: 64.15 | D5: 63.56 | E5: -0.59 | F5: -0.009197194076 | G5: 3431623
A6: Ante Institute | B6: A4 | C6: 6.99 | D6: 6.9 | E6: -0.09 | F6: -0.01287553648 | G6: 142828633
A7: Eget Mollis Lectus Industries | B7: A5 | C7: 84.6 | D7: 83.66 | E7: -0.94 | F7: -0.01111111111 | G7: 8999757
A8: Ligula Limited | B8: A6 | C8: 16.51 | D8: 16.53 | E8: 0.02 | F8: 0.001211387038 | G8: 48834995
A9: A LLC | B9: A7 | C9: 98.71 | D9: 97.79 | E9: -0.92 | F9: -0.00932023098 | G9: 8660497
A10: At Risus Nunc Inc. | B10: A8 | C10: 46.38 | D10: 45.96 | E10: -0.42 | F10: -0.009055627426 | G10: 6683579
A11: Ultricies Ornare Foundation | B11: A9 | C11: 32.51 | D11: 32.31 | E11: -0.2 | F11: -0.006151953245 | G11: 10117721
A12: Praesent Eu Nulla Consulting | B12: A10 | C12: 16.18 | D12: 16.04 | E12: -0.14 | F12: -0.008652657602 | G12: 56239906
A13: Ullamcorper Nisl Arcu Limited | B13: A11 | C13: 34.35 | D13: 34.81 | E13: 0.46 | F13: 0.0133915575 | G13: 13980262
A14: Vehicula Risus Company | B14: A12 | C14: 22.91 | D14: 22.47 | E14: -0.44 | F14: -0.01920558708 | G14: 25847555
A15: Purus Ac Tellus Corporation | B15: A13 | C15: 173.13 | D15: 174.72 | E15: 1.59 | F15: 0.009183850286 | G15: 6209893
A16: Vestibulum Ante Ipsum Consulting | B16: A14 | C16: 21.93 | D16: 22.2 | E16: 0.27 | F16: 0.0123119015 | G16: 71497500
A17: Mauris Molestie Industries | B17: A15 | C17: 64.14 | D17: 64.22 | E17: 0.08 | F17: 0.001247271593 | G17: 10874749
A18: Nam Interdum PC | B18: A16 | C18: 32.49 | D18: 32.25 | E18: -0.24 | F18: -0.007386888273 | G18: 34089368
A19: Ornare In Faucibus Industries | B19: A17 | C19: 34.87 | D19: 34.52 | E19: -0.35 | F19: -0.01003728133 | G19: 9361703
A20: Vel Company | B20: A18 | C20: 70.49 | D20: 70.65 | E20: 0.16 | F20: 0.002269825507 | G20: 9157066
A21: Nunc Mauris Inc. | B21: A19 | C21: 88.81 | D21: 89.31 | E21: 0.5 | F21: 0.005629996622 | G21: 7942201
A22: A Corp. | B22: A20 | C22: 79.21 | D22: 79.21 | E22: 0 | F22: 0 | G22: 3914774
A23: Penatibus Ltd | B23: A21 | C23: 32.25 | D23: 32.5 | E23: 0.25 | F23: 0.007751937984 | G23: 13765682
A24: Integer In Magna Industries | B24: A22 | C24: 27.21 | D24: 26.98 | E24: -0.23 | F24: -0.008452774715 | G24: 49211857
A25: Donec Feugiat Metus Company | B25: A23 | C25: 18.06 | D25: 18.24 | E25: 0.18 | F25: 0.009966777409 | G25: 52085580
A26: Lacinia LLC | B26: A24 | C26: 63.81 | D26: 64.08 | E26: 0.27 | F26: 0.004231311707 | G26: 8215733
A27: In Inc. | B27: A25 | C27: 28.58 | D27: 28.85 | E27: 0.27 | F27: 0.00944716585 | G27: 20648122
A28: Odio Etiam Company | B28: A26 | C28: 49.9 | D28: 50.42 | E28: 0.52 | F28: 0.01042084168 | G28: 6444435
A29: Gravida LLC | B29: A27 | C29: 75.55 | D29: 76.01 | E29: 0.46 | F29: 0.006088682991 | G29: 5783255
A30: Metus Urna Foundation | B30: A28 | C30: 36.28 | D30: 36.41 | E30: 0.13 | F30: 0.003583241455 | G30: 13682491
A31: Nonummy Ultricies Incorporated | B31: A29 | C31: 52.45 | D31: 52.29 | E31: -0.16 | F31: -0.003050524309 | G31: 8421143
A32: Nunc LLP | B32: A30 | C32: 73.7 | D32: 74.01 | E32: 0.31 | F32: 0.00420624152 | G32: 20421064
A33: Suspendisse Tristique Neque Corporation | B33: A31 | C33: 11.58 | D33: 11.25 | E33: -0.33 | F33: -0.02849740933 | G33: 22887335
A34: Arcu Industries | B34: A32 | C34: 48.68 | D34: 49.27 | E34: 0.59 | F34: 0.01211996713 | G34: 6045029
A35: Sit Inc. | B35: A33 | C35: 64.15 | D35: 63.56 | E35: -0.59 | F35: -0.009197194076 | G35: 3431623
A36: Lectus Ante Inc. | B36: A34 | C36: 6.99 | D36: 6.9 | E36: -0.09 | F36: -0.01287553648 | G36: 142828633
A37: Luctus Ut Pellentesque Institute | B37: A35 | C37: 84.6 | D37: 83.66 | E37: -0.94 | F37: -0.01111111111 | G37: 8999757
A38: Adipiscing Corp. | B38: A36 | C38: 16.51 | D38: 16.53 | E38: 0.02 | F38: 0.001211387038 | G38: 48834995
A39: Molestie Arcu Limited | B39: A37 | C39: 98.71 | D39: 97.79 | E39: -0.92 | F39: -0.00932023098 | G39: 8660497
A40: Eu LLC | B40: A38 | C40: 46.38 | D40: 45.96 | E40: -0.42 | F40: -0.009055627426 | G40: 6683579
A41: Auctor Associates | B41: A39 | C41: 32.51 | D41: 32.31 | E41: -0.2 | F41: -0.006151953245 | G41: 10117721
A42: Nullam LLP | B42: A40 | C42: 16.18 | D42: 16.04 | E42: -0.14 | F42: -0.008652657602 | G42: 56239906
A43: Donec Est Consulting | B43: A41 | C43: 34.35 | D43: 34.81 | E43: 0.46 | F43: 0.0133915575 | G43: 13980262
A44: A LLP | B44: A42 | C44: 22.91 | D44: 22.47 | E44: -0.44 | F44: -0.01920558708 | G44: 25847555
A45: Tristique Associates | B45: A43 | C45: 173.13 | D45: 174.72 | E45: 1.59 | F45: 0.009183850286 | G45: 6209893
A46: Faucibus Orci Luctus LLP | B46: A44 | C46: 21.93 | D46: 22.2 | E46: 0.27 | F46: 0.0123119015 | G46: 71497500
A47: Arcu Corp. | B47: A45 | C47: 64.14 | D47: 64.22 | E47: 0.08 | F47: 0.001247271593 | G47: 10874749
A48: Per Associates | B48: A46 | C48: 32.49 | D48: 32.25 | E48: -0.24 | F48: -0.007386888273 | G48: 34089368
A49: Sed Consequat Auctor Institute | B49: A47 | C49: 34.87 | D49: 34.52 | E49: -0.35 | F49: -0.01003728133 | G49: 9361703
A50: Accumsan Convallis Associates | B50: A48 | C50: 70.49 | D50: 70.65 | E50: 0.16 | F50: 0.002269825507 | G50: 9157066
A51: Imperdiet Institute | B51: A49 | C51: 88.81 | D51: 89.31 | E51: 0.5 | F51: 0.005629996622 | G51: 7942201
A52: Cubilia Curae; Donec Consulting | B52: A50 | C52: 79.21 | D52: 79.21 | E52: 0 | F52: 0 | G52: 3914774
A53: Ultricies Incorporated | B53: A51 | C53: 32.25 | D53: 32.5 | E53: 0.25 | F53: 0.007751937984 | G53: 13765682
A54: Odio Incorporated | B54: A52 | C54: 27.21 | D54: 26.98 | E54: -0.23 | F54: -0.008452774715 | G54: 49211857
A55: Nunc Laoreet Lectus Associates | B55: A53 | C55: 18.06 | D55: 18.24 | E55: 0.18 | F55: 0.009966777409 | G55: 52085580
A56: Fermentum Metus Aenean Corporation | B56: A54 | C56: 63.81 | D56: 64.08 | E56: 0.27 | F56: 0.004231311707 | G56: 8215733
A57: Tempor Augue Ac Associates | B57: A55 | C57: 28.58 | D57: 28.85 | E57: 0.27 | F57: 0.00944716585 | G57: 20648122
A58: Et Tristique Pellentesque Foundation | B58: A56 | C58: 49.9 | D58: 50.42 | E58: 0.52 | F58: 0.01042084168 | G58: 6444435
A59: Montes Corporation | B59: A57 | C59: 75.55 | D59: 76.01 | E59: 0.46 | F59: 0.006088682991 | G59: 5783255
A60: Eu Ligula Aenean PC | B60: A58 | C60: 36.28 | D60: 36.41 | E60: 0.13 | F60: 0.003583241455 | G60: 13682491
A61: Sed Industries | B61: A59 | C61: 52.45 | D61: 52.29 | E61: -0.16 | F61: -0.003050524309 | G61: 8421143
A62: Tincidunt Vehicula Institute | B62: A60 | C62: 73.7 | D62: 74.01 | E62: 0.31 | F62: 0.00420624152 | G62: 20421064
A63: Ultrices LLP | B63: A61 | C63: 11.58 | D63: 11.25 | E63: -0.33 | F63: -0.02849740933 | G63: 22887335
A64: Aliquam Adipiscing LLC | B64: A62 | C64: 48.68 | D64: 49.27 | E64: 0.59 | F64: 0.01211996713 | G64: 6045029
A65: Sed PC | B65: A63 | C65: 64.15 | D65: 63.56 | E65: -0.59 | F65: -0.009197194076 | G65: 3431623
A66: Dis Parturient Montes Limited | B66: A64 | C66: 6.99 | D66: 6.9 | E66: -0.09 | F66: -0.01287553648 | G66: 142828633
A67: Duis Cursus Incorporated | B67: A65 | C67: 84.6 | D67: 83.66 | E67: -0.94 | F67: -0.01111111111 | G67: 8999757
A68: Ipsum Leo Elementum Corporation | B68: A66 | C68: 16.51 | D68: 16.53 | E68: 0.02 | F68: 0.001211387038 | G68: 48834995
A69: Mauris LLP | B69: A67 | C69: 98.71 | D69: 97.79 | E69: -0.92 | F69: -0.00932023098 | G69: 8660497
A70: Sed Hendrerit LLC | B70: A68 | C70: 46.38 | D70: 45.96 | E70: -0.42 | F70: -0.009055627426 | G70: 6683579
A71: Sociis Foundation | B71: A69 | C71: 32.51 | D71: 32.31 | E71: -0.2 | F71: -0.006151953245 | G71: 10117721
A72: A Auctor Consulting | B72: A70 | C72: 16.18 | D72: 16.04 | E72: -0.14 | F72: -0.008652657602 | G72: 56239906
A73: Porttitor Incorporated | B73: A71 | C73: 34.35 | D73: 34.81 | E73: 0.46 | F73: 0.0133915575 | G73: 13980262
A74: Interdum LLC | B74: A72 | C74: 22.91 | D74: 22.47 | E74: -0.44 | F74: -0.01920558708 | G74: 25847555
A75: Congue PC | B75: A73 | C75: 173.13 | D75: 174.72 | E75: 1.59 | F75: 0.009183850286 | G75: 6209893
A76: Per Inceptos Associates | B76: A74 | C76: 21.93 | D76: 22.2 | E76: 0.27 | F76: 0.0123119015 | G76: 71497500
A77: Semper LLP | B77: A75 | C77: 64.14 | D77: 64.22 | E77: 0.08 | F77: 0.001247271593 | G77: 10874749
A78: Vestibulum Lorem Company | B78: A76 | C78: 32.49 | D78: 32.25 | E78: -0.24 | F78: -0.007386888273 | G78: 34089368
A79: Faucibus Lectus A LLP | B79: A77 | C79: 34.87 | D79: 34.52 | E79: -0.35 | F79: -0.01003728133 | G79: 9361703
A80: Porttitor Tellus PC | B80: A78 | C80: 70.49 | D80: 70.65 | E80: 0.16 | F80: 0.002269825507 | G80: 9157066
A81: Odio Tristique Pharetra Inc. | B81: A79 | C81: 88.81 | D81: 89.31 | E81: 0.5 | F81: 0.005629996622 | G81: 7942201
A82: In Ornare Limited | B82: A80 | C82: 79.21 | D82: 79.21 | E82: 0 | F82: 0 | G82: 3914774
A83: Sit Amet Metus Institute | B83: A81 | C83: 32.25 | D83: 32.5 | E83: 0.25 | F83: 0.007751937984 | G83: 13765682
A84: Eget Company | B84: A82 | C84: 27.21 | D84: 26.98 | E84: -0.23 | F84: -0.008452774715 | G84: 49211857
A85: Non Lacinia Industries | B85: A83 | C85: 18.06 | D85: 18.24 | E85: 0.18 | F85: 0.009966777409 | G85: 52085580
A86: Vel Arcu Ltd | B86: A84 | C86: 63.81 | D86: 64.08 | E86: 0.27 | F86: 0.004231311707 | G86: 8215733
A87: Sapien Corp. | B87: A85 | C87: 28.58 | D87: 28.85 | E87: 0.27 | F87: 0.00944716585 | G87: 20648122
A88: Nullam Feugiat Associates | B88: A86 | C88: 49.9 | D88: 50.42 | E88: 0.52 | F88: 0.01042084168 | G88: 6444435
A89: Eros Turpis PC | B89: A87 | C89: 75.55 | D89: 76.01 | E89: 0.46 | F89: 0.006088682991 | G89: 5783255
A90: Ac Mi Eleifend Consulting | B90: A88 | C90: 36.28 | D90: 36.41 | E90: 0.13 | F90: 0.003583241455 | G90: 13682491
A91: Amet Risus Donec Incorporated | B91: A89 | C91: 52.45 | D91: 52.29 | E91: -0.16 | F91: -0.003050524309 | G91: 8421143
A92: Ultricies Dignissim Lacus Consulting | B92: A90 | C92: 73.7 | D92: 74.01 | E92: 0.31 | F92: 0.00420624152 | G92: 20421064
A93: Blandit Congue LLC | B93: A91 | C93: 11.58 | D93: 11.25 | E93: -0.33 | F93: -0.02849740933 | G93: 22887335
A94: Neque Vitae Semper Industries | B94: A92 | C94: 48.68 | D94: 49.27 | E94: 0.59 | F94: 0.01211996713 | G94: 6045029
A95: Vestibulum Ante Ipsum Institute | B95: A93 | C95: 64.15 | D95: 63.56 | E95: -0.59 | F95: -0.009197194076 | G95: 3431623
A96: Tristique Pellentesque Ltd | B96: A94 | C96: 6.99 | D96: 6.9 | E96: -0.09 | F96: -0.01287553648 | G96: 142828633
A97: Et Commodo At LLP | B97: A95 | C97: 84.6 | D97: 83.66 | E97: -0.94 | F97: -0.01111111111 | G97: 8999757
A98: Sed Pharetra Corp. | B98: A96 | C98: 16.51 | D98: 16.53 | E98: 0.02 | F98: 0.001211387038 | G98: 48834995
A99: Accumsan Convallis Ltd | B99: A97 | C99: 98.71 | D99: 97.79 | E99: -0.92 | F99: -0.00932023098 | G99: 8660497
A100: Luctus Ut Pellentesque LLC | B100: A98 | C100: 46.38 | D100: 45.96 | E100: -0.42 | F100: -0.009055627426 | G100: 6683579
A101: Semper Pretium Inc. | B101: A99 | C101: 32.51 | D101: 32.31 | E101: -0.2 | F101: -0.006151953245 | G101: 10117721
A102: Natoque Penatibus Et Consulting | B102: A100 | C102: 16.18 | D102: 16.04 | E102: -0.14 | F102: -0.008652657602 | G102: 56239906

Sheet Lkup
A1: ID | B1: Description | C1: Type
A2: Product 1 | B2: Touchscreen Laptop | C2: Product
A3: Product 2 | B3: Hybrid Laptop | C3: Product
A4: Product 3 | B4: Powerhouse Laptop | C4: Product
A5: Product 4 | B5: Thin Laptop | C5: Product
A6: Product 5 | B6: Economy Laptop | C6: Product
A7: Product 6 | B7: Series 8000 Tablet | C7: Product
A8: Product 7 | B8: Series 5000 Tablet | C8: Product
A9: Product 8 | B9: Hybrid Laptop LED | C9: Product
A10: Product 9 | B10: Elite Laptop | C10: Product
A11: Product 10 | B11: All-in-one Desktop | C11: Product
A12: Product 11 | B12: Gamer's Desktop | C12: Product
A13: Product 12 | B13: Elite Desktop | C13: Product
A14: Customer 1 | B14: College Student | C14: Customer Type
A15: Customer 2 | B15: Post Graduate Student | C15: Customer Type
A16: Customer 3 | B16: Full-time Parent | C16: Customer Type
A17: Customer 4 | B17: Self-Employed | C17: Customer Type
A18: Customer 5 | B18: Full-time Employee | C18: Customer Type
A19: Customer 6 | B19: Business Owner | C19: Customer Type
A20: Customer 7 | B20: Maintstream Youth | C20: Customer Type
A21: Customer 8 | B21: Retired | C21: Customer Type
A22: Customer 9 | B22: Government | C22: Customer Type
A23: Customer 10 | B23: Military | C23: Customer Type
A24: Customer 11 | B24: Corporation | C24: Customer Type
A25: Customer 12 | B25: NPO/NGO | C25: Customer Type
A26: Person 1 | B26: Bo Kornegay | C26: Salesperson
A27: Person 2 | B27: Britta Blakley | C27: Salesperson
A28: Person 3 | B28: Brock Stalder | C28: Salesperson
A29: Person 4 | B29: Catherine Shoaff | C29: Salesperson
A30: Person 5 | B30: Fermin Quin | C30: Salesperson
A31: Person 6 | B31: Glenda Harbaugh | C31: Salesperson
A32: Person 7 | B32: Jarrett Rimmer | C32: Salesperson
A33: Person 8 | B33: Li Bruni | C33: Salesperson
A34: Person 9 | B34: Linwood Camargo | C34: Salesperson
A35: Person 10 | B35: Norene McNeece | C35: Salesperson
A36: Person 11 | B36: Rick Boehm | C36: Salesperson
A37: Person 12 | B37: Sueann Olivero | C37: Salesperson
A39: Dropdown
A40: by Product
A41: by Region
A42: by Salesperson
A43: by Customer Type
